Service Heads (T),Executive (T),Director (T),Service Managers (T),Cost centre,Cost centre (T),Account,Account (T),Transaction number,Transaction Date,Period,Amount,Customer/supplier ID,Customer/Supplier Name
Adult Services,Revenue Budgets,Adult Services,Prevention And Wellbeing,A1451,Health Watch Development,A57115,Payments to Private Contractors,30008215,01/01/2022,202202,"12,450.50",142417,Cloverleaf Advocacy 2000 Ltd
Adult Services,Revenue Budgets,Adult Services,Adult Social Care,A0764,Assisted Living Centre,A40080,Health & Safety Equipment,30007718,26/01/2022,202202,453.6,1000580,Newsmith Stainless Limited
Adult Services,Revenue Budgets,Adult Services,Adult Social Care,A0764,Assisted Living Centre,A40080,Health & Safety Equipment,30011461,21/02/2022,202202,"1,803.52",145281,Ultimate Healthcare Ltd
Adult Services,Revenue Budgets,Adult Services,Adult Social Care,A0764,Assisted Living Centre,A40080,Health & Safety Equipment,30002754,18/03/2022,202202,"-1,671.00",101715,Nottingham Rehab Limited
Adult Services,Revenue Budgets,Adult Services,Adult Social Care,A0764,Assisted Living Centre,A40080,Health & Safety Equipment,30001012,31/03/2022,202202,"1,650.00",101792,Viking Hardware Ltd
Adult Services,Revenue Budgets,Adult Services,Adult Social Care,A0764,Assisted Living Centre,A33005,Public Transport - Non Staff,30007175,12/04/2022,202202,352.24,109432,Northgate Vehicle Hire Ltd
Adult Services,Revenue Budgets,Adult Services,Adult Social Care,A0764,Assisted Living Centre,A40920,Purchase of Equipment,30011503,20/04/2022,202202,"3,051.95",139184,Ambre-Stone Ltd
Adult Services,Revenue Budgets,Adult Services,Adult Social Care,A0764,Assisted Living Centre,A40920,Purchase of Equipment,30006878,22/04/2022,202202,445,135470,Herida Healthcare Ltd
Adult Services,Revenue Budgets,Adult Services,Adult Social Care,A0764,Assisted Living Centre,A40920,Purchase of Equipment,30006878,22/04/2022,202202,598.8,135470,Herida Healthcare Ltd
Adult Services,Revenue Budgets,Adult Services,Adult Social Care,A0764,Assisted Living Centre,A40920,Purchase of Equipment,30006878,22/04/2022,202202,996.4,135470,Herida Healthcare Ltd
Adult Services,Revenue Budgets,Adult Services,Adult Social Care,A0764,Assisted Living Centre,A40920,Purchase of Equipment,30006878,22/04/2022,202202,"1,030.50",135470,Herida Healthcare Ltd
Adult Services,Revenue Budgets,Adult Services,Adult Social Care,A0764,Assisted Living Centre,A40080,Health & Safety Equipment,30011716,27/04/2022,202202,906,102678,Direct Healthcare
Adult Services,Revenue Budgets,Adult Services,Adult Social Care,A0764,Assisted Living Centre,A40920,Purchase of Equipment,30007753,03/05/2022,202202,385,146226,First Choice Mobility Ltd
Adult Services,Revenue Budgets,Adult Services,Adult Social Care,A0764,Assisted Living Centre,A40920,Purchase of Equipment,30006214,05/05/2022,202202,699.95,102678,Direct Healthcare
Adult Services,Revenue Budgets,Adult Services,Adult Social Care,A0764,Assisted Living Centre,A40080,Health & Safety Equipment,30011813,05/05/2022,202202,"1,348.60",101134,The Helping Hand Company (Ledbury) Ltd
Adult Services,Revenue Budgets,Adult Services,Adult Social Care,A0764,Assisted Living Centre,A40080,Health & Safety Equipment,30007757,11/05/2022,202202,950,101792,Viking Hardware Ltd
Adult Services,Revenue Budgets,Adult Services,Adult Social Care,A0764,Assisted Living Centre,A40080,Health & Safety Equipment,30007757,11/05/2022,202202,950,101792,Viking Hardware Ltd
Adult Services,Revenue Budgets,Adult Services,Adult Social Care,A0764,Assisted Living Centre,A40080,Health & Safety Equipment,30008036,16/05/2022,202202,703.8,126914,Joerns Healthcare Ltd
Adult Services,Revenue Budgets,Adult Services,Adult Social Care,A0764,Assisted Living Centre,A40080,Health & Safety Equipment,30010354,18/05/2022,202202,"9,143.13",143385,Safespaces (Cornholme) Ltd
Adult Services,Revenue Budgets,Adult Services,Adult Social Care,A0764,Assisted Living Centre,A40920,Purchase of Equipment,30009681,19/05/2022,202202,590,139266,Frontier Therapeutics
Adult Services,Revenue Budgets,Adult Services,Adult Social Care,A0764,Assisted Living Centre,A40920,Purchase of Equipment,30009681,19/05/2022,202202,"1,700.00",139266,Frontier Therapeutics
Asc - Care Trust Plus,Revenue Budgets,Asc - Care Trust Plus,Ld Direct Payment Scheme,A0115,Dps Learning Disability,A57215,Domicilary Care Direct Payment,30010969,26/05/2022,202202,481.25,Redacted Personal Information,Redacted Personal Information
Assistant Chief Executive,Revenue Budgets,Resources,Elections Team,A0219,Elections,A22005,Building Rents,30006706,05/03/2022,202202,973.72,105081,Mobile Mini Uk Ltd
Assistant Chief Executive,Revenue Budgets,Resources,Elections Team,A0219,Elections,A22005,Building Rents,30006531,06/03/2022,202202,951.72,105081,Mobile Mini Uk Ltd
Assistant Chief Executive,Revenue Budgets,Resources,Elections Team,A0219,Elections,A22005,Building Rents,30006800,09/03/2022,202202,973.72,105081,Mobile Mini Uk Ltd
Assistant Chief Executive,Revenue Budgets,Resources,Elections Team,A0218,Electoral Registration,A40100,Books,30005589,01/04/2022,202202,314,110059,Thomson Reuters
Assistant Chief Executive,Revenue Budgets,Resources,Assistant Chief Executive,A0770,Dem Improvement And Engagement,A56000,Other Establishments,30012086,21/04/2022,202202,"12,500.00",121549,Nhs North East Lincolnshire Ccg
Assistant Chief Executive,Revenue Budgets,Resources,Elections Team,A0218,Electoral Registration,A49105,Other Supplies & Services,30005593,25/04/2022,202202,539.52,105163,Twofold Mailing Ltd
Assistant Chief Executive,Revenue Budgets,Resources,Elections Team,A0218,Electoral Registration,A45015,Postages,30006924,29/04/2022,202202,"9,324.38",101082,Royal Mail Group Plc
Assistant Chief Executive,Revenue Budgets,Resources,Elections Team,A0219,Elections,A43010,Printing,30006735,30/04/2022,202202,"13,876.29",103724,Print Image Network Ltd
Assistant Chief Executive,Revenue Budgets,Resources,Elections Team,A0219,Elections,A43010,Printing,30006741,30/04/2022,202202,"11,568.40",103724,Print Image Network Ltd
Assistant Chief Executive,Revenue Budgets,Resources,Elections Team,A0219,Elections,A22005,Building Rents,30006096,04/05/2022,202202,"2,918.72",105081,Mobile Mini Uk Ltd
Assistant Chief Executive,Revenue Budgets,Resources,Elections Team,A0219,Elections,A22005,Building Rents,30006541,06/05/2022,202202,939.72,105081,Mobile Mini Uk Ltd
Assistant Chief Executive,Revenue Budgets,Resources,Elections Team,A0219,Elections,A22005,Building Rents,30006703,09/05/2022,202202,713.72,105081,Mobile Mini Uk Ltd
Assistant Chief Executive,Revenue Budgets,Resources,Elections Team,A0219,Elections,A49105,Other Supplies & Services,30006753,09/05/2022,202202,"13,420.76",100811,W R Cullum
Assistant Chief Executive,Revenue Budgets,Resources,Elections Team,A0219,Elections,A45015,Postages,30009667,09/05/2022,202202,"5,940.68",101082,Royal Mail Group Plc
Assistant Chief Executive,Revenue Budgets,Resources,Elections Team,A0219,Elections,A49105,Other Supplies & Services,30010473,10/05/2022,202202,957.06,102398,Speedy Asset Services Ltd
Assistant Chief Executive,Revenue Budgets,Resources,Elections Team,A0219,Elections,A45015,Postages,30009659,16/05/2022,202202,"1,536.68",101082,Royal Mail Group Plc
Assistant Chief Executive,Revenue Budgets,Resources,Emergency Planning,A1845,Household Support Fund,A47006,Contributions - Communities,30011056,23/05/2022,202202,256.95,128894,Navigo Health And Social Care Cic
Assistant Chief Executive,Revenue Budgets,Resources,Emergency Planning,A1845,Household Support Fund,A47006,Contributions - Communities,30011060,23/05/2022,202202,"1,798.65",126893,Centre4 Limited
Assistant Chief Executive,Revenue Budgets,Resources,Emergency Planning,A1845,Household Support Fund,A47006,Contributions - Communities,30011063,23/05/2022,202202,728,102869,Foresight Nel Ltd
Assistant Chief Executive,Revenue Budgets,Resources,Emergency Planning,A1845,Household Support Fund,A47006,Contributions - Communities,30011065,23/05/2022,202202,428.25,1000967,Standguide Limited
Deputy s151,Revenue Budgets,Resources,Local Taxation & Benefits - Shared,A0187,Debt Collection,A49053,Debt Recovery Costs,30001097,31/12/2021,202202,"-1,086.10",101373,Rossendales Ltd
Deputy s151,Revenue Budgets,Resources,Local Taxation & Benefits - Shared,A0187,Debt Collection,A49053,Debt Recovery Costs,30001097,31/12/2021,202202,"1,086.10",101373,Rossendales Ltd
Deputy s151,Revenue Budgets,Resources,Local Taxation & Benefits - Shared,A0184,Control & Monitoring,A45015,Postages,30006897,28/01/2022,202202,"4,239.10",102314,Capita Business Services Ltd
Deputy s151,Revenue Budgets,Resources,Benefit Payments & Subsidy,A0200,Benefits Payments A/C,A49105,Other Supplies & Services,30007763,21/02/2022,202202,"114,240.00",1000658,Department for Work and Pension
Deputy s151,Revenue Budgets,Resources,Local Taxation & Benefits - Shared,A0184,Control & Monitoring,A45015,Postages,30006896,28/02/2022,202202,"2,206.75",102314,Capita Business Services Ltd
Deputy s151,Revenue Budgets,Resources,Accountancy,A1837,Humber Freeport,A44065,Consultancy Services,30006937,31/03/2022,202202,"2,790.00",100785,Solace In Business
Deputy s151,Revenue Budgets,Resources,Local Taxation & Benefits - Shared,A0184,Control & Monitoring,A45015,Postages,30006910,29/04/2022,202202,"3,697.40",102314,Capita Business Services Ltd
Deputy s151,Revenue Budgets,Resources,Local Taxation & Benefits - Shared,A0187,Debt Collection,A49053,Debt Recovery Costs,30006695,30/04/2022,202202,"2,700.00",139357,Experian Ltd
Deputy s151,Revenue Budgets,Resources,Accountancy,A1837,Humber Freeport,A44065,Consultancy Services,30009612,30/04/2022,202202,"1,372.50",100785,Solace In Business
Deputy s151,Revenue Budgets,Resources,Local Taxation & Benefits - Shared,A0187,Debt Collection,A49053,Debt Recovery Costs,30006643,04/05/2022,202202,"1,629.70",109470,Wilkin Chapman Llp Solicitors
Deputy s151,Revenue Budgets,Resources,Local Taxation & Benefits - Shared,A0184,Control & Monitoring,A45040,IT Software Purchase,30007529,11/05/2022,202202,"11,057.74",101841,Nec Software Solutions Uk Ltd
Deputy s151,Revenue Budgets,Resources,Accountancy,A0235,Audit Commission Fees,A56000,Other Establishments,30010018,12/05/2022,202202,"3,000.00",141538,Mazars Llp
Deputy s151,Revenue Budgets,Resources,Accountancy,A0235,Audit Commission Fees,A56000,Other Establishments,30010020,12/05/2022,202202,"9,100.00",141538,Mazars Llp
Deputy s151,Revenue Budgets,Resources,Benefit Payments & Subsidy,A0200,Benefits Payments A/C,A91136,Expenditure Recovery,30007729,17/05/2022,202202,902.9,Redacted Personal Information,Redacted Personal Information
Deputy s151,Revenue Budgets,Resources,Benefit Payments & Subsidy,A0200,Benefits Payments A/C,A45040,IT Software Purchase,30010637,23/05/2022,202202,"2,075.00",101841,Nec Software Solutions Uk Ltd
Director Childrens Services,Revenue Budgets,Childrens Services,Director Children & Fam Serv,A1847,Recovery Plan,A11015,Other Agency Staff,30003130,05/04/2022,202202,"1,964.70",146503,Attenti Consulting
Director Childrens Services,Revenue Budgets,Childrens Services,Director Children & Fam Serv,A1847,Recovery Plan,A11015,Other Agency Staff,30008977,18/05/2022,202202,"1,181.48",146503,Attenti Consulting
Director Childrens Services,Revenue Budgets,Childrens Services,Director Children & Fam Serv,A1847,Recovery Plan,A11015,Other Agency Staff,30008982,18/05/2022,202202,"1,964.70",146503,Attenti Consulting
Director Childrens Services,Revenue Budgets,Childrens Services,Budget Envelope Challenges,A1416,Services Ceased,A49105,Other Supplies & Services,30012128,23/05/2022,202202,"25,733.15",145442,Nhs Pensions
Director Childrens Services,Revenue Budgets,Childrens Services,Director Children & Fam Serv,A1847,Recovery Plan,A11015,Other Agency Staff,30011136,25/05/2022,202202,"1,964.70",146503,Attenti Consulting
Director Childrens Services,Revenue Budgets,Childrens Services,Director Children & Fam Serv,A1847,Recovery Plan,A11015,Other Agency Staff,30012187,31/05/2022,202202,"1,964.70",146503,Attenti Consulting
Education and Inclusion,Revenue Budgets,Childrens Services,Sen/Inclusion,A1783,Top-Up Non-Maintained & Indepe,A52005,Payments to Other Local Authorities,30012045,11/11/2021,202202,"-9,710.17",1000489,Acorn Care & Education Ltd (Sales)
Education and Inclusion,Revenue Budgets,Childrens Services,Sen/Inclusion,A1783,Top-Up Non-Maintained & Indepe,A52005,Payments to Other Local Authorities,30011808,12/11/2021,202202,"9,962.63",1000489,Acorn Care & Education Ltd (Sales)
Education and Inclusion,Revenue Budgets,Childrens Services,Sen/Inclusion,A1783,Top-Up Non-Maintained & Indepe,A52005,Payments to Other Local Authorities,30012035,12/11/2021,202202,"9,641.26",1000489,Acorn Care & Education Ltd (Sales)
Education and Inclusion,Revenue Budgets,Childrens Services,Sen/Inclusion,A1783,Top-Up Non-Maintained & Indepe,A52005,Payments to Other Local Authorities,30012037,12/11/2021,202202,"9,962.63",1000489,Acorn Care & Education Ltd (Sales)
Education and Inclusion,Revenue Budgets,Childrens Services,Education Transport,A0254,Home To School Transport Sen,A32010,Contract Hire Scheme,30009760,19/12/2021,202202,840,100546,Links Taxis
Education and Inclusion,Revenue Budgets,Childrens Services,Sen/Inclusion,A1783,Top-Up Non-Maintained & Indepe,A52005,Payments to Other Local Authorities,30010367,01/01/2022,202202,"3,415.50",1000733,Abbey Care and Eduation Limited
Education and Inclusion,Revenue Budgets,Childrens Services,Sen/Inclusion,A1783,Top-Up Non-Maintained & Indepe,A52005,Payments to Other Local Authorities,30012030,21/01/2022,202202,"9,962.63",1000489,Acorn Care & Education Ltd (Sales)
Education and Inclusion,Revenue Budgets,Childrens Services,Education Transport,A0254,Home To School Transport Sen,A32010,Contract Hire Scheme,30009663,31/01/2022,202202,"1,764.00",100546,Links Taxis
Education and Inclusion,Revenue Budgets,Childrens Services,Sen/Inclusion,A1783,Top-Up Non-Maintained & Indepe,A52005,Payments to Other Local Authorities,30010344,01/02/2022,202202,"3,415.50",1000733,Abbey Care and Eduation Limited
Education and Inclusion,Revenue Budgets,Childrens Services,Sen/Inclusion,A1563,Top Up Funding Post 16,A56000,Other Establishments,30006642,17/02/2022,202202,"19,057.22",144120,Learning4life-Gy-Cic
Education and Inclusion,Revenue Budgets,Childrens Services,Sen/Inclusion,A0377,Sendiass,A49105,Other Supplies & Services,30008835,25/02/2022,202202,"5,374.00",101050,Barnardo Services Ltd
Education and Inclusion,Revenue Budgets,Childrens Services,Sen/Inclusion,A0277,Ap And Other High Needs,A49105,Other Supplies & Services,30011775,27/02/2022,202202,780,138704,Motorvation Training Ltd
Education and Inclusion,Revenue Budgets,Childrens Services,Sen/Inclusion,A1565,Top Up Funding Academies & Fre,A49105,Other Supplies & Services,30006487,28/02/2022,202202,"2,180.85",101229,Rainbow Corner Day Nursery
Education and Inclusion,Revenue Budgets,Childrens Services,Sen/Inclusion,A1783,Top-Up Non-Maintained & Indepe,A52005,Payments to Other Local Authorities,30010022,01/03/2022,202202,"3,415.50",1000733,Abbey Care and Eduation Limited
Education and Inclusion,Revenue Budgets,Childrens Services,Sen/Inclusion,A1783,Top-Up Non-Maintained & Indepe,A49105,Other Supplies & Services,30009661,02/03/2022,202202,"54,890.00",109683,Demeter House (England) Ltd
Education and Inclusion,Revenue Budgets,Childrens Services,Sen/Inclusion,A1783,Top-Up Non-Maintained & Indepe,A52005,Payments to Other Local Authorities,30011817,11/03/2022,202202,"9,962.63",1000489,Acorn Care & Education Ltd (Sales)
Education and Inclusion,Revenue Budgets,Childrens Services,Sen/Inclusion,A1565,Top Up Funding Academies & Fre,A48900,Contingency Reserve,30010583,18/03/2022,202202,"16,743.43",107472,The Cambridge Park Academy
Education and Inclusion,Revenue Budgets,Childrens Services,Sen/Inclusion,A1565,Top Up Funding Academies & Fre,A48900,Contingency Reserve,30010583,18/03/2022,202202,"50,473.68",107472,The Cambridge Park Academy
Education and Inclusion,Revenue Budgets,Childrens Services,Pupil Support Safeguard/Wellbeing,A0513,Lac Education,A60010,Tuition &/or Board Fees,30010972,30/03/2022,202202,350,Redacted Personal Information,Redacted Personal Information
Education and Inclusion,Revenue Budgets,Childrens Services,Education Transport,A0247,Post 16 Sen,A32010,Contract Hire Scheme,30006489,31/03/2022,202202,"1,248.20",1000227,Mrs Sandra Delatouche
Education and Inclusion,Revenue Budgets,Childrens Services,Sen/Inclusion,A1565,Top Up Funding Academies & Fre,A49105,Other Supplies & Services,30006734,31/03/2022,202202,"1,265.00",146662,Targeted Provision Ltd
Education and Inclusion,Revenue Budgets,Childrens Services,Sen/Inclusion,A1565,Top Up Funding Academies & Fre,A49105,Other Supplies & Services,30006742,31/03/2022,202202,"1,722.50",146662,Targeted Provision Ltd
Education and Inclusion,Revenue Budgets,Childrens Services,Sen/Inclusion,A1565,Top Up Funding Academies & Fre,A49105,Other Supplies & Services,30006746,31/03/2022,202202,"2,535.00",146662,Targeted Provision Ltd
Education and Inclusion,Revenue Budgets,Childrens Services,Sen/Inclusion,A1565,Top Up Funding Academies & Fre,A49105,Other Supplies & Services,30006751,31/03/2022,202202,585,146662,Targeted Provision Ltd
Education and Inclusion,Revenue Budgets,Childrens Services,Sen/Inclusion,A1565,Top Up Funding Academies & Fre,A49105,Other Supplies & Services,30006754,31/03/2022,202202,260,146662,Targeted Provision Ltd
Education and Inclusion,Revenue Budgets,Childrens Services,Sen/Inclusion,A1565,Top Up Funding Academies & Fre,A49105,Other Supplies & Services,30006798,31/03/2022,202202,"2,760.00",146662,Targeted Provision Ltd
Education and Inclusion,Revenue Budgets,Childrens Services,Sen/Inclusion,A1565,Top Up Funding Academies & Fre,A49105,Other Supplies & Services,30006799,31/03/2022,202202,550,146662,Targeted Provision Ltd
Education and Inclusion,Revenue Budgets,Childrens Services,Sen/Inclusion,A1784,Other La Top-Up,A52005,Payments to Other Local Authorities,30006806,31/03/2022,202202,"3,113.80",145178,Isle Education Trust
Education and Inclusion,Revenue Budgets,Childrens Services,Sen/Inclusion,A1565,Top Up Funding Academies & Fre,A49105,Other Supplies & Services,30008805,31/03/2022,202202,520,146662,Targeted Provision Ltd
Education and Inclusion,Revenue Budgets,Childrens Services,Sen/Inclusion,A1565,Top Up Funding Academies & Fre,A49105,Other Supplies & Services,30008805,31/03/2022,202202,585,146662,Targeted Provision Ltd
Education and Inclusion,Revenue Budgets,Childrens Services,Sen/Inclusion,A1783,Top-Up Non-Maintained & Indepe,A52005,Payments to Other Local Authorities,30012032,31/03/2022,202202,"1,238.58",148279,Acorn Care & Education Ltd (Sales)
Education and Inclusion,Revenue Budgets,Childrens Services,Education Transport,A0254,Home To School Transport Sen,A32020,Home to School Transport,30005916,01/04/2022,202202,640,141297,Smt (Lincs) Enterprises Ltd
Education and Inclusion,Revenue Budgets,Childrens Services,Education Transport,A0254,Home To School Transport Sen,A32020,Home to School Transport,30005918,01/04/2022,202202,360,141297,Smt (Lincs) Enterprises Ltd
Education and Inclusion,Revenue Budgets,Childrens Services,Education Transport,A0254,Home To School Transport Sen,A32020,Home to School Transport,30005919,01/04/2022,202202,440,141297,Smt (Lincs) Enterprises Ltd
Education and Inclusion,Revenue Budgets,Childrens Services,Education Transport,A0254,Home To School Transport Sen,A32020,Home to School Transport,30005938,01/04/2022,202202,960,141297,Smt (Lincs) Enterprises Ltd
Education and Inclusion,Revenue Budgets,Childrens Services,Education Transport,A0254,Home To School Transport Sen,A32020,Home to School Transport,30005942,01/04/2022,202202,495,141297,Smt (Lincs) Enterprises Ltd
Education and Inclusion,Revenue Budgets,Childrens Services,Education Transport,A0254,Home To School Transport Sen,A32020,Home to School Transport,30006022,01/04/2022,202202,858,141297,Smt (Lincs) Enterprises Ltd
Education and Inclusion,Revenue Budgets,Childrens Services,Education Transport,A0254,Home To School Transport Sen,A32020,Home to School Transport,30006024,01/04/2022,202202,560,141297,Smt (Lincs) Enterprises Ltd
Education and Inclusion,Revenue Budgets,Childrens Services,Education Transport,A0248,Exceptional Circumstances,A32020,Home to School Transport,30006025,01/04/2022,202202,390,141297,Smt (Lincs) Enterprises Ltd
Education and Inclusion,Revenue Budgets,Childrens Services,Education Transport,A0254,Home To School Transport Sen,A32020,Home to School Transport,30006025,01/04/2022,202202,585,141297,Smt (Lincs) Enterprises Ltd
Education and Inclusion,Revenue Budgets,Childrens Services,Education Transport,A0254,Home To School Transport Sen,A32020,Home to School Transport,30006026,01/04/2022,202202,"1,285.75",141297,Smt (Lincs) Enterprises Ltd
Education and Inclusion,Revenue Budgets,Childrens Services,Education Transport,A0254,Home To School Transport Sen,A32020,Home to School Transport,30006027,01/04/2022,202202,384,141297,Smt (Lincs) Enterprises Ltd
Education and Inclusion,Revenue Budgets,Childrens Services,Education Transport,A0254,Home To School Transport Sen,A32020,Home to School Transport,30006029,01/04/2022,202202,320,141297,Smt (Lincs) Enterprises Ltd
Education and Inclusion,Revenue Budgets,Childrens Services,Education Transport,A0254,Home To School Transport Sen,A32020,Home to School Transport,30006030,01/04/2022,202202,"1,210.00",141297,Smt (Lincs) Enterprises Ltd
Education and Inclusion,Revenue Budgets,Childrens Services,Education Transport,A0254,Home To School Transport Sen,A32020,Home to School Transport,30006031,01/04/2022,202202,720,141297,Smt (Lincs) Enterprises Ltd
Education and Inclusion,Revenue Budgets,Childrens Services,Education Transport,A0254,Home To School Transport Sen,A32020,Home to School Transport,30006492,01/04/2022,202202,550,141297,Smt (Lincs) Enterprises Ltd
Education and Inclusion,Revenue Budgets,Childrens Services,Education Transport,A0254,Home To School Transport Sen,A32020,Home to School Transport,30006494,01/04/2022,202202,280,141297,Smt (Lincs) Enterprises Ltd
Education and Inclusion,Revenue Budgets,Childrens Services,Education Transport,A0254,Home To School Transport Sen,A32020,Home to School Transport,30006496,01/04/2022,202202,400,141297,Smt (Lincs) Enterprises Ltd
Education and Inclusion,Revenue Budgets,Childrens Services,Education Transport,A0254,Home To School Transport Sen,A32020,Home to School Transport,30006499,01/04/2022,202202,706.5,141297,Smt (Lincs) Enterprises Ltd
Education and Inclusion,Revenue Budgets,Childrens Services,Education Transport,A0254,Home To School Transport Sen,A32020,Home to School Transport,30006501,01/04/2022,202202,288,141297,Smt (Lincs) Enterprises Ltd
Education and Inclusion,Revenue Budgets,Childrens Services,Education Transport,A0249,Excluded And Ap Transport,A32020,Home to School Transport,30006502,01/04/2022,202202,405,141297,Smt (Lincs) Enterprises Ltd
Education and Inclusion,Revenue Budgets,Childrens Services,Education Transport,A0249,Excluded And Ap Transport,A32020,Home to School Transport,30006505,01/04/2022,202202,"1,395.00",141297,Smt (Lincs) Enterprises Ltd
Education and Inclusion,Revenue Budgets,Childrens Services,Education Transport,A0254,Home To School Transport Sen,A32020,Home to School Transport,30006506,01/04/2022,202202,320,141297,Smt (Lincs) Enterprises Ltd
Education and Inclusion,Revenue Budgets,Childrens Services,Education Transport,A0254,Home To School Transport Sen,A32020,Home to School Transport,30006532,01/04/2022,202202,"1,248.00",141297,Smt (Lincs) Enterprises Ltd
Education and Inclusion,Revenue Budgets,Childrens Services,Education Transport,A0254,Home To School Transport Sen,A32020,Home to School Transport,30006533,01/04/2022,202202,720,141297,Smt (Lincs) Enterprises Ltd
Education and Inclusion,Revenue Budgets,Childrens Services,Education Transport,A0249,Excluded And Ap Transport,A32020,Home to School Transport,30006536,01/04/2022,202202,324,141297,Smt (Lincs) Enterprises Ltd
Education and Inclusion,Revenue Budgets,Childrens Services,Education Transport,A0254,Home To School Transport Sen,A32020,Home to School Transport,30006538,01/04/2022,202202,630,141297,Smt (Lincs) Enterprises Ltd
Education and Inclusion,Revenue Budgets,Childrens Services,Education Transport,A0254,Home To School Transport Sen,A32020,Home to School Transport,30006542,01/04/2022,202202,800,141297,Smt (Lincs) Enterprises Ltd
Education and Inclusion,Revenue Budgets,Childrens Services,Education Transport,A0254,Home To School Transport Sen,A32020,Home to School Transport,30006543,01/04/2022,202202,528,141297,Smt (Lincs) Enterprises Ltd
Education and Inclusion,Revenue Budgets,Childrens Services,Education Transport,A0254,Home To School Transport Sen,A32020,Home to School Transport,30006554,01/04/2022,202202,600,141297,Smt (Lincs) Enterprises Ltd
Education and Inclusion,Revenue Budgets,Childrens Services,Education Transport,A0254,Home To School Transport Sen,A32020,Home to School Transport,30006558,01/04/2022,202202,770,141297,Smt (Lincs) Enterprises Ltd
Education and Inclusion,Revenue Budgets,Childrens Services,Education Transport,A0254,Home To School Transport Sen,A32020,Home to School Transport,30006562,01/04/2022,202202,731.5,141297,Smt (Lincs) Enterprises Ltd
Education and Inclusion,Revenue Budgets,Childrens Services,Education Transport,A0254,Home To School Transport Sen,A32020,Home to School Transport,30006569,01/04/2022,202202,720,141297,Smt (Lincs) Enterprises Ltd
Education and Inclusion,Revenue Budgets,Childrens Services,Sen/Inclusion,A1563,Top Up Funding Post 16,A56000,Other Establishments,30007393,01/04/2022,202202,"4,961.33",101268,Doncaster Deaf Trust
Education and Inclusion,Revenue Budgets,Childrens Services,Sen/Inclusion,A1783,Top-Up Non-Maintained & Indepe,A56000,Other Establishments,30009394,01/04/2022,202202,"3,415.50",1000733,Abbey Care and Eduation Limited
Education and Inclusion,Revenue Budgets,Childrens Services,Sen/Inclusion,A1563,Top Up Funding Post 16,A56000,Other Establishments,30011088,01/04/2022,202202,"7,173.90",101268,Doncaster Deaf Trust
Education and Inclusion,Revenue Budgets,Childrens Services,Sen/Inclusion,A1783,Top-Up Non-Maintained & Indepe,A52005,Payments to Other Local Authorities,30012015,01/04/2022,202202,"11,751.05",101268,Doncaster Deaf Trust
Education and Inclusion,Revenue Budgets,Childrens Services,Sen/Inclusion,A1783,Top-Up Non-Maintained & Indepe,A52005,Payments to Other Local Authorities,30006807,04/04/2022,202202,"59,553.75",109683,Demeter House (England) Ltd
Education and Inclusion,Revenue Budgets,Childrens Services,Sen/Inclusion,A1563,Top Up Funding Post 16,A52005,Payments to Other Local Authorities,30006804,05/04/2022,202202,"1,355.00",101728,Community Press Office Ltd
Education and Inclusion,Capital Spend,Childrens Services,Cap Alloc Devolved To Schools,Y0803,Coomb Briggs Primary Dfcg,C01009,"New Construction, conversion & renovation",30010686,11/04/2022,202202,"4,907.00",1000897,Food Sector Construction Ltd t/a Ludaflors
Education and Inclusion,Revenue Budgets,Childrens Services,Sen/Inclusion,A1783,Top-Up Non-Maintained & Indepe,A52005,Payments to Other Local Authorities,30006485,20/04/2022,202202,"13,156.67",100940,St James School
Education and Inclusion,Revenue Budgets,Childrens Services,Sen/Inclusion,A1715,Early Years Inclusion Fund,A47008,Contributions - Other,30007681,22/04/2022,202202,570,100889,St Martins Preparatory School
Education and Inclusion,Revenue Budgets,Childrens Services,Sen/Inclusion,A1565,Top Up Funding Academies & Fre,A49105,Other Supplies & Services,30009972,23/04/2022,202202,"1,417.16",1000900,Currys Group Limited   T/a Currys Business
Education and Inclusion,Revenue Budgets,Childrens Services,Education Transport,A0254,Home To School Transport Sen,A32020,Home to School Transport,30006023,26/04/2022,202202,650,141297,Smt (Lincs) Enterprises Ltd
Education and Inclusion,Revenue Budgets,Childrens Services,Sen/Inclusion,A1784,Other La Top-Up,A52005,Payments to Other Local Authorities,30007852,27/04/2022,202202,"2,652.66",129673,Keelby Primary Academy
Education and Inclusion,Revenue Budgets,Childrens Services,Sen/Inclusion,A1565,Top Up Funding Academies & Fre,A49105,Other Supplies & Services,30007862,27/04/2022,202202,"1,581.00",106613,Community Accord
Education and Inclusion,Revenue Budgets,Childrens Services,Sen/Inclusion,A1563,Top Up Funding Post 16,A56000,Other Establishments,30009075,27/04/2022,202202,"12,575.00",107439,North Lindsey College
Education and Inclusion,Revenue Budgets,Childrens Services,Education Transport,A0254,Home To School Transport Sen,A32020,Home to School Transport,30008168,29/04/2022,202202,595,149599,S&B Private Hire
Education and Inclusion,Revenue Budgets,Childrens Services,Sen/Inclusion,A1783,Top-Up Non-Maintained & Indepe,A52005,Payments to Other Local Authorities,30008808,29/04/2022,202202,400,1000106,Gravity Red Inspires
Education and Inclusion,Revenue Budgets,Childrens Services,Sen/Inclusion,A0271,Sen Team Admin,A52005,Payments to Other Local Authorities,30008818,29/04/2022,202202,900,142906,R Y Fidler
Education and Inclusion,Revenue Budgets,Childrens Services,Sen/Inclusion,A1783,Top-Up Non-Maintained & Indepe,A52005,Payments to Other Local Authorities,30008819,29/04/2022,202202,500,1000106,Gravity Red Inspires
Education and Inclusion,Revenue Budgets,Childrens Services,Sen/Inclusion,A1783,Top-Up Non-Maintained & Indepe,A52005,Payments to Other Local Authorities,30009077,29/04/2022,202202,"21,395.16",128600,Best Futures Community Interest Company
Education and Inclusion,Revenue Budgets,Childrens Services,Pupil Support Safeguard/Wellbeing,A0513,Lac Education,A60010,Tuition &/or Board Fees,30009615,29/04/2022,202202,334,147507,Educla
Education and Inclusion,Revenue Budgets,Childrens Services,Employability and Skills,A1723,"Youth Careers, Info & Guidance",A47005,"Grants, Contributions & Donations",30009654,29/04/2022,202202,"1,821.48",145897,Lincolnshire County Council
Education and Inclusion,Revenue Budgets,Childrens Services,Education Transport,A0254,Home To School Transport Sen,A32020,Home to School Transport,30006056,30/04/2022,202202,"1,106.00",102124,Minicabs Cleethorpes (Lincs) Ltd
Education and Inclusion,Revenue Budgets,Childrens Services,Education Transport,A0252,Home To Sch Transport Pri-Grim,A32020,Home to School Transport,30006057,30/04/2022,202202,520,102124,Minicabs Cleethorpes (Lincs) Ltd
Education and Inclusion,Revenue Budgets,Childrens Services,Education Transport,A0254,Home To School Transport Sen,A32020,Home to School Transport,30006058,30/04/2022,202202,540,102124,Minicabs Cleethorpes (Lincs) Ltd
Education and Inclusion,Revenue Budgets,Childrens Services,Education Transport,A0254,Home To School Transport Sen,A32020,Home to School Transport,30006060,30/04/2022,202202,650,102124,Minicabs Cleethorpes (Lincs) Ltd
Education and Inclusion,Revenue Budgets,Childrens Services,Sen/Inclusion,A1783,Top-Up Non-Maintained & Indepe,A52005,Payments to Other Local Authorities,30006185,30/04/2022,202202,"2,415.00",100754,The William Henry Smith School
Education and Inclusion,Revenue Budgets,Childrens Services,Sen/Inclusion,A1783,Top-Up Non-Maintained & Indepe,A52005,Payments to Other Local Authorities,30006188,30/04/2022,202202,"2,415.00",100754,The William Henry Smith School
Education and Inclusion,Revenue Budgets,Childrens Services,Sen/Inclusion,A1783,Top-Up Non-Maintained & Indepe,A52005,Payments to Other Local Authorities,30006190,30/04/2022,202202,"2,415.00",100754,The William Henry Smith School
Education and Inclusion,Revenue Budgets,Childrens Services,Sen/Inclusion,A1783,Top-Up Non-Maintained & Indepe,A52005,Payments to Other Local Authorities,30006192,30/04/2022,202202,"2,415.00",100754,The William Henry Smith School
Education and Inclusion,Revenue Budgets,Childrens Services,Sen/Inclusion,A1783,Top-Up Non-Maintained & Indepe,A52005,Payments to Other Local Authorities,30006194,30/04/2022,202202,"2,415.00",100754,The William Henry Smith School
Education and Inclusion,Revenue Budgets,Childrens Services,Sen/Inclusion,A1783,Top-Up Non-Maintained & Indepe,A52005,Payments to Other Local Authorities,30006197,30/04/2022,202202,"1,495.00",100754,The William Henry Smith School
Education and Inclusion,Revenue Budgets,Childrens Services,Sen/Inclusion,A1783,Top-Up Non-Maintained & Indepe,A52005,Payments to Other Local Authorities,30006198,30/04/2022,202202,920,100754,The William Henry Smith School
Education and Inclusion,Revenue Budgets,Childrens Services,Sen/Inclusion,A1783,Top-Up Non-Maintained & Indepe,A52005,Payments to Other Local Authorities,30006219,30/04/2022,202202,"2,415.00",100754,The William Henry Smith School
Education and Inclusion,Revenue Budgets,Childrens Services,Sen/Inclusion,A1783,Top-Up Non-Maintained & Indepe,A52005,Payments to Other Local Authorities,30006221,30/04/2022,202202,"2,415.00",100754,The William Henry Smith School
Education and Inclusion,Revenue Budgets,Childrens Services,Education Transport,A0254,Home To School Transport Sen,A32020,Home to School Transport,30006425,30/04/2022,202202,"1,680.00",102879,Pc Coaches Ltd
Education and Inclusion,Revenue Budgets,Childrens Services,Education Transport,A0247,Post 16 Sen,A32020,Home to School Transport,30006550,30/04/2022,202202,"1,518.00",141083,Drs Taxi Service
Education and Inclusion,Revenue Budgets,Childrens Services,Education Transport,A0254,Home To School Transport Sen,A32020,Home to School Transport,30006567,30/04/2022,202202,810,141083,Drs Taxi Service
Education and Inclusion,Revenue Budgets,Childrens Services,Education Transport,A0254,Home To School Transport Sen,A32020,Home to School Transport,30006640,30/04/2022,202202,"1,592.00",130777,Amvale Medical Transport Ltd
Education and Inclusion,Revenue Budgets,Childrens Services,Education Transport,A0254,Home To School Transport Sen,A32020,Home to School Transport,30006641,30/04/2022,202202,"3,000.00",130777,Amvale Medical Transport Ltd
Education and Inclusion,Revenue Budgets,Childrens Services,Education Transport,A0254,Home To School Transport Sen,A32020,Home to School Transport,30006688,30/04/2022,202202,"1,032.00",130777,Amvale Medical Transport Ltd
Education and Inclusion,Revenue Budgets,Childrens Services,Education Transport,A0254,Home To School Transport Sen,A32020,Home to School Transport,30006689,30/04/2022,202202,792,130777,Amvale Medical Transport Ltd
Education and Inclusion,Revenue Budgets,Childrens Services,Education Transport,A0254,Home To School Transport Sen,A32020,Home to School Transport,30006690,30/04/2022,202202,"1,112.00",130777,Amvale Medical Transport Ltd
Education and Inclusion,Revenue Budgets,Childrens Services,Education Transport,A0254,Home To School Transport Sen,A32020,Home to School Transport,30006691,30/04/2022,202202,"1,736.00",130777,Amvale Medical Transport Ltd
Education and Inclusion,Revenue Budgets,Childrens Services,Education Transport,A0254,Home To School Transport Sen,A32020,Home to School Transport,30006697,30/04/2022,202202,810,102124,Minicabs Cleethorpes (Lincs) Ltd
Education and Inclusion,Revenue Budgets,Childrens Services,Education Transport,A0254,Home To School Transport Sen,A32020,Home to School Transport,30006698,30/04/2022,202202,"1,172.00",130777,Amvale Medical Transport Ltd
Education and Inclusion,Revenue Budgets,Childrens Services,Education Transport,A0254,Home To School Transport Sen,A32020,Home to School Transport,30006783,30/04/2022,202202,"1,104.00",130777,Amvale Medical Transport Ltd
Education and Inclusion,Revenue Budgets,Childrens Services,Education Transport,A0254,Home To School Transport Sen,A32020,Home to School Transport,30006905,30/04/2022,202202,742,102124,Minicabs Cleethorpes (Lincs) Ltd
Education and Inclusion,Revenue Budgets,Childrens Services,Sen/Inclusion,A1784,Other La Top-Up,A52005,Payments to Other Local Authorities,30007843,30/04/2022,202202,"2,335.44",145178,Isle Education Trust
Education and Inclusion,Revenue Budgets,Childrens Services,Sen/Inclusion,A1563,Top Up Funding Post 16,A49105,Other Supplies & Services,30008790,30/04/2022,202202,275,146662,Targeted Provision Ltd
Education and Inclusion,Revenue Budgets,Childrens Services,Sen/Inclusion,A1565,Top Up Funding Academies & Fre,A49105,Other Supplies & Services,30008803,30/04/2022,202202,"1,040.00",146662,Targeted Provision Ltd
Education and Inclusion,Revenue Budgets,Childrens Services,Sen/Inclusion,A1565,Top Up Funding Academies & Fre,A49105,Other Supplies & Services,30008811,30/04/2022,202202,520,146662,Targeted Provision Ltd
Education and Inclusion,Revenue Budgets,Childrens Services,Sen/Inclusion,A1565,Top Up Funding Academies & Fre,A49105,Other Supplies & Services,30008817,30/04/2022,202202,495,146662,Targeted Provision Ltd
Education and Inclusion,Revenue Budgets,Childrens Services,Sen/Inclusion,A1565,Top Up Funding Academies & Fre,A49105,Other Supplies & Services,30008820,30/04/2022,202202,"1,320.00",146662,Targeted Provision Ltd
Education and Inclusion,Revenue Budgets,Childrens Services,Sen/Inclusion,A1565,Top Up Funding Academies & Fre,A49105,Other Supplies & Services,30008830,30/04/2022,202202,585,146662,Targeted Provision Ltd
Education and Inclusion,Revenue Budgets,Childrens Services,Sen/Inclusion,A1565,Top Up Funding Academies & Fre,A49105,Other Supplies & Services,30008834,30/04/2022,202202,910,146662,Targeted Provision Ltd
Education and Inclusion,Revenue Budgets,Childrens Services,Education Transport,A0254,Home To School Transport Sen,A32020,Home to School Transport,30009030,30/04/2022,202202,"1,058.00",101522,The Bus Run
Education and Inclusion,Revenue Budgets,Childrens Services,Education Transport,A0254,Home To School Transport Sen,A32020,Home to School Transport,30009645,30/04/2022,202202,270,100578,Coxons Cars Limited
Education and Inclusion,Revenue Budgets,Childrens Services,Sen/Inclusion,A1783,Top-Up Non-Maintained & Indepe,A56000,Other Establishments,30009603,01/05/2022,202202,"3,415.50",1000733,Abbey Care and Eduation Limited
Education and Inclusion,Revenue Budgets,Childrens Services,Sen/Inclusion,A1783,Top-Up Non-Maintained & Indepe,A52005,Payments to Other Local Authorities,30006522,02/05/2022,202202,"116,529.12",141244,Orchard Education Ltd
Education and Inclusion,Revenue Budgets,Childrens Services,Sen/Inclusion,A1563,Top Up Funding Post 16,A56000,Other Establishments,30008816,03/05/2022,202202,"4,240.00",101728,Community Press Office Ltd
Education and Inclusion,Revenue Budgets,Childrens Services,Sen/Inclusion,A1783,Top-Up Non-Maintained & Indepe,A52005,Payments to Other Local Authorities,30011992,03/05/2022,202202,"11,751.05",101268,Doncaster Deaf Trust
Education and Inclusion,Revenue Budgets,Childrens Services,Sen/Inclusion,A1563,Top Up Funding Post 16,A56000,Other Establishments,30011994,03/05/2022,202202,"7,173.90",101268,Doncaster Deaf Trust
Education and Inclusion,Revenue Budgets,Childrens Services,Pupil Support Safeguard/Wellbeing,A0513,Lac Education,A60010,Tuition &/or Board Fees,30006224,04/05/2022,202202,270,118819,Gl Education Group Ltd
Education and Inclusion,Revenue Budgets,Childrens Services,Education Transport,A0254,Home To School Transport Sen,A32020,Home to School Transport,30006303,05/05/2022,202202,575,101222,Aa Radio Cars Ltd
Education and Inclusion,Revenue Budgets,Childrens Services,Education Transport,A0247,Post 16 Sen,A32020,Home to School Transport,30006304,05/05/2022,202202,318,101222,Aa Radio Cars Ltd
Education and Inclusion,Revenue Budgets,Childrens Services,Education Transport,A0254,Home To School Transport Sen,A32020,Home to School Transport,30006304,05/05/2022,202202,318,101222,Aa Radio Cars Ltd
Education and Inclusion,Revenue Budgets,Childrens Services,Education Transport,A0254,Home To School Transport Sen,A32020,Home to School Transport,30006305,05/05/2022,202202,472,101222,Aa Radio Cars Ltd
Education and Inclusion,Revenue Budgets,Childrens Services,Education Transport,A0254,Home To School Transport Sen,A32020,Home to School Transport,30006306,05/05/2022,202202,352,101222,Aa Radio Cars Ltd
Education and Inclusion,Revenue Budgets,Childrens Services,Education Transport,A0254,Home To School Transport Sen,A32020,Home to School Transport,30006308,05/05/2022,202202,272,101222,Aa Radio Cars Ltd
Education and Inclusion,Revenue Budgets,Childrens Services,Education Transport,A0254,Home To School Transport Sen,A32020,Home to School Transport,30006309,05/05/2022,202202,728,101222,Aa Radio Cars Ltd
Education and Inclusion,Revenue Budgets,Childrens Services,Education Transport,A0247,Post 16 Sen,A32020,Home to School Transport,30006313,05/05/2022,202202,312,101222,Aa Radio Cars Ltd
Education and Inclusion,Revenue Budgets,Childrens Services,Education Transport,A0254,Home To School Transport Sen,A32020,Home to School Transport,30006314,05/05/2022,202202,520,101222,Aa Radio Cars Ltd
Education and Inclusion,Revenue Budgets,Childrens Services,Education Transport,A0254,Home To School Transport Sen,A32020,Home to School Transport,30006315,05/05/2022,202202,420,101222,Aa Radio Cars Ltd
Education and Inclusion,Revenue Budgets,Childrens Services,Sen/Inclusion,A0420,Sen Advisory Team,A40005,Equipment & Materials Learning,30006361,05/05/2022,202202,491.27,118819,Gl Education Group Ltd
Education and Inclusion,Revenue Budgets,Childrens Services,Attainment and Progress,A0595,Reynolds Cc Daycare,A44030,Provisions,30006636,05/05/2022,202202,"1,500.00",102576,Tesco Stores Limited
Education and Inclusion,Revenue Budgets,Childrens Services,Education Transport,A0254,Home To School Transport Sen,A40920,Purchase of Equipment,30008150,05/05/2022,202202,545,102467,The Windmill Special Needs Co Ltd
Education and Inclusion,Capital Spend,Childrens Services,Cap Alloc Devolved To Schools,Y0803,Coomb Briggs Primary Dfcg,C01009,"New Construction, conversion & renovation",30008636,05/05/2022,202202,"1,840.00",101144,Portlock Painting
Education and Inclusion,Revenue Budgets,Childrens Services,Pupil Support Safeguard/Wellbeing,A0513,Lac Education,A60010,Tuition &/or Board Fees,30009617,06/05/2022,202202,287.5,147507,Educla
Education and Inclusion,Revenue Budgets,Childrens Services,Education Transport,A0254,Home To School Transport Sen,A32010,Contract Hire Scheme,30009672,06/05/2022,202202,337.8,121524,Grimsby Minibuses Ltd
Education and Inclusion,Revenue Budgets,Childrens Services,Education Transport,A0254,Home To School Transport Sen,A32010,Contract Hire Scheme,30009678,06/05/2022,202202,"1,198.40",121524,Grimsby Minibuses Ltd
Education and Inclusion,Revenue Budgets,Childrens Services,Education Transport,A0254,Home To School Transport Sen,A32010,Contract Hire Scheme,30009680,06/05/2022,202202,782.4,121524,Grimsby Minibuses Ltd
Education and Inclusion,Revenue Budgets,Childrens Services,Education Transport,A0253,Home To Sch Transport Sec-Gy,A32010,Contract Hire Scheme,30009690,06/05/2022,202202,961.6,121524,Grimsby Minibuses Ltd
Education and Inclusion,Revenue Budgets,Childrens Services,Education Transport,A0254,Home To School Transport Sen,A32010,Contract Hire Scheme,30009751,06/05/2022,202202,"1,126.40",121524,Grimsby Minibuses Ltd
Education and Inclusion,Revenue Budgets,Childrens Services,Education Transport,A0254,Home To School Transport Sen,A32010,Contract Hire Scheme,30009765,06/05/2022,202202,972.8,121524,Grimsby Minibuses Ltd
Education and Inclusion,Revenue Budgets,Childrens Services,Education Transport,A0253,Home To Sch Transport Sec-Gy,A32020,Home to School Transport,30010974,06/05/2022,202202,"1,348.20",121524,Grimsby Minibuses Ltd
Education and Inclusion,Revenue Budgets,Childrens Services,Employability and Skills,A0423,Adult Info & Guidance,A16015,Staff Training Expenses,30007496,09/05/2022,202202,"2,100.00",1000340,The Growth Company Ltd
Education and Inclusion,Revenue Budgets,Childrens Services,Employability and Skills,A1642,Earning & Learning Mgt Support,A22005,Building Rents,30008721,09/05/2022,202202,"19,500.00",102869,Foresight Nel Ltd
Education and Inclusion,Revenue Budgets,Childrens Services,Sen/Inclusion,A1783,Top-Up Non-Maintained & Indepe,A52005,Payments to Other Local Authorities,30009067,09/05/2022,202202,"1,770.03",146355,Castles Education Llp
Education and Inclusion,Revenue Budgets,Childrens Services,Sen/Inclusion,A1783,Top-Up Non-Maintained & Indepe,A52005,Payments to Other Local Authorities,30009069,09/05/2022,202202,"1,500.03",146355,Castles Education Llp
Education and Inclusion,Revenue Budgets,Childrens Services,Sen/Inclusion,A1783,Top-Up Non-Maintained & Indepe,A52005,Payments to Other Local Authorities,30009071,09/05/2022,202202,"1,950.03",146355,Castles Education Llp
Education and Inclusion,Revenue Budgets,Childrens Services,Sen/Inclusion,A1783,Top-Up Non-Maintained & Indepe,A52005,Payments to Other Local Authorities,30009074,09/05/2022,202202,"1,500.03",146355,Castles Education Llp
Education and Inclusion,Revenue Budgets,Childrens Services,Sen/Inclusion,A1783,Top-Up Non-Maintained & Indepe,A52005,Payments to Other Local Authorities,30009076,09/05/2022,202202,"1,800.00",146355,Castles Education Llp
Education and Inclusion,Revenue Budgets,Childrens Services,Sen/Inclusion,A1783,Top-Up Non-Maintained & Indepe,A52005,Payments to Other Local Authorities,30009079,09/05/2022,202202,"1,500.03",146355,Castles Education Llp
Education and Inclusion,Revenue Budgets,Childrens Services,Sen/Inclusion,A1783,Top-Up Non-Maintained & Indepe,A52005,Payments to Other Local Authorities,30009799,09/05/2022,202202,"1,770.03",146355,Castles Education Llp
Education and Inclusion,Revenue Budgets,Childrens Services,Pupil Support Safeguard/Wellbeing,A0245,Schools Services,A49105,Other Supplies & Services,30007574,10/05/2022,202202,"1,919.31",144120,Learning4life-Gy-Cic
Education and Inclusion,Revenue Budgets,Childrens Services,Sen/Inclusion,A1784,Other La Top-Up,A52005,Payments to Other Local Authorities,30009070,10/05/2022,202202,"8,887.50",144120,Learning4life-Gy-Cic
Education and Inclusion,Revenue Budgets,Childrens Services,Pupil Support Safeguard/Wellbeing,A0513,Lac Education,A60010,Tuition &/or Board Fees,30009601,10/05/2022,202202,"1,462.50",144120,Learning4life-Gy-Cic
Education and Inclusion,Revenue Budgets,Childrens Services,Pupil Support Safeguard/Wellbeing,A0513,Lac Education,A60010,Tuition &/or Board Fees,30009605,10/05/2022,202202,"1,620.00",144120,Learning4life-Gy-Cic
Education and Inclusion,Revenue Budgets,Childrens Services,Sen/Inclusion,A1563,Top Up Funding Post 16,A56000,Other Establishments,30009791,10/05/2022,202202,"1,306.54",144120,Learning4life-Gy-Cic
Education and Inclusion,Revenue Budgets,Childrens Services,Sen/Inclusion,A1563,Top Up Funding Post 16,A56000,Other Establishments,30009797,10/05/2022,202202,"19,057.22",144120,Learning4life-Gy-Cic
Education and Inclusion,Revenue Budgets,Childrens Services,Sen/Inclusion,A0420,Sen Advisory Team,A40005,Equipment & Materials Learning,30010070,10/05/2022,202202,268,105547,Ann Arbor Publishers Ltd
Education and Inclusion,Revenue Budgets,Childrens Services,Sen/Inclusion,A0420,Sen Advisory Team,A40005,Equipment & Materials Learning,30010070,10/05/2022,202202,324,105547,Ann Arbor Publishers Ltd
Education and Inclusion,Revenue Budgets,Childrens Services,Education Transport,A0254,Home To School Transport Sen,A32020,Home to School Transport,30007611,11/05/2022,202202,820,101030,Amvale Limited
Education and Inclusion,Revenue Budgets,Childrens Services,Education Transport,A0254,Home To School Transport Sen,A32020,Home to School Transport,30007623,11/05/2022,202202,820,101030,Amvale Limited
Education and Inclusion,Revenue Budgets,Childrens Services,Sen/Inclusion,A1715,Early Years Inclusion Fund,A47008,Contributions - Other,30009728,12/05/2022,202202,456,101350,Wendover Pre-School
Education and Inclusion,Revenue Budgets,Childrens Services,Sen/Inclusion,A1715,Early Years Inclusion Fund,A47008,Contributions - Other,30009728,12/05/2022,202202,"1,140.00",101350,Wendover Pre-School
Education and Inclusion,Revenue Budgets,Childrens Services,Sen/Inclusion,A1715,Early Years Inclusion Fund,A47008,Contributions - Other,30009732,12/05/2022,202202,"1,140.00",121589,St Christophers Pre School
Education and Inclusion,Revenue Budgets,Childrens Services,Sen/Inclusion,A1715,Early Years Inclusion Fund,A47008,Contributions - Other,30009732,12/05/2022,202202,"1,368.00",121589,St Christophers Pre School
Education and Inclusion,Revenue Budgets,Childrens Services,Sen/Inclusion,A1715,Early Years Inclusion Fund,A47008,Contributions - Other,30009732,12/05/2022,202202,"1,368.00",121589,St Christophers Pre School
Education and Inclusion,Revenue Budgets,Childrens Services,Sen/Inclusion,A1715,Early Years Inclusion Fund,A47008,Contributions - Other,30009737,12/05/2022,202202,912,101420,Precious Times Childcare Services
Education and Inclusion,Revenue Budgets,Childrens Services,Sen/Inclusion,A1715,Early Years Inclusion Fund,A47008,Contributions - Other,30009737,12/05/2022,202202,"1,368.00",101420,Precious Times Childcare Services
Education and Inclusion,Revenue Budgets,Childrens Services,Sen/Inclusion,A1715,Early Years Inclusion Fund,A47008,Contributions - Other,30009737,12/05/2022,202202,"1,368.00",101420,Precious Times Childcare Services
Education and Inclusion,Revenue Budgets,Childrens Services,Sen/Inclusion,A1715,Early Years Inclusion Fund,A47008,Contributions - Other,30009737,12/05/2022,202202,"1,368.00",101420,Precious Times Childcare Services
Education and Inclusion,Revenue Budgets,Childrens Services,Sen/Inclusion,A1715,Early Years Inclusion Fund,A47008,Contributions - Other,30009737,12/05/2022,202202,"1,368.00",101420,Precious Times Childcare Services
Education and Inclusion,Revenue Budgets,Childrens Services,Sen/Inclusion,A1715,Early Years Inclusion Fund,A47008,Contributions - Other,30009749,12/05/2022,202202,"2,850.00",110066,St Joseph'S Rc Primary Academy
Education and Inclusion,Revenue Budgets,Childrens Services,Sen/Inclusion,A1565,Top Up Funding Academies & Fre,A49105,Other Supplies & Services,30009959,12/05/2022,202202,369.63,1000900,Currys Group Limited   T/a Currys Business
Education and Inclusion,Revenue Budgets,Childrens Services,Pupil Support Safeguard/Wellbeing,A0513,Lac Education,A60010,Tuition &/or Board Fees,30009611,13/05/2022,202202,335,147507,Educla
Education and Inclusion,Revenue Budgets,Childrens Services,Sen/Inclusion,A1565,Top Up Funding Academies & Fre,A16020,Staff Professional Membership Fees,30011998,13/05/2022,202202,"2,115.49",Redacted Personal Information,Redacted Personal Information
Education and Inclusion,Revenue Budgets,Childrens Services,Attainment and Progress,A0595,Reynolds Cc Daycare,A57115,Payments to Private Contractors,30009946,16/05/2022,202202,832,101042,Tulip Healthcare
Education and Inclusion,Capital Spend,Childrens Services,Cap Alloc Devolved To Schools,Y0803,Coomb Briggs Primary Dfcg,C01009,"New Construction, conversion & renovation",30009527,17/05/2022,202202,991.68,133267,Equans Services Ltd
Education and Inclusion,Revenue Budgets,Childrens Services,Sen/Inclusion,A1715,Early Years Inclusion Fund,A47008,Contributions - Other,30009730,17/05/2022,202202,"1,140.00",112852,Yarborough Academy
Education and Inclusion,Revenue Budgets,Childrens Services,Sen/Inclusion,A1715,Early Years Inclusion Fund,A47008,Contributions - Other,30009739,17/05/2022,202202,"1,140.00",101322,St Peters Children Centre
Education and Inclusion,Revenue Budgets,Childrens Services,Sen/Inclusion,A1715,Early Years Inclusion Fund,A47008,Contributions - Other,30009739,17/05/2022,202202,"1,425.00",101322,St Peters Children Centre
Education and Inclusion,Revenue Budgets,Childrens Services,Sen/Inclusion,A1715,Early Years Inclusion Fund,A47008,Contributions - Other,30009739,17/05/2022,202202,"2,850.00",101322,St Peters Children Centre
Education and Inclusion,Revenue Budgets,Childrens Services,Sen/Inclusion,A1715,Early Years Inclusion Fund,A47008,Contributions - Other,30009742,17/05/2022,202202,"1,140.00",127227,Welholme Academy
Education and Inclusion,Revenue Budgets,Childrens Services,Sen/Inclusion,A1715,Early Years Inclusion Fund,A47008,Contributions - Other,30009742,17/05/2022,202202,"1,140.00",127227,Welholme Academy
Education and Inclusion,Revenue Budgets,Childrens Services,Sen/Inclusion,A1715,Early Years Inclusion Fund,A47008,Contributions - Other,30009756,17/05/2022,202202,855,144718,Little Oaks Day Nursery
Education and Inclusion,Revenue Budgets,Childrens Services,Sen/Inclusion,A1715,Early Years Inclusion Fund,A47008,Contributions - Other,30009756,17/05/2022,202202,855,144718,Little Oaks Day Nursery
Education and Inclusion,Revenue Budgets,Childrens Services,Sen/Inclusion,A1715,Early Years Inclusion Fund,A47008,Contributions - Other,30009756,17/05/2022,202202,855,144718,Little Oaks Day Nursery
Education and Inclusion,Revenue Budgets,Childrens Services,Sen/Inclusion,A1715,Early Years Inclusion Fund,A47008,Contributions - Other,30009756,17/05/2022,202202,"1,710.00",144718,Little Oaks Day Nursery
Education and Inclusion,Revenue Budgets,Childrens Services,Sen/Inclusion,A1715,Early Years Inclusion Fund,A47008,Contributions - Other,30009762,17/05/2022,202202,570,102424,Wiz Kidz
Education and Inclusion,Revenue Budgets,Childrens Services,Sen/Inclusion,A1715,Early Years Inclusion Fund,A47008,Contributions - Other,30009762,17/05/2022,202202,"1,368.00",102424,Wiz Kidz
Education and Inclusion,Revenue Budgets,Childrens Services,Sen/Inclusion,A1715,Early Years Inclusion Fund,A47008,Contributions - Other,30009764,17/05/2022,202202,"1,368.00",101694,Butterflies Day Nursery
Education and Inclusion,Revenue Budgets,Childrens Services,Sen/Inclusion,A1565,Top Up Funding Academies & Fre,A47007,Contributions - Third Sector,42092694,19/05/2022,202202,"2,560.00",Redacted Personal Information,Redacted Personal Information
Education and Inclusion,Revenue Budgets,Childrens Services,Education Transport,A0253,Home To Sch Transport Sec-Gy,A32010,Contract Hire Scheme,30009676,23/05/2022,202202,"2,283.80",121524,Grimsby Minibuses Ltd
Education and Inclusion,Revenue Budgets,Childrens Services,Education Transport,A0254,Home To School Transport Sen,A32010,Contract Hire Scheme,30009683,23/05/2022,202202,"1,858.20",121524,Grimsby Minibuses Ltd
Education and Inclusion,Revenue Budgets,Childrens Services,Education Transport,A0254,Home To School Transport Sen,A32010,Contract Hire Scheme,30009688,23/05/2022,202202,"2,846.20",121524,Grimsby Minibuses Ltd
Education and Inclusion,Revenue Budgets,Childrens Services,Education Transport,A0254,Home To School Transport Sen,A32010,Contract Hire Scheme,30009746,23/05/2022,202202,"2,310.40",121524,Grimsby Minibuses Ltd
Education and Inclusion,Revenue Budgets,Childrens Services,Education Transport,A0254,Home To School Transport Sen,A32010,Contract Hire Scheme,30009766,23/05/2022,202202,"2,675.20",121524,Grimsby Minibuses Ltd
Education and Inclusion,Revenue Budgets,Childrens Services,Education Transport,A0253,Home To Sch Transport Sec-Gy,A32010,Contract Hire Scheme,30009767,23/05/2022,202202,"2,846.20",121524,Grimsby Minibuses Ltd
Education and Inclusion,Revenue Budgets,Childrens Services,Sen/Inclusion,A1715,Early Years Inclusion Fund,A47008,Contributions - Other,30011772,23/05/2022,202202,570,114491,Humberston Pre School
Education and Inclusion,Revenue Budgets,Childrens Services,Sen/Inclusion,A1715,Early Years Inclusion Fund,A47008,Contributions - Other,30011173,25/05/2022,202202,"1,140.00",122217,Little Twinkles Childcare Ltd
Education and Inclusion,Revenue Budgets,Childrens Services,Sen/Inclusion,A1715,Early Years Inclusion Fund,A47008,Contributions - Other,30011175,25/05/2022,202202,"1,140.00",100973,Ready Teddy Go
Education and Inclusion,Revenue Budgets,Childrens Services,Sen/Inclusion,A1715,Early Years Inclusion Fund,A47008,Contributions - Other,30011178,25/05/2022,202202,"1,368.00",128121,Only About Kids
Education and Inclusion,Revenue Budgets,Childrens Services,Sen/Inclusion,A1715,Early Years Inclusion Fund,A47008,Contributions - Other,30011180,25/05/2022,202202,684,149044,Tec Partnership - Little Stars Nursery
Education and Inclusion,Revenue Budgets,Childrens Services,Sen/Inclusion,A1715,Early Years Inclusion Fund,A47008,Contributions - Other,30011207,26/05/2022,202202,570,108236,Waltham Leas Pre-School
Education and Inclusion,Revenue Budgets,Childrens Services,Sen/Inclusion,A1715,Early Years Inclusion Fund,A47008,Contributions - Other,30011207,26/05/2022,202202,570,108236,Waltham Leas Pre-School
Education and Inclusion,Revenue Budgets,Childrens Services,Sen/Inclusion,A1715,Early Years Inclusion Fund,A47008,Contributions - Other,30011207,26/05/2022,202202,798,108236,Waltham Leas Pre-School
Education and Inclusion,Revenue Budgets,Childrens Services,Sen/Inclusion,A1715,Early Years Inclusion Fund,A47008,Contributions - Other,30011207,26/05/2022,202202,912,108236,Waltham Leas Pre-School
Education and Inclusion,Revenue Budgets,Childrens Services,Sen/Inclusion,A1715,Early Years Inclusion Fund,A47008,Contributions - Other,30011207,26/05/2022,202202,912,108236,Waltham Leas Pre-School
Education and Inclusion,Revenue Budgets,Childrens Services,Sen/Inclusion,A1715,Early Years Inclusion Fund,A47008,Contributions - Other,30011207,26/05/2022,202202,"1,710.00",108236,Waltham Leas Pre-School
Education and Inclusion,Revenue Budgets,Childrens Services,Education Transport,A0254,Home To School Transport Sen,A32020,Home to School Transport,30011802,26/05/2022,202202,760.5,111879,Hansons Airport Express
Education and Inclusion,Revenue Budgets,Childrens Services,Sen/Inclusion,A1565,Top Up Funding Academies & Fre,A47007,Contributions - Third Sector,42094149,26/05/2022,202202,935,Redacted Personal Information,Redacted Personal Information
Education and Inclusion,Revenue Budgets,Childrens Services,Attainment and Progress,A1640,School Improvement,A56000,Other Establishments,30011575,27/05/2022,202202,"2,625.00",1000334,Sandie Holmes
Education and Inclusion,Revenue Budgets,Childrens Services,Education Transport,A0254,Home To School Transport Sen,A32020,Home to School Transport,30011849,27/05/2022,202202,"2,033.00",111879,Hansons Airport Express
Education and Inclusion,Revenue Budgets,Childrens Services,Education Transport,A0254,Home To School Transport Sen,A32020,Home to School Transport,30011850,27/05/2022,202202,"2,033.00",111879,Hansons Airport Express
Education and Inclusion,Revenue Budgets,Childrens Services,Education Transport,A0248,Exceptional Circumstances,A32020,Home to School Transport,30011495,30/05/2022,202202,444,100578,Coxons Cars Limited
Education and Inclusion,Revenue Budgets,Childrens Services,Education Transport,A0254,Home To School Transport Sen,A32020,Home to School Transport,30011495,30/05/2022,202202,444,100578,Coxons Cars Limited
Education and Inclusion,Revenue Budgets,Childrens Services,Education Transport,A0253,Home To Sch Transport Sec-Gy,A32020,Home to School Transport,30011501,30/05/2022,202202,760,100578,Coxons Cars Limited
Education and Inclusion,Revenue Budgets,Childrens Services,Education Transport,A0254,Home To School Transport Sen,A32020,Home to School Transport,30011506,30/05/2022,202202,666,100578,Coxons Cars Limited
Education and Inclusion,Revenue Budgets,Childrens Services,Education Transport,A0253,Home To Sch Transport Sec-Gy,A32020,Home to School Transport,30011508,30/05/2022,202202,"3,591.00",101030,Amvale Limited
Education and Inclusion,Revenue Budgets,Childrens Services,Education Transport,A0254,Home To School Transport Sen,A32020,Home to School Transport,30011517,30/05/2022,202202,912,100578,Coxons Cars Limited
Education and Inclusion,Revenue Budgets,Childrens Services,Education Transport,A0254,Home To School Transport Sen,A32020,Home to School Transport,30011520,30/05/2022,202202,"2,580.00",101030,Amvale Limited
Education and Inclusion,Revenue Budgets,Childrens Services,Education Transport,A0254,Home To School Transport Sen,A32020,Home to School Transport,30011523,30/05/2022,202202,950,100578,Coxons Cars Limited
Education and Inclusion,Revenue Budgets,Childrens Services,Education Transport,A0254,Home To School Transport Sen,A32020,Home to School Transport,30011526,30/05/2022,202202,"2,760.00",101030,Amvale Limited
Education and Inclusion,Revenue Budgets,Childrens Services,Education Transport,A0249,Excluded And Ap Transport,A32020,Home to School Transport,30011528,30/05/2022,202202,441,100578,Coxons Cars Limited
Education and Inclusion,Revenue Budgets,Childrens Services,Education Transport,A0254,Home To School Transport Sen,A32020,Home to School Transport,30011528,30/05/2022,202202,441,100578,Coxons Cars Limited
Education and Inclusion,Revenue Budgets,Childrens Services,Education Transport,A0253,Home To Sch Transport Sec-Gy,A32020,Home to School Transport,30011537,30/05/2022,202202,"3,591.00",101030,Amvale Limited
Education and Inclusion,Revenue Budgets,Childrens Services,Education Transport,A0254,Home To School Transport Sen,A32020,Home to School Transport,30011890,30/05/2022,202202,480,100578,Coxons Cars Limited
Education and Inclusion,Revenue Budgets,Childrens Services,Education Transport,A0247,Post 16 Sen,A32020,Home to School Transport,30011903,30/05/2022,202202,"2,831.00",141083,Drs Taxi Service
Education and Inclusion,Revenue Budgets,Childrens Services,Sen/Inclusion,A0277,Ap And Other High Needs,A56000,Other Establishments,30011909,30/05/2022,202202,"3,508.61",106898,John Whitgift Academy
Education and Inclusion,Revenue Budgets,Childrens Services,Education Transport,A0254,Home To School Transport Sen,A32020,Home to School Transport,30011910,30/05/2022,202202,"1,911.00",141083,Drs Taxi Service
Education and Inclusion,Revenue Budgets,Childrens Services,Education Transport,A0254,Home To School Transport Sen,A32020,Home to School Transport,30011700,31/05/2022,202202,"2,564.00",101522,The Bus Run
Education and Inclusion,Revenue Budgets,Childrens Services,Education Transport,A0254,Home To School Transport Sen,A32020,Home to School Transport,30012170,31/05/2022,202202,"1,710.00",141297,Smt (Lincs) Enterprises Ltd
Environment,Revenue Budgets,Environment,Garage & Fleet Strategy,A0665,Garage - Lab Holding,A30010,Vehicles Repairs,30006356,25/09/2021,202202,"1,147.99",100752,F G Adamson & Son
Environment,Revenue Budgets,Environment,Garage & Fleet Strategy,A0665,Garage - Lab Holding,A45020,Telephones,30001759,01/03/2022,202202,477.8,147152,Ctrack Uk Ltd
Environment,Capital Spend,Environment,Enhancement Bereavement Serv,Y1765,Afford Funeral Services,C01009,"New Construction, conversion & renovation",30008204,04/03/2022,202202,"1,500.00",104834,Brian Tynan Ltd
Environment,Revenue Budgets,Environment,Grounds & Bereavement Services,A0680,Foreshore,A22020,Rental Property Service Charge,30009551,07/03/2022,202202,920,1000757,The Crown Estate re Carter Jonas Rental Account
Environment,Revenue Budgets,Environment,Garage & Fleet Strategy,A0665,Garage - Lab Holding,A30010,Vehicles Repairs,30008008,09/03/2022,202202,639.03,100538,Lincolnshire Motors Ltd
Environment,Revenue Budgets,Environment,Garage & Fleet Strategy,A0665,Garage - Lab Holding,A30010,Vehicles Repairs,30012069,09/03/2022,202202,"1,089.09",101463,Bucher Municipal Ltd
Environment,Capital Spend,Environment,Public Sector Decarbonisation,Y1841,Beacon Salix,C01009,"New Construction, conversion & renovation",30007726,10/03/2022,202202,"31,464.65",149597,U Energy (Yorkshire) Ltd
Environment,Capital Spend,Environment,Public Sector Decarbonisation,Y1841,Beacon Salix,C01009,"New Construction, conversion & renovation",30008452,10/03/2022,202202,"31,464.65",149597,U Energy (Yorkshire) Ltd
Environment,Capital Spend,Environment,Enhancement Bereavement Serv,Y1764,Extension To Clee Cemetary,C01009,"New Construction, conversion & renovation",30006790,21/03/2022,202202,910.34,133267,Equans Services Ltd
Environment,Revenue Budgets,Environment,Regulatory Services,A1574,Environmental Protection,A49108,Environmental/Health Analysis,30003433,23/03/2022,202202,749.45,139898,Als Environmental Limited
Environment,Revenue Budgets,Environment,Waste Services,A0683,Refuse - Domestic / Recycling,A56000,Other Establishments,30007208,23/03/2022,202202,714.6,101147,Systematic Print Management Ltd
Environment,Revenue Budgets,Environment,Waste Services,A0683,Refuse - Domestic / Recycling,A56000,Other Establishments,30007617,23/03/2022,202202,463.76,101147,Systematic Print Management Ltd
Environment,Revenue Budgets,Environment,Waste Services,A0683,Refuse - Domestic / Recycling,A56000,Other Establishments,30007680,23/03/2022,202202,483.86,101147,Systematic Print Management Ltd
Environment,Revenue Budgets,Environment,Waste Services,A0683,Refuse - Domestic / Recycling,A56000,Other Establishments,30007698,23/03/2022,202202,494.95,101147,Systematic Print Management Ltd
Environment,Revenue Budgets,Environment,Waste Services,A0683,Refuse - Domestic / Recycling,A56000,Other Establishments,30007699,23/03/2022,202202,"3,110.86",101147,Systematic Print Management Ltd
Environment,Revenue Budgets,Environment,Waste Services,A0683,Refuse - Domestic / Recycling,A56000,Other Establishments,30007687,24/03/2022,202202,368.43,101147,Systematic Print Management Ltd
Environment,Capital Spend,Environment,Resort Management,Y1835,Resort Management,C01009,"New Construction, conversion & renovation",30009650,25/03/2022,202202,556.88,105081,Mobile Mini Uk Ltd
Environment,Revenue Budgets,Environment,Garage & Fleet Strategy,A0665,Garage - Lab Holding,A42005,Clothing & Uniforms & Laundry,30005845,27/03/2022,202202,352.68,100810,Johnsons Apparelmaster
Environment,Revenue Budgets,Environment,Waste Services,A0683,Refuse - Domestic / Recycling,A11015,Other Agency Staff,30007052,27/03/2022,202202,"1,294.29",144850,On Line People Ltd
Environment,Capital Spend,Environment,Depot Rationalisation,Y1812,Depot Rationalisation,C01005,Purchase of Land & Buildings,30008583,27/03/2022,202202,"2,915.00",100592,Fred Margarson Ltd
Environment,Revenue Budgets,Environment,Waste Services,A0683,Refuse - Domestic / Recycling,A11015,Other Agency Staff,30009602,27/03/2022,202202,"1,294.29",144850,On Line People Ltd
Environment,Capital Spend,Environment,Depot Rationalisation,Y1812,Depot Rationalisation,C01005,Purchase of Land & Buildings,30003138,28/03/2022,202202,"18,122.00",102044,Lincs Electrical Services Ltd
Environment,Revenue Budgets,Environment,Waste Services,A0683,Refuse - Domestic / Recycling,A56000,Other Establishments,30007691,28/03/2022,202202,548.15,101147,Systematic Print Management Ltd
Environment,Capital Spend,Environment,Depot Rationalisation,Y1812,Depot Rationalisation,C01005,Purchase of Land & Buildings,30008451,28/03/2022,202202,"18,122.00",102044,Lincs Electrical Services Ltd
Environment,Revenue Budgets,Environment,Waste Services,A0683,Refuse - Domestic / Recycling,A56000,Other Establishments,30007673,29/03/2022,202202,588.05,101147,Systematic Print Management Ltd
Environment,Revenue Budgets,Environment,Garage & Fleet Strategy,A0665,Garage - Lab Holding,A40920,Purchase of Equipment,30001218,30/03/2022,202202,424.22,104775,Total Signs And Graphics Ltd
Environment,Revenue Budgets,Environment,Waste Services,A0683,Refuse - Domestic / Recycling,A56000,Other Establishments,30007683,30/03/2022,202202,443.06,101147,Systematic Print Management Ltd
Environment,Revenue Budgets,Environment,Waste Services,A0683,Refuse - Domestic / Recycling,A56000,Other Establishments,30007693,30/03/2022,202202,612.18,101147,Systematic Print Management Ltd
Environment,Revenue Budgets,Environment,Waste Services,A0683,Refuse - Domestic / Recycling,A56000,Other Establishments,30007702,30/03/2022,202202,460.22,101147,Systematic Print Management Ltd
Environment,Revenue Budgets,Environment,Grounds & Bereavement Services,A0679,Resort,A45005,IT Hardware Purchase,30008144,30/03/2022,202202,350,144852,Redcentric Solutions Ltd
Environment,Revenue Budgets,Environment,Waste Services,A0683,Refuse - Domestic / Recycling,A56000,Other Establishments,30008934,30/03/2022,202202,526.8,100635,Vending Enterprises
Environment,Revenue Budgets,Environment,Grounds & Bereavement Services,A0661,Grounds Maint And Parks,A56000,Other Establishments,30011598,30/03/2022,202202,395,102305,Bsb Services
Environment,Capital Spend,Environment,Depot Rationalisation,Y1812,Depot Rationalisation,C01005,Purchase of Land & Buildings,30001270,31/03/2022,202202,974.57,149901,Cleveland Containers Ltd
Environment,Capital Spend,Environment,Depot Rationalisation,Y1812,Depot Rationalisation,C01005,Purchase of Land & Buildings,30006782,31/03/2022,202202,256.49,1000372,GBM Demolition
Environment,Capital Spend,Environment,Enhancement Bereavement Serv,Y1764,Extension To Clee Cemetary,C01009,"New Construction, conversion & renovation",30007605,31/03/2022,202202,"40,636.95",100579,Specialist Surfacing Limited
Environment,Revenue Budgets,Environment,Waste Services,A0683,Refuse - Domestic / Recycling,A56000,Other Establishments,30007677,31/03/2022,202202,353.95,101147,Systematic Print Management Ltd
Environment,Capital Spend,Environment,Depot Rationalisation,Y1812,Depot Rationalisation,C01005,Purchase of Land & Buildings,30011750,31/03/2022,202202,319.44,149901,Cleveland Containers Ltd
Environment,Revenue Budgets,Environment,Garage & Fleet Strategy,A0665,Garage - Lab Holding,A45020,Telephones,30009637,01/04/2022,202202,"1,302.75",147152,Ctrack Uk Ltd
Environment,Revenue Budgets,Environment,Garage & Fleet Strategy,A0665,Garage - Lab Holding,A45020,Telephones,30009653,01/04/2022,202202,"1,000.00",147152,Ctrack Uk Ltd
Environment,Revenue Budgets,Environment,Garage & Fleet Strategy,A0665,Garage - Lab Holding,A45020,Telephones,30009656,01/04/2022,202202,477.8,147152,Ctrack Uk Ltd
Environment,Revenue Budgets,Environment,Waste Services,A0683,Refuse - Domestic / Recycling,A11005,Agency Supply Staff,30004061,03/04/2022,202202,"1,287.46",144850,On Line People Ltd
Environment,Capital Spend,Environment,Fleet Replacement Programme,Y1811,New Recycling Service,C01006,Purchase of Vehicles & Plant,30003435,04/04/2022,202202,"11,010.00",101544,Mgb
Environment,Capital Spend,Environment,Enhancement Bereavement Serv,Y1761,Tearoom / Flower Shop,C01009,"New Construction, conversion & renovation",30003701,04/04/2022,202202,"52,392.33",144162,Topcon Building Ltd
Environment,Revenue Budgets,Environment,Regulatory Services,A1750,Fsa Eu Exit Planning Fund,A16015,Staff Training Expenses,30005152,06/04/2022,202202,"8,425.00",116531,Sea Fish Industry Authority
Environment,Revenue Budgets,Environment,Waste Services,A0683,Refuse - Domestic / Recycling,A56000,Other Establishments,30007684,07/04/2022,202202,410.45,101147,Systematic Print Management Ltd
Environment,Revenue Budgets,Environment,Waste Services,A0683,Refuse - Domestic / Recycling,A11015,Other Agency Staff,30003485,08/04/2022,202202,393.76,143357,The Best Connection
Environment,Revenue Budgets,Environment,Garage & Fleet Strategy,A0665,Garage - Lab Holding,A30010,Vehicles Repairs,30005848,08/04/2022,202202,563.66,100886,Fleet Factors Ltd
Environment,Revenue Budgets,Environment,Waste Services,A0683,Refuse - Domestic / Recycling,A11005,Agency Supply Staff,30003957,10/04/2022,202202,611.29,144850,On Line People Ltd
Environment,Revenue Budgets,Environment,Regulatory Services,A0663,Licensing,A16015,Staff Training Expenses,30007786,11/04/2022,202202,950,109054,Institute Of Licensing (Events) Ltd
Environment,Revenue Budgets,Environment,Waste Services,A0683,Refuse - Domestic / Recycling,A56000,Other Establishments,30007703,12/04/2022,202202,298.9,101147,Systematic Print Management Ltd
Environment,Revenue Budgets,Environment,Grounds & Bereavement Services,A0646,Grimsby Crematorium,A40920,Purchase of Equipment,30001442,13/04/2022,202202,601.25,100621,The Columbaria Company
Environment,Revenue Budgets,Environment,Waste Services,A0683,Refuse - Domestic / Recycling,A56000,Other Establishments,30007679,13/04/2022,202202,281.95,101147,Systematic Print Management Ltd
Environment,Revenue Budgets,Environment,Waste Services,A0683,Refuse - Domestic / Recycling,A56000,Other Establishments,30007682,13/04/2022,202202,841.4,101147,Systematic Print Management Ltd
Environment,Revenue Budgets,Environment,Grounds & Bereavement Services,A0661,Grounds Maint And Parks,A40920,Purchase of Equipment,30009386,13/04/2022,202202,360,100586,Stuart H Somerscales Ltd
Environment,Capital Spend,Environment,Peoples Park Refurbishment,Y1787,Fencing - Peoples Park,C01009,"New Construction, conversion & renovation",30001529,14/04/2022,202202,"13,500.00",102305,Bsb Services
Environment,Capital Spend,Environment,Peoples Park Refurbishment,Y1787,Fencing - Peoples Park,C01009,"New Construction, conversion & renovation",30001529,14/04/2022,202202,"21,500.00",102305,Bsb Services
Environment,Revenue Budgets,Environment,Waste Services,A0683,Refuse - Domestic / Recycling,A11015,Other Agency Staff,30008833,14/04/2022,202202,250.56,143357,The Best Connection
Environment,Capital Spend,Environment,Peoples Park Refurbishment,Y1786,Playarea - Peoples Park,C01009,"New Construction, conversion & renovation",30009027,14/04/2022,202202,"15,000.00",140951,Southam Services (Lincs) Ltd
Environment,Revenue Budgets,Environment,Waste Services,A0683,Refuse - Domestic / Recycling,A47010,Subscriptions (non staff),30009632,14/04/2022,202202,445,1000305,LARAC Ltd
Environment,Revenue Budgets,Environment,Regulatory Services,A0653,Commercial Regulatory Team,A11005,Agency Supply Staff,30009643,14/04/2022,202202,558.75,143357,The Best Connection
Environment,Capital Spend,Environment,Peoples Park Refurbishment,Y1786,Playarea - Peoples Park,C01009,"New Construction, conversion & renovation",30010760,14/04/2022,202202,"15,000.00",140951,Southam Services (Lincs) Ltd
Environment,Revenue Budgets,Environment,Waste Services,A0683,Refuse - Domestic / Recycling,A11005,Agency Supply Staff,30005300,17/04/2022,202202,797.41,144850,On Line People Ltd
Environment,Revenue Budgets,Environment,Waste Services,A0683,Refuse - Domestic / Recycling,A56000,Other Establishments,30007700,21/04/2022,202202,749.6,101147,Systematic Print Management Ltd
Environment,Revenue Budgets,Environment,Grounds & Bereavement Services,A0661,Grounds Maint And Parks,A40920,Purchase of Equipment,30004512,22/04/2022,202202,"1,380.00",100595,Fleet Line Markers Limited
Environment,Revenue Budgets,Environment,Garage & Fleet Strategy,A0665,Garage - Lab Holding,A30010,Vehicles Repairs,30005698,22/04/2022,202202,"1,300.00",100886,Fleet Factors Ltd
Environment,Revenue Budgets,Environment,Grounds & Bereavement Services,A0646,Grimsby Crematorium,A20005,"Property Repairs, Maintenance & Alterations",30006736,22/04/2022,202202,"5,515.67",133267,Equans Services Ltd
Environment,Capital Spend,Environment,Scartho Cem Lodge/Waiting Rooms,Y1827,Scartho Cem Lodge/Waiting Rm,C01009,"New Construction, conversion & renovation",30006740,22/04/2022,202202,"3,000.00",133267,Equans Services Ltd
Environment,Capital Spend,Environment,Resort Management,Y1835,Resort Management,C01009,"New Construction, conversion & renovation",30009198,22/04/2022,202202,556.88,105081,Mobile Mini Uk Ltd
Environment,Capital Spend,Environment,Depot Rationalisation,Y1812,Depot Rationalisation,C01005,Purchase of Land & Buildings,30012131,22/04/2022,202202,"7,500.00",133267,Equans Services Ltd
Environment,Revenue Budgets,Environment,Grounds & Bereavement Services,A0646,Grimsby Crematorium,A40920,Purchase of Equipment,30009597,23/04/2022,202202,"1,548.00",130000,S P Davis Memorials Limited
Environment,Revenue Budgets,Environment,Garage & Fleet Strategy,A0665,Garage - Lab Holding,A42005,Clothing & Uniforms & Laundry,30006364,24/04/2022,202202,352.68,100810,Johnsons Apparelmaster
Environment,Revenue Budgets,Environment,Regulatory Services,A0664,Taxis,A45045,IT Software Maintenance,30007775,24/04/2022,202202,637.5,1000598,Diamond People Limited
Environment,Revenue Budgets,Environment,Regulatory Services,A0653,Commercial Regulatory Team,A49108,Environmental/Health Analysis,30006876,27/04/2022,202202,835,131671,Fera Science Ltd
Environment,Revenue Budgets,Environment,Regulatory Services,A0653,Commercial Regulatory Team,A49108,Environmental/Health Analysis,30006911,27/04/2022,202202,835,131671,Fera Science Ltd
Environment,Revenue Budgets,Environment,Grounds & Bereavement Services,A0646,Grimsby Crematorium,A40095,Equipment Maintenance and Repair,30007541,27/04/2022,202202,565,1000223,J & J Maintenance Services
Environment,Revenue Budgets,Environment,Grounds & Bereavement Services,A0646,Grimsby Crematorium,A40095,Equipment Maintenance and Repair,30008574,27/04/2022,202202,"15,179.00",101165,Facultatieve Technologies Ltd
Environment,Revenue Budgets,Environment,Regulatory Services,A1574,Environmental Protection,A49105,Other Supplies & Services,30011144,27/04/2022,202202,895.21,139898,Als Environmental Limited
Environment,Revenue Budgets,Environment,Grounds & Bereavement Services,A0646,Grimsby Crematorium,A11005,Agency Supply Staff,30006114,28/04/2022,202202,"1,234.73",147051,Ethical Recruitment Agency (Grimsby) Ltd
Environment,Revenue Budgets,Environment,Waste Services,A0683,Refuse - Domestic / Recycling,A56000,Other Establishments,30007685,28/04/2022,202202,704.56,101147,Systematic Print Management Ltd
Environment,Revenue Budgets,Environment,Regulatory Services,A0653,Commercial Regulatory Team,A49105,Other Supplies & Services,30009466,28/04/2022,202202,391.51,139602,Eurofins Water Hygiene Testing Uk Ltd
Environment,Revenue Budgets,Environment,Garage & Fleet Strategy,A0665,Garage - Lab Holding,A30010,Vehicles Repairs,30005323,29/04/2022,202202,"3,828.60",100886,Fleet Factors Ltd
Environment,Revenue Budgets,Environment,Garage & Fleet Strategy,A0665,Garage - Lab Holding,A30010,Vehicles Repairs,30006365,30/04/2022,202202,389.61,129000,Energas Limited
Environment,Revenue Budgets,Environment,Grounds & Bereavement Services,A0661,Grounds Maint And Parks,A30017,Other Vehicle Costs,30006500,30/04/2022,202202,"1,184.52",108278,Allstar Business Solutions Ltd
Environment,Revenue Budgets,Environment,Regulatory Services,A1721,Environmental Enforcement,A56000,Other Establishments,30006648,30/04/2022,202202,"3,228.00",103270,Sangreat Kennels
Environment,Capital Spend,Environment,Depot Rationalisation,Y1812,Depot Rationalisation,C01009,"New Construction, conversion & renovation",30007749,30/04/2022,202202,"1,007.06",149901,Cleveland Containers Ltd
Environment,Revenue Budgets,Environment,Waste Disposal And Strategy,A0669,Waste Disposal / Recycling,A56000,Other Establishments,30008183,30/04/2022,202202,"2,875.00",101116,Grimsby Operations Ltd
Environment,Revenue Budgets,Environment,Waste Disposal And Strategy,A1765,Nlc Waste Disposal,A57115,Payments to Private Contractors,30010513,30/04/2022,202202,REDACTED COMMERCIALLY SENISTIVE,101125,Newlincs Development Ltd
Environment,Revenue Budgets,Environment,Waste Disposal And Strategy,A1765,Nlc Waste Disposal,A57116,Payments to Private Contractors - Landfill Tax,30010513,30/04/2022,202202,REDACTED COMMERCIALLY SENISTIVE,101125,Newlincs Development Ltd
Environment,Revenue Budgets,Environment,Waste Disposal And Strategy,A0669,Waste Disposal / Recycling,A57115,Payments to Private Contractors,30010574,30/04/2022,202202,REDACTED COMMERCIALLY SENISTIVE,101125,Newlincs Development Ltd
Environment,Revenue Budgets,Environment,Waste Disposal And Strategy,A0669,Waste Disposal / Recycling,A57116,Payments to Private Contractors - Landfill Tax,30010574,30/04/2022,202202,REDACTED COMMERCIALLY SENISTIVE,101125,Newlincs Development Ltd
Environment,Revenue Budgets,Environment,Waste Disposal And Strategy,A0669,Waste Disposal / Recycling,A92035,Sales General,30010574,30/04/2022,202202,REDACTED COMMERCIALLY SENISTIVE,101125,Newlincs Development Ltd
Environment,Capital Spend,Environment,Depot Rationalisation,Y1812,Depot Rationalisation,C01005,Purchase of Land & Buildings,30010633,30/04/2022,202202,330.27,149901,Cleveland Containers Ltd
Environment,Revenue Budgets,Environment,Street Cleansing,A0673,Street Cleansing,A56000,Other Establishments,30011256,30/04/2022,202202,"1,286.54",102009,Srcl Ltd
Environment,Revenue Budgets,Environment,Waste Services,A0683,Refuse - Domestic / Recycling,A11005,Agency Supply Staff,30007766,01/05/2022,202202,911.81,144850,On Line People Ltd
Environment,Revenue Budgets,Environment,Waste Services,A0683,Refuse - Domestic / Recycling,A11005,Agency Supply Staff,30008217,01/05/2022,202202,266.37,144850,On Line People Ltd
Environment,Revenue Budgets,Environment,Garage & Fleet Strategy,A0665,Garage - Lab Holding,A30010,Vehicles Repairs,30009796,03/05/2022,202202,380,134742,M J Windscreens Ltd
Environment,Revenue Budgets,Environment,Grounds & Bereavement Services,A0646,Grimsby Crematorium,A40920,Purchase of Equipment,30006021,04/05/2022,202202,450,130000,S P Davis Memorials Limited
Environment,Revenue Budgets,Environment,Grounds & Bereavement Services,A0661,Grounds Maint And Parks,A40920,Purchase of Equipment,30006103,04/05/2022,202202,266.52,138362,Tudor (Uk) Ltd T/A Tudor Environment
Environment,Revenue Budgets,Environment,Grounds & Bereavement Services,A0661,Grounds Maint And Parks,A40920,Purchase of Equipment,30006103,04/05/2022,202202,493.92,138362,Tudor (Uk) Ltd T/A Tudor Environment
Environment,Revenue Budgets,Environment,Waste Services,A0683,Refuse - Domestic / Recycling,A42005,Clothing & Uniforms & Laundry,30006518,05/05/2022,202202,294,147941,Pws (Protective Wear Supplies) Ltd
Environment,Revenue Budgets,Environment,Waste Services,A0683,Refuse - Domestic / Recycling,A42005,Clothing & Uniforms & Laundry,30006518,05/05/2022,202202,294,147941,Pws (Protective Wear Supplies) Ltd
Environment,Revenue Budgets,Environment,Regulatory Services,A1574,Environmental Protection,A49105,Other Supplies & Services,30006733,05/05/2022,202202,400,143071,Fresh Pharma
Environment,Revenue Budgets,Environment,Garage & Fleet Strategy,A0665,Garage - Lab Holding,A30010,Vehicles Repairs,30008974,05/05/2022,202202,338.95,101828,B A Bush & Son Ltd
Environment,Revenue Budgets,Environment,Garage & Fleet Strategy,A0665,Garage - Lab Holding,A30010,Vehicles Repairs,30006358,06/05/2022,202202,822.21,100886,Fleet Factors Ltd
Environment,Revenue Budgets,Environment,Garage & Fleet Strategy,A0665,Garage - Lab Holding,A30010,Vehicles Repairs,30006362,06/05/2022,202202,431.97,100886,Fleet Factors Ltd
Environment,Revenue Budgets,Environment,Garage & Fleet Strategy,A0665,Garage - Lab Holding,A30010,Vehicles Repairs,30006363,06/05/2022,202202,997.33,100886,Fleet Factors Ltd
Environment,Revenue Budgets,Environment,Garage & Fleet Strategy,A0665,Garage - Lab Holding,A30010,Vehicles Repairs,30006367,06/05/2022,202202,"1,422.23",100886,Fleet Factors Ltd
Environment,Revenue Budgets,Environment,Waste Services,A0683,Refuse - Domestic / Recycling,A42005,Clothing & Uniforms & Laundry,30006700,06/05/2022,202202,353.78,147941,Pws (Protective Wear Supplies) Ltd
Environment,Revenue Budgets,Environment,Energy Project,A1853,Smarter Energy Poject,A44065,Consultancy Services,30009745,06/05/2022,202202,"35,159.81",122549,E-Factor Group Ltd
Environment,Revenue Budgets,Environment,Grounds & Bereavement Services,A0661,Grounds Maint And Parks,A56000,Other Establishments,30006559,07/05/2022,202202,"7,220.74",1000378,Lincolnshire Wildlife Trust
Environment,Revenue Budgets,Environment,Regulatory Services,A1574,Environmental Protection,A45045,IT Software Maintenance,30011515,07/05/2022,202202,"1,694.65",1000867,STM Environmental Consultants Ltd
Environment,Revenue Budgets,Environment,Waste Services,A0683,Refuse - Domestic / Recycling,A11005,Agency Supply Staff,30008800,08/05/2022,202202,944.25,144850,On Line People Ltd
Environment,Revenue Budgets,Environment,Grounds & Bereavement Services,A0646,Grimsby Crematorium,A40045,Furniture,30007469,09/05/2022,202202,"6,575.00",100549,F G Marshall Ltd
Environment,Capital Spend,Environment,Depot Rationalisation,Y1812,Depot Rationalisation,C01005,Purchase of Land & Buildings,30007126,10/05/2022,202202,"1,300.00",133267,Equans Services Ltd
Environment,Revenue Budgets,Environment,Waste Services,A0683,Refuse - Domestic / Recycling,A56000,Other Establishments,30007609,10/05/2022,202202,756.04,101147,Systematic Print Management Ltd
Environment,Revenue Budgets,Environment,Waste Services,A0683,Refuse - Domestic / Recycling,A56000,Other Establishments,30007621,10/05/2022,202202,410.69,101147,Systematic Print Management Ltd
Environment,Revenue Budgets,Environment,Grounds & Bereavement Services,A0661,Grounds Maint And Parks,A20005,"Property Repairs, Maintenance & Alterations",30007746,10/05/2022,202202,530,103412,Harroquip Pump Systems
Environment,Revenue Budgets,Environment,Garage & Fleet Strategy,A0665,Garage - Lab Holding,A30010,Vehicles Repairs,30010979,10/05/2022,202202,270.17,100628,Marshall Brewson Ltd
Environment,Revenue Budgets,Environment,Grounds & Bereavement Services,A0679,Resort,A20015,Security / Surveillance Equipment Maintenance,30007787,11/05/2022,202202,255,105280,N-Force Security Solutions Ltd
Environment,Revenue Budgets,Environment,Grounds & Bereavement Services,A0661,Grounds Maint And Parks,A56000,Other Establishments,30007799,11/05/2022,202202,"2,300.00",128602,Oneway Tm Limited
Environment,Revenue Budgets,Environment,Regulatory Services,A0653,Commercial Regulatory Team,A49105,Other Supplies & Services,30009464,11/05/2022,202202,567.94,139602,Eurofins Water Hygiene Testing Uk Ltd
Environment,Revenue Budgets,Environment,Grounds & Bereavement Services,A0661,Grounds Maint And Parks,A57115,Payments to Private Contractors,30011806,12/05/2022,202202,"6,457.49",1001056,Healing Parish Council
Environment,Revenue Budgets,Environment,Regulatory Services,A1574,Environmental Protection,A49105,Other Supplies & Services,30012121,12/05/2022,202202,"1,070.00",1000606,Air Quality Data Management
Environment,Revenue Budgets,Environment,Garage & Fleet Strategy,A0665,Garage - Lab Holding,A30010,Vehicles Repairs,30008242,13/05/2022,202202,"4,525.77",100886,Fleet Factors Ltd
Environment,Revenue Budgets,Environment,Garage & Fleet Strategy,A0665,Garage - Lab Holding,A30010,Vehicles Repairs,30008243,13/05/2022,202202,350.55,100886,Fleet Factors Ltd
Environment,Revenue Budgets,Environment,Garage & Fleet Strategy,A0665,Garage - Lab Holding,A30010,Vehicles Repairs,30009729,13/05/2022,202202,"4,000.09",100886,Fleet Factors Ltd
Environment,Revenue Budgets,Environment,Garage & Fleet Strategy,A0665,Garage - Lab Holding,A30010,Vehicles Repairs,30009741,13/05/2022,202202,"1,049.68",100886,Fleet Factors Ltd
Environment,Revenue Budgets,Environment,Grounds & Bereavement Services,A0661,Grounds Maint And Parks,A40920,Purchase of Equipment,30009855,16/05/2022,202202,"1,430.00",100595,Fleet Line Markers Limited
Environment,Revenue Budgets,Environment,Grounds & Bereavement Services,A0661,Grounds Maint And Parks,A40920,Purchase of Equipment,30011275,16/05/2022,202202,462,1000622,Amenity Horticultural Services Ltd
Environment,Revenue Budgets,Environment,Regulatory Services,A1750,Fsa Eu Exit Planning Fund,A16015,Staff Training Expenses,30008158,17/05/2022,202202,500,101913,University Of Birmingham
Environment,Revenue Budgets,Environment,Regulatory Services,A1750,Fsa Eu Exit Planning Fund,A16015,Staff Training Expenses,30008171,17/05/2022,202202,500,101913,University Of Birmingham
Environment,Revenue Budgets,Environment,Regulatory Services,A0653,Commercial Regulatory Team,A49105,Other Supplies & Services,30009065,18/05/2022,202202,835,131671,Fera Science Ltd
Environment,Revenue Budgets,Environment,Grounds & Bereavement Services,A0661,Grounds Maint And Parks,A40040,First Aid Equipment,30009560,18/05/2022,202202,555.65,147941,Pws (Protective Wear Supplies) Ltd
Environment,Revenue Budgets,Environment,Waste Services,A0683,Refuse - Domestic / Recycling,A56000,Other Establishments,30009686,18/05/2022,202202,"1,995.00",102368,Keep Britain Tidy
Environment,Revenue Budgets,Environment,Energy Project,A1853,Smarter Energy Poject,A44065,Consultancy Services,30011043,18/05/2022,202202,"7,072.90",149739,Grimsby Community Energy Ltd
Environment,Revenue Budgets,Environment,Regulatory Services,A1574,Environmental Protection,A49105,Other Supplies & Services,30011804,18/05/2022,202202,343.68,139898,Als Environmental Limited
Environment,Revenue Budgets,Environment,Regulatory Services,A0663,Licensing,A93000,Fees & Charges,30012076,18/05/2022,202202,306,Redacted Personal Information,Redacted Personal Information
Environment,Revenue Budgets,Environment,Grounds & Bereavement Services,A0679,Resort,A20005,"Property Repairs, Maintenance & Alterations",30011103,19/05/2022,202202,335,100587,Rentokil Pest Control
Environment,Revenue Budgets,Environment,Grounds & Bereavement Services,A0681,Boating Lake Area,A20005,"Property Repairs, Maintenance & Alterations",30011326,19/05/2022,202202,319.18,100587,Rentokil Pest Control
Environment,Revenue Budgets,Environment,Grounds & Bereavement Services,A0646,Grimsby Crematorium,A11005,Agency Supply Staff,30010462,20/05/2022,202202,"1,145.84",147051,Ethical Recruitment Agency (Grimsby) Ltd
Environment,Revenue Budgets,Environment,Waste Services,A0683,Refuse - Domestic / Recycling,A11015,Other Agency Staff,30011094,20/05/2022,202202,320.16,143357,The Best Connection
Environment,Revenue Budgets,Environment,Garage & Fleet Strategy,A0665,Garage - Lab Holding,A30010,Vehicles Repairs,30011139,20/05/2022,202202,"1,340.69",100886,Fleet Factors Ltd
Environment,Revenue Budgets,Environment,Garage & Fleet Strategy,A0665,Garage - Lab Holding,A30010,Vehicles Repairs,30011142,20/05/2022,202202,530.73,100886,Fleet Factors Ltd
Environment,Revenue Budgets,Environment,Garage & Fleet Strategy,A0665,Garage - Lab Holding,A30010,Vehicles Repairs,30011149,20/05/2022,202202,"1,225.06",100886,Fleet Factors Ltd
Environment,Revenue Budgets,Environment,Grounds & Bereavement Services,A0680,Foreshore,A22020,Rental Property Service Charge,30012132,20/05/2022,202202,856,100834,Associated British Ports
Environment,Revenue Budgets,Environment,Regulatory Services,A0663,Licensing,A47010,Subscriptions (non staff),30012138,20/05/2022,202202,465,1000716,Institute of Licensing Ltd
Environment,Revenue Budgets,Environment,Waste Services,A0683,Refuse - Domestic / Recycling,A11005,Agency Supply Staff,30012070,22/05/2022,202202,"1,068.90",144850,On Line People Ltd
Environment,Revenue Budgets,Environment,Grounds & Bereavement Services,A0680,Foreshore,A20005,"Property Repairs, Maintenance & Alterations",30010290,23/05/2022,202202,275,103412,Harroquip Pump Systems
Environment,Revenue Budgets,Environment,Grounds & Bereavement Services,A0661,Grounds Maint And Parks,A56000,Other Establishments,30011555,23/05/2022,202202,"2,200.00",1000702,Woodpecker Trees Limited
Environment,Capital Spend,Environment,Depot Rationalisation,Y1812,Depot Rationalisation,C01005,Purchase of Land & Buildings,30012036,23/05/2022,202202,"3,343.68",149901,Cleveland Containers Ltd
Environment,Revenue Budgets,Environment,Waste Services,A0683,Refuse - Domestic / Recycling,A11015,Other Agency Staff,30010341,25/05/2022,202202,"-1,294.29",144850,On Line People Ltd
Environment,Revenue Budgets,Environment,Grounds & Bereavement Services,A0646,Grimsby Crematorium,A21010,Gas,42093668,25/05/2022,202202,"2,680.53",103611,Total Energies Gas & Power Ltd
Environment,Capital Spend,Environment,Environmental Services Mgt System,Y1843,Environmental Serv Mgt System,C01008,Purchase of Software & Licences,30011212,26/05/2022,202202,"24,565.00",1000319,Yotta Limited
Environment,Capital Spend,Environment,Environmental Services Mgt System,Y1843,Environmental Serv Mgt System,C01008,Purchase of Software & Licences,30011235,26/05/2022,202202,"4,335.00",1000319,Yotta Limited
Environment,Revenue Budgets,Environment,Street Cleansing,A0673,Street Cleansing,A40040,First Aid Equipment,30011402,26/05/2022,202202,542,147941,Pws (Protective Wear Supplies) Ltd
Environment,Revenue Budgets,Environment,Garage & Fleet Strategy,A0665,Garage - Lab Holding,A30010,Vehicles Repairs,30012065,26/05/2022,202202,"1,000.00",101828,B A Bush & Son Ltd
Environment,Revenue Budgets,Environment,Grounds & Bereavement Services,A0680,Foreshore,A24005,Water Services,42093710,26/05/2022,202202,300.06,125923,Anglian Water Services Limited
Environment,Revenue Budgets,Environment,Regulatory Services,A0653,Commercial Regulatory Team,A49105,Other Supplies & Services,30011287,27/05/2022,202202,835,131671,Fera Science Ltd
Environment,Revenue Budgets,Environment,Regulatory Services,A0653,Commercial Regulatory Team,A11005,Agency Supply Staff,30011713,27/05/2022,202202,447,143357,The Best Connection
Environment,Revenue Budgets,Environment,Garage & Fleet Strategy,A0665,Garage - Lab Holding,A30010,Vehicles Repairs,30012080,27/05/2022,202202,"1,306.92",100886,Fleet Factors Ltd
Environment,Revenue Budgets,Environment,Garage & Fleet Strategy,A0665,Garage - Lab Holding,A30010,Vehicles Repairs,30012082,27/05/2022,202202,-746.76,100886,Fleet Factors Ltd
Environment,Revenue Budgets,Environment,Garage & Fleet Strategy,A0665,Garage - Lab Holding,A30010,Vehicles Repairs,30012094,27/05/2022,202202,"2,698.32",100886,Fleet Factors Ltd
Environment,Revenue Budgets,Environment,Grounds & Bereavement Services,A0681,Boating Lake Area,A21005,Electricity,42093795,27/05/2022,202202,480.73,103611,Total Energies Gas & Power Ltd
Environment,Revenue Budgets,Environment,Grounds & Bereavement Services,A0679,Resort,A21005,Electricity,42093795,27/05/2022,202202,564.37,103611,Total Energies Gas & Power Ltd
Environment,Revenue Budgets,Environment,Grounds & Bereavement Services,A0661,Grounds Maint And Parks,A21005,Electricity,42093795,27/05/2022,202202,788.62,103611,Total Energies Gas & Power Ltd
Environment,Revenue Budgets,Environment,Grounds & Bereavement Services,A0646,Grimsby Crematorium,A21005,Electricity,42093795,27/05/2022,202202,"1,532.72",103611,Total Energies Gas & Power Ltd
Environment,Capital Spend,Environment,Regulatory Services Mgt System,Y1844,Regulatory Serv Mgt System,C01006,Purchase of Vehicles & Plant,30012077,31/05/2022,202202,"11,954.97",111799,Arcus Global Limited
Environment,Revenue Budgets,Environment,Garage & Fleet Strategy,A0665,Garage - Lab Holding,A30010,Vehicles Repairs,30012228,01/06/2022,202202,875,103640,Smart Garage Equipment Services Ltd
"Housing, Highways and Transport",Capital Spend,Economy And Growth,Local Transport Plan Schemes,Y0018,Junction Imp,C01009,"New Construction, conversion & renovation",30009288,03/09/2021,202202,"5,772.86",128602,Oneway Tm Limited
"Housing, Highways and Transport",Revenue Budgets,Economy And Growth,Home Options & Hous Rel Supp,A0956,Bed & Breakfast,A22005,Building Rents,30011607,30/11/2021,202202,780,Redacted Personal Information,Redacted Personal Information
"Housing, Highways and Transport",Revenue Budgets,Economy And Growth,Home Options & Hous Rel Supp,A0956,Bed & Breakfast,A22005,Building Rents,30007804,30/12/2021,202202,"1,365.00",Redacted Personal Information,Redacted Personal Information
"Housing, Highways and Transport",Revenue Budgets,Economy And Growth,Home Options & Hous Rel Supp,A0956,Bed & Breakfast,A22005,Building Rents,30008032,30/12/2021,202202,630,Redacted Personal Information,Redacted Personal Information
"Housing, Highways and Transport",Capital Spend,Economy And Growth,Grimsby - Immingham Ext Cycleway,Y1832,Grimsby-Immingham Ext Cycleway,C01009,"New Construction, conversion & renovation",30009458,16/02/2022,202202,505.5,100983,Signs Express (N & Ne Lincs)
"Housing, Highways and Transport",Revenue Budgets,Economy And Growth,Home Options & Hous Rel Supp,A0955,Crisis Accomodation,A22020,Rental Property Service Charge,30006495,20/02/2022,202202,601.75,100508,Anglian Water
"Housing, Highways and Transport",Revenue Budgets,Economy And Growth,Home Options & Hous Rel Supp,A0955,Crisis Accomodation,A22020,Rental Property Service Charge,30006503,20/02/2022,202202,595.79,100508,Anglian Water
"Housing, Highways and Transport",Revenue Budgets,Economy And Growth,Home Options & Hous Rel Supp,A0955,Crisis Accomodation,A22020,Rental Property Service Charge,30006504,20/02/2022,202202,605.22,100508,Anglian Water
"Housing, Highways and Transport",Revenue Budgets,Economy And Growth,Home Options & Hous Rel Supp,A0955,Crisis Accomodation,A22020,Rental Property Service Charge,30006507,20/02/2022,202202,621.55,100508,Anglian Water
"Housing, Highways and Transport",Revenue Budgets,Economy And Growth,Home Options & Hous Rel Supp,A0955,Crisis Accomodation,A22020,Rental Property Service Charge,30006509,20/02/2022,202202,595.79,100508,Anglian Water
"Housing, Highways and Transport",Revenue Budgets,Economy And Growth,Home Options & Hous Rel Supp,A0956,Bed & Breakfast,A22005,Building Rents,30008004,28/02/2022,202202,"1,820.00",Redacted Personal Information,Redacted Personal Information
"Housing, Highways and Transport",Revenue Budgets,Economy And Growth,Home Options & Hous Rel Supp,A0956,Bed & Breakfast,A22005,Building Rents,30008006,28/02/2022,202202,"1,260.00",Redacted Personal Information,Redacted Personal Information
"Housing, Highways and Transport",Revenue Budgets,Economy And Growth,Home Options & Hous Rel Supp,A0956,Bed & Breakfast,A22005,Building Rents,30008011,28/02/2022,202202,260,Redacted Personal Information,Redacted Personal Information
"Housing, Highways and Transport",Revenue Budgets,Economy And Growth,Home Options & Hous Rel Supp,A0956,Bed & Breakfast,A22005,Building Rents,30008028,28/02/2022,202202,520,Redacted Personal Information,Redacted Personal Information
"Housing, Highways and Transport",Revenue Budgets,Economy And Growth,Home Options & Hous Rel Supp,A0956,Bed & Breakfast,A22005,Building Rents,30011595,28/02/2022,202202,"1,690.00",Redacted Personal Information,Redacted Personal Information
"Housing, Highways and Transport",Revenue Budgets,Economy And Growth,Home Options & Hous Rel Supp,A0956,Bed & Breakfast,A22005,Building Rents,30011611,28/02/2022,202202,450,Redacted Personal Information,Redacted Personal Information
"Housing, Highways and Transport",Revenue Budgets,Economy And Growth,Home Options & Hous Rel Supp,A0955,Crisis Accomodation,A22020,Rental Property Service Charge,30007735,07/03/2022,202202,"1,375.70",100894,North East Lincolnshire Council
"Housing, Highways and Transport",Revenue Budgets,Economy And Growth,Home Options & Hous Rel Supp,A0955,Crisis Accomodation,A22020,Rental Property Service Charge,30008234,07/03/2022,202202,"1,375.70",100894,North East Lincolnshire Council
"Housing, Highways and Transport",Revenue Budgets,Economy And Growth,Home Options & Hous Rel Supp,A0955,Crisis Accomodation,A22020,Rental Property Service Charge,30008236,07/03/2022,202202,"1,375.70",100894,North East Lincolnshire Council
"Housing, Highways and Transport",Revenue Budgets,Economy And Growth,Home Options & Hous Rel Supp,A0955,Crisis Accomodation,A22020,Rental Property Service Charge,30008238,07/03/2022,202202,"1,375.70",100894,North East Lincolnshire Council
"Housing, Highways and Transport",Revenue Budgets,Economy And Growth,Home Options & Hous Rel Supp,A0955,Crisis Accomodation,A22020,Rental Property Service Charge,30010821,07/03/2022,202202,"1,375.70",100894,North East Lincolnshire Council
"Housing, Highways and Transport",Revenue Budgets,Economy And Growth,Home Options & Hous Rel Supp,A0955,Crisis Accomodation,A22020,Rental Property Service Charge,30010822,07/03/2022,202202,"1,375.70",100894,North East Lincolnshire Council
"Housing, Highways and Transport",Revenue Budgets,Economy And Growth,Home Options & Hous Rel Supp,A0955,Crisis Accomodation,A22020,Rental Property Service Charge,30010826,07/03/2022,202202,"1,375.70",100894,North East Lincolnshire Council
"Housing, Highways and Transport",Revenue Budgets,Economy And Growth,Home Options & Hous Rel Supp,A0955,Crisis Accomodation,A22020,Rental Property Service Charge,30010829,07/03/2022,202202,"1,377.32",100894,North East Lincolnshire Council
"Housing, Highways and Transport",Revenue Budgets,Economy And Growth,Home Options & Hous Rel Supp,A0955,Crisis Accomodation,A22020,Rental Property Service Charge,30010834,07/03/2022,202202,"1,375.70",100894,North East Lincolnshire Council
"Housing, Highways and Transport",Revenue Budgets,Economy And Growth,Home Options & Hous Rel Supp,A0955,Crisis Accomodation,A22020,Rental Property Service Charge,30010840,07/03/2022,202202,"1,377.32",100894,North East Lincolnshire Council
"Housing, Highways and Transport",Revenue Budgets,Economy And Growth,Home Options & Hous Rel Supp,A0955,Crisis Accomodation,A22020,Rental Property Service Charge,30010845,07/03/2022,202202,"1,375.70",100894,North East Lincolnshire Council
"Housing, Highways and Transport",Revenue Budgets,Economy And Growth,Home Options & Hous Rel Supp,A0955,Crisis Accomodation,A22020,Rental Property Service Charge,30010846,07/03/2022,202202,"1,375.70",100894,North East Lincolnshire Council
"Housing, Highways and Transport",Revenue Budgets,Economy And Growth,Home Options & Hous Rel Supp,A0955,Crisis Accomodation,A22020,Rental Property Service Charge,30010848,07/03/2022,202202,"1,375.70",100894,North East Lincolnshire Council
"Housing, Highways and Transport",Revenue Budgets,Economy And Growth,Home Options & Hous Rel Supp,A0955,Crisis Accomodation,A22020,Rental Property Service Charge,30010851,07/03/2022,202202,"1,377.32",100894,North East Lincolnshire Council
"Housing, Highways and Transport",Revenue Budgets,Economy And Growth,Home Options & Hous Rel Supp,A0955,Crisis Accomodation,A22020,Rental Property Service Charge,30010855,07/03/2022,202202,"1,375.70",100894,North East Lincolnshire Council
"Housing, Highways and Transport",Revenue Budgets,Economy And Growth,Home Options & Hous Rel Supp,A0955,Crisis Accomodation,A22020,Rental Property Service Charge,30010864,07/03/2022,202202,"1,375.70",100894,North East Lincolnshire Council
"Housing, Highways and Transport",Revenue Budgets,Economy And Growth,Home Options & Hous Rel Supp,A0955,Crisis Accomodation,A22020,Rental Property Service Charge,30010866,07/03/2022,202202,"1,375.70",100894,North East Lincolnshire Council
"Housing, Highways and Transport",Revenue Budgets,Economy And Growth,Home Options & Hous Rel Supp,A0955,Crisis Accomodation,A22020,Rental Property Service Charge,30010868,07/03/2022,202202,"1,375.70",100894,North East Lincolnshire Council
"Housing, Highways and Transport",Revenue Budgets,Economy And Growth,Home Options & Hous Rel Supp,A0955,Crisis Accomodation,A22020,Rental Property Service Charge,30010871,07/03/2022,202202,"1,375.70",100894,North East Lincolnshire Council
"Housing, Highways and Transport",Revenue Budgets,Economy And Growth,Home Options & Hous Rel Supp,A0955,Crisis Accomodation,A22020,Rental Property Service Charge,30010875,07/03/2022,202202,"1,375.70",100894,North East Lincolnshire Council
"Housing, Highways and Transport",Revenue Budgets,Economy And Growth,Home Options & Hous Rel Supp,A0955,Crisis Accomodation,A22020,Rental Property Service Charge,30010877,07/03/2022,202202,"1,375.70",100894,North East Lincolnshire Council
"Housing, Highways and Transport",Revenue Budgets,Economy And Growth,Home Options & Hous Rel Supp,A0955,Crisis Accomodation,A22020,Rental Property Service Charge,30010879,07/03/2022,202202,"1,375.70",100894,North East Lincolnshire Council
"Housing, Highways and Transport",Revenue Budgets,Economy And Growth,Home Options & Hous Rel Supp,A0955,Crisis Accomodation,A22020,Rental Property Service Charge,30010880,07/03/2022,202202,"1,377.32",100894,North East Lincolnshire Council
"Housing, Highways and Transport",Revenue Budgets,Economy And Growth,Home Options & Hous Rel Supp,A0955,Crisis Accomodation,A22020,Rental Property Service Charge,30010887,07/03/2022,202202,"1,375.70",100894,North East Lincolnshire Council
"Housing, Highways and Transport",Revenue Budgets,Economy And Growth,Home Options & Hous Rel Supp,A0955,Crisis Accomodation,A22020,Rental Property Service Charge,30010894,07/03/2022,202202,"1,375.70",100894,North East Lincolnshire Council
"Housing, Highways and Transport",Revenue Budgets,Economy And Growth,Home Options & Hous Rel Supp,A0955,Crisis Accomodation,A22020,Rental Property Service Charge,30010896,07/03/2022,202202,"1,375.70",100894,North East Lincolnshire Council
"Housing, Highways and Transport",Revenue Budgets,Economy And Growth,Home Options & Hous Rel Supp,A0955,Crisis Accomodation,A22020,Rental Property Service Charge,30010898,07/03/2022,202202,"1,375.70",100894,North East Lincolnshire Council
"Housing, Highways and Transport",Revenue Budgets,Economy And Growth,Home Options & Hous Rel Supp,A0955,Crisis Accomodation,A22020,Rental Property Service Charge,30010901,07/03/2022,202202,"1,375.70",100894,North East Lincolnshire Council
"Housing, Highways and Transport",Revenue Budgets,Economy And Growth,Home Options & Hous Rel Supp,A0955,Crisis Accomodation,A22020,Rental Property Service Charge,30010922,07/03/2022,202202,"1,375.70",100894,North East Lincolnshire Council
"Housing, Highways and Transport",Revenue Budgets,Economy And Growth,Home Options & Hous Rel Supp,A0955,Crisis Accomodation,A22020,Rental Property Service Charge,30010924,07/03/2022,202202,"1,375.70",100894,North East Lincolnshire Council
"Housing, Highways and Transport",Revenue Budgets,Economy And Growth,Home Options & Hous Rel Supp,A0955,Crisis Accomodation,A22020,Rental Property Service Charge,30010925,07/03/2022,202202,"1,375.70",100894,North East Lincolnshire Council
"Housing, Highways and Transport",Revenue Budgets,Economy And Growth,Home Options & Hous Rel Supp,A0955,Crisis Accomodation,A22020,Rental Property Service Charge,30010927,07/03/2022,202202,"1,375.70",100894,North East Lincolnshire Council
"Housing, Highways and Transport",Revenue Budgets,Economy And Growth,Home Options & Hous Rel Supp,A0955,Crisis Accomodation,A22020,Rental Property Service Charge,30010928,07/03/2022,202202,"1,377.32",100894,North East Lincolnshire Council
"Housing, Highways and Transport",Revenue Budgets,Economy And Growth,Home Options & Hous Rel Supp,A0955,Crisis Accomodation,A22020,Rental Property Service Charge,30010929,07/03/2022,202202,"1,377.32",100894,North East Lincolnshire Council
"Housing, Highways and Transport",Revenue Budgets,Economy And Growth,Home Options & Hous Rel Supp,A0955,Crisis Accomodation,A22020,Rental Property Service Charge,30010930,07/03/2022,202202,"1,375.70",100894,North East Lincolnshire Council
"Housing, Highways and Transport",Revenue Budgets,Economy And Growth,Home Options & Hous Rel Supp,A0955,Crisis Accomodation,A22020,Rental Property Service Charge,30010931,07/03/2022,202202,"1,377.32",100894,North East Lincolnshire Council
"Housing, Highways and Transport",Revenue Budgets,Economy And Growth,Home Options & Hous Rel Supp,A0955,Crisis Accomodation,A22020,Rental Property Service Charge,30010932,07/03/2022,202202,"1,377.32",100894,North East Lincolnshire Council
"Housing, Highways and Transport",Revenue Budgets,Economy And Growth,Home Options & Hous Rel Supp,A0955,Crisis Accomodation,A22020,Rental Property Service Charge,30010933,07/03/2022,202202,"1,377.32",100894,North East Lincolnshire Council
"Housing, Highways and Transport",Revenue Budgets,Economy And Growth,Home Options & Hous Rel Supp,A0955,Crisis Accomodation,A22020,Rental Property Service Charge,30010934,07/03/2022,202202,"1,375.70",100894,North East Lincolnshire Council
"Housing, Highways and Transport",Revenue Budgets,Economy And Growth,Home Options & Hous Rel Supp,A0955,Crisis Accomodation,A22020,Rental Property Service Charge,30010936,07/03/2022,202202,"1,375.70",100894,North East Lincolnshire Council
"Housing, Highways and Transport",Revenue Budgets,Economy And Growth,Home Options & Hous Rel Supp,A0955,Crisis Accomodation,A22020,Rental Property Service Charge,30010937,07/03/2022,202202,"1,375.70",100894,North East Lincolnshire Council
"Housing, Highways and Transport",Revenue Budgets,Economy And Growth,Home Options & Hous Rel Supp,A0955,Crisis Accomodation,A22020,Rental Property Service Charge,30010938,07/03/2022,202202,"1,377.32",100894,North East Lincolnshire Council
"Housing, Highways and Transport",Revenue Budgets,Economy And Growth,Home Options & Hous Rel Supp,A0955,Crisis Accomodation,A22020,Rental Property Service Charge,30010939,07/03/2022,202202,"1,375.70",100894,North East Lincolnshire Council
"Housing, Highways and Transport",Revenue Budgets,Economy And Growth,Home Options & Hous Rel Supp,A0955,Crisis Accomodation,A22020,Rental Property Service Charge,30010940,07/03/2022,202202,"1,375.70",100894,North East Lincolnshire Council
"Housing, Highways and Transport",Capital Spend,Economy And Growth,Corporation Rd Bridge Refurb,Y1803,Corporation Rd Bridge Refurb,C01009,"New Construction, conversion & renovation",30003950,10/03/2022,202202,"5,400.00",133267,Equans Services Ltd
"Housing, Highways and Transport",Revenue Budgets,Economy And Growth,Car Parks,A1219,Car Parks Works,A49105,Other Supplies & Services,30008960,11/03/2022,202202,"1,846.44",134124,Flowbird Smart City Uk Limited
"Housing, Highways and Transport",Capital Spend,Economy And Growth,Accelerated Cons Funding,Y1796,Acc Cons Funding Western,C01011,External Professional Fees,30010024,17/03/2022,202202,650,1000662,Homes England
"Housing, Highways and Transport",Capital Spend,Economy And Growth,Accelerated Cons Funding,Y1804,Acc Cons Funding Matthew Humb,C01011,External Professional Fees,30003958,21/03/2022,202202,"3,744.15",133267,Equans Services Ltd
"Housing, Highways and Transport",Capital Spend,Economy And Growth,Local Transport Plan Schemes,Y0392,Improve Traffic Signal Junc,C01010,Internal Professional Fees,30009800,21/03/2022,202202,"16,837.62",133267,Equans Services Ltd
"Housing, Highways and Transport",Capital Spend,Economy And Growth,Corporation Rd Bridge Refurb,Y1803,Corporation Rd Bridge Refurb,C01010,Internal Professional Fees,30011748,21/03/2022,202202,"3,500.00",133267,Equans Services Ltd
"Housing, Highways and Transport",Revenue Budgets,Economy And Growth,Home Options & Hous Rel Supp,A0955,Crisis Accomodation,A22020,Rental Property Service Charge,30010293,22/03/2022,202202,"4,867.11",100508,Anglian Water
"Housing, Highways and Transport",Revenue Budgets,Economy And Growth,Strategic Housing,A1714,Estates Regeneration Income,A56000,Other Establishments,30003953,24/03/2022,202202,"15,000.00",133267,Equans Services Ltd
"Housing, Highways and Transport",Revenue Budgets,Economy And Growth,Transport Policy,A1803,DfT Active Travel Fund,A44065,Consultancy Services,30006780,24/03/2022,202202,"8,500.00",1000604,Commonplace Digital Ltd
"Housing, Highways and Transport",Revenue Budgets,Economy And Growth,Transport Policy,A1274,Transport,A57126,Concessionary Fares,30007459,24/03/2022,202202,501,1000597,First TransPennine Express Limited
"Housing, Highways and Transport",Revenue Budgets,Economy And Growth,Home Options & Hous Rel Supp,A0953,Home Options,A56000,Other Establishments,30009374,25/03/2022,202202,886.66,Redacted Personal Information,Redacted Personal Information
"Housing, Highways and Transport",Revenue Budgets,Economy And Growth,Transport Policy,A1274,Transport,A57126,Concessionary Fares,30006812,28/03/2022,202202,"1,750.00",104034,F Hunt (Coach Hire) Ltd
"Housing, Highways and Transport",Capital Spend,Economy And Growth,Local Transport Plan Schemes,Y0263,Public Transport Schemes,C01005,Purchase of Land & Buildings,30007751,30/03/2022,202202,"13,775.00",1000584,DYNNIQ UK LTD
"Housing, Highways and Transport",Revenue Budgets,Economy And Growth,Highways Dso,A1231,Highways Dso,A30015,Vehicle Fuel,30008282,30/03/2022,202202,"26,084.05",138198,Your Nrg
"Housing, Highways and Transport",Revenue Budgets,Economy And Growth,Transport Policy,A1274,Transport,A44065,Consultancy Services,30009470,30/03/2022,202202,"56,152.98",104098,Systra Ltd
"Housing, Highways and Transport",Revenue Budgets,Economy And Growth,Transport Policy,A1274,Transport,A57126,Concessionary Fares,30010926,30/03/2022,202202,670.9,101786,Grayscroft Bus Services Limited
"Housing, Highways and Transport",Capital Spend,Economy And Growth,Hps-Disabled Fac. Grants,Y0436,Disab Facil Grant Mandatory,C01012,Payment of Grants/Advances,30006756,31/03/2022,202202,"2,209.60",146557,R G Carter Lincoln Ltd
"Housing, Highways and Transport",Capital Spend,Economy And Growth,Hps-Disabled Fac. Grants,Y0436,Disab Facil Grant Mandatory,C01012,Payment of Grants/Advances,30007728,01/04/2022,202202,"4,195.00",100849,Closomat Ltd
"Housing, Highways and Transport",Revenue Budgets,Economy And Growth,Home Options & Hous Rel Supp,A0953,Home Options,A56000,Other Establishments,30009532,01/04/2022,202202,"2,500.00",Redacted Personal Information,Redacted Personal Information
"Housing, Highways and Transport",Capital Spend,Economy And Growth,Hps-Disabled Fac. Grants,Y0436,Disab Facil Grant Mandatory,C01012,Payment of Grants/Advances,30010037,01/04/2022,202202,"20,087.86",136453,Jc Pomfret Construction Ltd
"Housing, Highways and Transport",Revenue Budgets,Economy And Growth,Home Options & Hous Rel Supp,A0956,Bed & Breakfast,A22005,Building Rents,30005522,05/04/2022,202202,900,Redacted Personal Information,Redacted Personal Information
"Housing, Highways and Transport",Capital Spend,Economy And Growth,Hps-Disabled Fac. Grants,Y0436,Disab Facil Grant Mandatory,C01012,Payment of Grants/Advances,30009967,06/04/2022,202202,"7,368.53",143385,Safespaces (Cornholme) Ltd
"Housing, Highways and Transport",Revenue Budgets,Economy And Growth,Highways Dso,A1231,Highways Dso,A30015,Vehicle Fuel,30006829,07/04/2022,202202,"24,476.66",138198,Your Nrg
"Housing, Highways and Transport",Capital Spend,Economy And Growth,Local Transport Plan Schemes,Y0389,Ltp Unclassified Roads,C01009,"New Construction, conversion & renovation",30008990,07/04/2022,202202,"78,874.83",125951,EC Surfacing Ltd
"Housing, Highways and Transport",Revenue Budgets,Economy And Growth,Home Options & Hous Rel Supp,A0955,Crisis Accomodation,A22020,Rental Property Service Charge,30003871,08/04/2022,202202,317.04,108375,Sse (Southern Electric)
"Housing, Highways and Transport",Revenue Budgets,Economy And Growth,Home Options & Hous Rel Supp,A0956,Bed & Breakfast,A22005,Building Rents,30007136,08/04/2022,202202,600,Redacted Personal Information,Redacted Personal Information
"Housing, Highways and Transport",Revenue Budgets,Economy And Growth,Home Options & Hous Rel Supp,A0956,Bed & Breakfast,A22005,Building Rents,30007137,08/04/2022,202202,300,Redacted Personal Information,Redacted Personal Information
"Housing, Highways and Transport",Revenue Budgets,Economy And Growth,Home Options & Hous Rel Supp,A0956,Bed & Breakfast,A22005,Building Rents,30007279,08/04/2022,202202,280,Redacted Personal Information,Redacted Personal Information
"Housing, Highways and Transport",Revenue Budgets,Economy And Growth,Home Options & Hous Rel Supp,A0956,Bed & Breakfast,A22005,Building Rents,30007291,08/04/2022,202202,360,Redacted Personal Information,Redacted Personal Information
"Housing, Highways and Transport",Revenue Budgets,Economy And Growth,Home Options & Hous Rel Supp,A0956,Bed & Breakfast,A22005,Building Rents,30006517,12/04/2022,202202,"1,100.00",Redacted Personal Information,Redacted Personal Information
"Housing, Highways and Transport",Revenue Budgets,Economy And Growth,Home Options & Hous Rel Supp,A0956,Bed & Breakfast,A22005,Building Rents,30006519,12/04/2022,202202,360,Redacted Personal Information,Redacted Personal Information
"Housing, Highways and Transport",Revenue Budgets,Economy And Growth,Home Options & Hous Rel Supp,A0956,Bed & Breakfast,A22005,Building Rents,30006520,12/04/2022,202202,350,Redacted Personal Information,Redacted Personal Information
"Housing, Highways and Transport",Revenue Budgets,Economy And Growth,Home Options & Hous Rel Supp,A0956,Bed & Breakfast,A22005,Building Rents,30006523,12/04/2022,202202,550,Redacted Personal Information,Redacted Personal Information
"Housing, Highways and Transport",Revenue Budgets,Economy And Growth,Home Options & Hous Rel Supp,A0956,Bed & Breakfast,A22005,Building Rents,30006526,12/04/2022,202202,"1,320.00",Redacted Personal Information,Redacted Personal Information
"Housing, Highways and Transport",Revenue Budgets,Economy And Growth,Home Options & Hous Rel Supp,A0956,Bed & Breakfast,A22005,Building Rents,30006527,12/04/2022,202202,"1,320.00",Redacted Personal Information,Redacted Personal Information
"Housing, Highways and Transport",Revenue Budgets,Economy And Growth,Highways Dso,A1231,Highways Dso,A30015,Vehicle Fuel,30007873,12/04/2022,202202,"23,972.58",138198,Your Nrg
"Housing, Highways and Transport",Capital Spend,Economy And Growth,Housing Assist Grants And Loan,Y0511,Housing Assistance,C01012,Payment of Grants/Advances,30009593,12/04/2022,202202,"1,860.59",101342,Haiths Heating Ltd
"Housing, Highways and Transport",Capital Spend,Economy And Growth,Local Transport Plan Schemes,Y0392,Improve Traffic Signal Junc,C01009,"New Construction, conversion & renovation",30010943,12/04/2022,202202,"39,267.49",127459,Pbs Construction (North East) Ltd
"Housing, Highways and Transport",Revenue Budgets,Economy And Growth,Planning,A1221,Planning,A93000,Fees & Charges,30009792,13/04/2022,202202,462,144928,Portal Plan Quest Ltd
"Housing, Highways and Transport",Capital Spend,Economy And Growth,Hps-Disabled Fac. Grants,Y0436,Disab Facil Grant Mandatory,C01012,Payment of Grants/Advances,30007727,14/04/2022,202202,"7,630.51",146603,Tspro Ltd
"Housing, Highways and Transport",Revenue Budgets,Economy And Growth,Home Options & Hous Rel Supp,A0955,Crisis Accomodation,A22020,Rental Property Service Charge,30007737,14/04/2022,202202,"1,426.93",100894,North East Lincolnshire Council
"Housing, Highways and Transport",Capital Spend,Economy And Growth,Hps-Disabled Fac. Grants,Y0436,Disab Facil Grant Mandatory,C01012,Payment of Grants/Advances,30009969,20/04/2022,202202,"12,888.30",103981,Vic Hansen Building & Joinery Ltd
"Housing, Highways and Transport",Revenue Budgets,Economy And Growth,Home Options & Hous Rel Supp,A0953,Home Options,A56000,Other Establishments,30008274,21/04/2022,202202,700,Redacted Personal Information,Redacted Personal Information
"Housing, Highways and Transport",Capital Spend,Economy And Growth,Hps-Disabled Fac. Grants,Y0436,Disab Facil Grant Mandatory,C01012,Payment of Grants/Advances,30006490,22/04/2022,202202,"2,603.81",133267,Equans Services Ltd
"Housing, Highways and Transport",Capital Spend,Economy And Growth,Hps-Disabled Fac. Grants,Y0436,Disab Facil Grant Mandatory,C01012,Payment of Grants/Advances,30006508,22/04/2022,202202,"1,450.00",133267,Equans Services Ltd
"Housing, Highways and Transport",Revenue Budgets,Economy And Growth,Home Options & Hous Rel Supp,A0956,Bed & Breakfast,A22005,Building Rents,30011277,22/04/2022,202202,956.25,Redacted Personal Information,Redacted Personal Information
"Housing, Highways and Transport",Revenue Budgets,Economy And Growth,Home Options & Hous Rel Supp,A0955,Crisis Accomodation,A22020,Rental Property Service Charge,30011357,22/04/2022,202202,"5,152.53",133267,Equans Services Ltd
"Housing, Highways and Transport",Capital Spend,Economy And Growth,Local Transport Plan Schemes,Y0072,Studies,C01008,Purchase of Software & Licences,30005936,25/04/2022,202202,"17,225.00",1000278,Building Software Ltd t/a measure2improve
"Housing, Highways and Transport",Revenue Budgets,Economy And Growth,Home Options & Hous Rel Supp,A0956,Bed & Breakfast,A22005,Building Rents,30006460,25/04/2022,202202,420,Redacted Personal Information,Redacted Personal Information
"Housing, Highways and Transport",Revenue Budgets,Economy And Growth,Home Options & Hous Rel Supp,A0956,Bed & Breakfast,A22005,Building Rents,30006463,25/04/2022,202202,595,Redacted Personal Information,Redacted Personal Information
"Housing, Highways and Transport",Revenue Budgets,Economy And Growth,Home Options & Hous Rel Supp,A0956,Bed & Breakfast,A22005,Building Rents,30006464,25/04/2022,202202,420,Redacted Personal Information,Redacted Personal Information
"Housing, Highways and Transport",Revenue Budgets,Economy And Growth,Home Options & Hous Rel Supp,A0956,Bed & Breakfast,A22005,Building Rents,30006464,25/04/2022,202202,420,Redacted Personal Information,Redacted Personal Information
"Housing, Highways and Transport",Revenue Budgets,Economy And Growth,Home Options & Hous Rel Supp,A0956,Bed & Breakfast,A22005,Building Rents,30006466,25/04/2022,202202,490,Redacted Personal Information,Redacted Personal Information
"Housing, Highways and Transport",Revenue Budgets,Economy And Growth,Home Options & Hous Rel Supp,A0956,Bed & Breakfast,A22005,Building Rents,30006468,25/04/2022,202202,420,Redacted Personal Information,Redacted Personal Information
"Housing, Highways and Transport",Revenue Budgets,Economy And Growth,Home Options & Hous Rel Supp,A0956,Bed & Breakfast,A22005,Building Rents,30006469,25/04/2022,202202,630,Redacted Personal Information,Redacted Personal Information
"Housing, Highways and Transport",Revenue Budgets,Economy And Growth,Home Options & Hous Rel Supp,A0956,Bed & Breakfast,A22005,Building Rents,30006472,25/04/2022,202202,420,Redacted Personal Information,Redacted Personal Information
"Housing, Highways and Transport",Revenue Budgets,Economy And Growth,Home Options & Hous Rel Supp,A0956,Bed & Breakfast,A22005,Building Rents,30006473,25/04/2022,202202,300,Redacted Personal Information,Redacted Personal Information
"Housing, Highways and Transport",Revenue Budgets,Economy And Growth,Home Options & Hous Rel Supp,A0956,Bed & Breakfast,A22005,Building Rents,30006476,25/04/2022,202202,560,Redacted Personal Information,Redacted Personal Information
"Housing, Highways and Transport",Revenue Budgets,Economy And Growth,Home Options & Hous Rel Supp,A0955,Crisis Accomodation,A22020,Rental Property Service Charge,30006935,25/04/2022,202202,259,100812,Electric Appliances Grimsby
"Housing, Highways and Transport",Revenue Budgets,Economy And Growth,Home Options & Hous Rel Supp,A0953,Home Options,A56000,Other Establishments,30007606,25/04/2022,202202,325,Redacted Personal Information,Redacted Personal Information
"Housing, Highways and Transport",Capital Spend,Economy And Growth,Housing Assist Grants And Loan,Y0511,Housing Assistance,C01012,Payment of Grants/Advances,30007723,25/04/2022,202202,"1,036.56",149391,Pacifica Group
"Housing, Highways and Transport",Capital Spend,Economy And Growth,Local Transport Plan Schemes,Y0263,Public Transport Schemes,C01005,Purchase of Land & Buildings,30009631,26/04/2022,202202,"13,946.93",124772,R2p Uk Systems Ltd
"Housing, Highways and Transport",Revenue Budgets,Economy And Growth,Transport Policy,A1803,DfT Active Travel Fund,A57010,Contributions to third parties,30003840,27/04/2022,202202,"2,850.00",119476,Cycle Hub Lincs Cic
"Housing, Highways and Transport",Revenue Budgets,Economy And Growth,Transport Policy,A1803,DfT Active Travel Fund,A57010,Contributions to third parties,30003845,27/04/2022,202202,"2,850.00",119476,Cycle Hub Lincs Cic
"Housing, Highways and Transport",Revenue Budgets,Economy And Growth,Transport Policy,A1803,DfT Active Travel Fund,A47006,Contributions - Communities,30003847,27/04/2022,202202,"1,080.00",119476,Cycle Hub Lincs Cic
"Housing, Highways and Transport",Revenue Budgets,Economy And Growth,Home Options & Hous Rel Supp,A0953,Home Options,A56000,Other Establishments,30005042,27/04/2022,202202,333.68,Redacted Personal Information,Redacted Personal Information
"Housing, Highways and Transport",Capital Spend,Economy And Growth,Gy and Imm Flood Innovation Funding,Y1853,Gy & Imm Flood Innov Funding,C01011,External Professional Fees,30006931,28/04/2022,202202,"22,002.00",106464,Ove Arup & Partners Ltd
"Housing, Highways and Transport",Revenue Budgets,Economy And Growth,Car Parks,A1219,Car Parks Works,A49105,Other Supplies & Services,30007777,28/04/2022,202202,"2,572.56",134124,Flowbird Smart City Uk Limited
"Housing, Highways and Transport",Revenue Budgets,Economy And Growth,Home Options & Hous Rel Supp,A0956,Bed & Breakfast,A22005,Building Rents,30010899,28/04/2022,202202,960,Redacted Personal Information,Redacted Personal Information
"Housing, Highways and Transport",Revenue Budgets,Economy And Growth,Home Options & Hous Rel Supp,A0956,Bed & Breakfast,A22005,Building Rents,30011467,28/04/2022,202202,"1,120.00",Redacted Personal Information,Redacted Personal Information
"Housing, Highways and Transport",Capital Spend,Economy And Growth,Hps-Disabled Fac. Grants,Y0436,Disab Facil Grant Mandatory,C01012,Payment of Grants/Advances,30006475,29/04/2022,202202,"23,829.27",120159,Able 4 Enterprise Ltd
"Housing, Highways and Transport",Capital Spend,Economy And Growth,Local Transport Plan Schemes,Y0187,Footway Maintenance,C01009,"New Construction, conversion & renovation",30008951,29/04/2022,202202,"32,224.58",100579,Specialist Surfacing Limited
"Housing, Highways and Transport",Capital Spend,Economy And Growth,Local Transport Plan Schemes,Y0187,Footway Maintenance,C01009,"New Construction, conversion & renovation",30010518,29/04/2022,202202,"18,236.91",100841,J Mccann & Co Ltd
"Housing, Highways and Transport",Revenue Budgets,Economy And Growth,Home Options & Hous Rel Supp,A0953,Home Options,A56000,Other Establishments,30005673,30/04/2022,202202,296.4,Redacted Personal Information,Redacted Personal Information
"Housing, Highways and Transport",Revenue Budgets,Economy And Growth,Transport Policy,A1275,Phone And Ride,A32045,Hire of Transport - Staff,30008159,30/04/2022,202202,"2,713.77",101404,Stagecoach Services
"Housing, Highways and Transport",Revenue Budgets,Economy And Growth,Transport Policy,A1275,Phone And Ride,A32045,Hire of Transport - Staff,30008163,30/04/2022,202202,"18,631.98",101404,Stagecoach Services
"Housing, Highways and Transport",Capital Spend,Economy And Growth,Local Transport Plan Schemes,Y0072,Studies,C01008,Purchase of Software & Licences,30010643,30/04/2022,202202,385,109236,Jct Consultancy Ltd
"Housing, Highways and Transport",Revenue Budgets,Economy And Growth,Home Options & Hous Rel Supp,A0953,Home Options,A56000,Other Establishments,30011669,30/04/2022,202202,733.5,Redacted Personal Information,Redacted Personal Information
"Housing, Highways and Transport",Revenue Budgets,Economy And Growth,Home Options & Hous Rel Supp,A0956,Bed & Breakfast,A22005,Building Rents,30012182,01/05/2022,202202,"1,594.20",Redacted Personal Information,Redacted Personal Information
"Housing, Highways and Transport",Revenue Budgets,Economy And Growth,Home Options & Hous Rel Supp,A0956,Bed & Breakfast,A22005,Building Rents,30007206,02/05/2022,202202,320,Redacted Personal Information,Redacted Personal Information
"Housing, Highways and Transport",Revenue Budgets,Economy And Growth,Home Options & Hous Rel Supp,A0956,Bed & Breakfast,A22005,Building Rents,30007207,02/05/2022,202202,420,Redacted Personal Information,Redacted Personal Information
"Housing, Highways and Transport",Revenue Budgets,Economy And Growth,Home Options & Hous Rel Supp,A0956,Bed & Breakfast,A22005,Building Rents,30007210,02/05/2022,202202,490,Redacted Personal Information,Redacted Personal Information
"Housing, Highways and Transport",Revenue Budgets,Economy And Growth,Home Options & Hous Rel Supp,A0956,Bed & Breakfast,A22005,Building Rents,30007211,02/05/2022,202202,595,Redacted Personal Information,Redacted Personal Information
"Housing, Highways and Transport",Revenue Budgets,Economy And Growth,Home Options & Hous Rel Supp,A0956,Bed & Breakfast,A22005,Building Rents,30007212,02/05/2022,202202,630,Redacted Personal Information,Redacted Personal Information
"Housing, Highways and Transport",Revenue Budgets,Economy And Growth,Home Options & Hous Rel Supp,A0956,Bed & Breakfast,A22005,Building Rents,30007214,02/05/2022,202202,840,Redacted Personal Information,Redacted Personal Information
"Housing, Highways and Transport",Revenue Budgets,Economy And Growth,Home Options & Hous Rel Supp,A0956,Bed & Breakfast,A22005,Building Rents,30007215,02/05/2022,202202,420,Redacted Personal Information,Redacted Personal Information
"Housing, Highways and Transport",Revenue Budgets,Economy And Growth,Home Options & Hous Rel Supp,A0956,Bed & Breakfast,A22005,Building Rents,30007216,02/05/2022,202202,420,Redacted Personal Information,Redacted Personal Information
"Housing, Highways and Transport",Revenue Budgets,Economy And Growth,Home Options & Hous Rel Supp,A0956,Bed & Breakfast,A22005,Building Rents,30007283,02/05/2022,202202,280,Redacted Personal Information,Redacted Personal Information
"Housing, Highways and Transport",Revenue Budgets,Economy And Growth,Home Options & Hous Rel Supp,A0956,Bed & Breakfast,A22005,Building Rents,30007284,02/05/2022,202202,560,Redacted Personal Information,Redacted Personal Information
"Housing, Highways and Transport",Revenue Budgets,Economy And Growth,Highways Dso,A1231,Highways Dso,A30015,Vehicle Fuel,30008694,03/05/2022,202202,"25,336.26",138198,Your Nrg
"Housing, Highways and Transport",Capital Spend,Economy And Growth,Local Transport Plan Schemes,Y0403,Public Trans Infrastru Improve,C01005,Purchase of Land & Buildings,30009028,03/05/2022,202202,318.64,127459,Pbs Construction (North East) Ltd
"Housing, Highways and Transport",Revenue Budgets,Economy And Growth,Home Options & Hous Rel Supp,A0955,Crisis Accomodation,A22005,Building Rents,30005914,04/05/2022,202202,"2,047.50",Redacted Personal Information,Redacted Personal Information
"Housing, Highways and Transport",Revenue Budgets,Economy And Growth,Home Options & Hous Rel Supp,A0955,Crisis Accomodation,A22005,Building Rents,30005927,04/05/2022,202202,"4,095.00",Redacted Personal Information,Redacted Personal Information
"Housing, Highways and Transport",Revenue Budgets,Economy And Growth,Home Options & Hous Rel Supp,A0955,Crisis Accomodation,A22005,Building Rents,30005931,04/05/2022,202202,409.98,Redacted Personal Information,Redacted Personal Information
"Housing, Highways and Transport",Revenue Budgets,Economy And Growth,Home Options & Hous Rel Supp,A0955,Crisis Accomodation,A22005,Building Rents,30005932,04/05/2022,202202,508.86,Redacted Personal Information,Redacted Personal Information
"Housing, Highways and Transport",Revenue Budgets,Economy And Growth,Home Options & Hous Rel Supp,A0953,Home Options,A56000,Other Establishments,30007119,04/05/2022,202202,370.16,Redacted Personal Information,Redacted Personal Information
"Housing, Highways and Transport",Revenue Budgets,Economy And Growth,Supporting People,A1831,DA Safe Accommodation Duty,A47005,"Grants, Contributions & Donations",30007125,04/05/2022,202202,"35,000.00",146428,The Blue Door
"Housing, Highways and Transport",Revenue Budgets,Economy And Growth,Home Options & Hous Rel Supp,A0953,Home Options,A56000,Other Establishments,30008161,04/05/2022,202202,400,Redacted Personal Information,Redacted Personal Information
"Housing, Highways and Transport",Revenue Budgets,Economy And Growth,Home Options & Hous Rel Supp,A0955,Crisis Accomodation,A22020,Rental Property Service Charge,30011497,04/05/2022,202202,868,103262,Carpets Galore
"Housing, Highways and Transport",Revenue Budgets,Economy And Growth,Home Options & Hous Rel Supp,A0955,Crisis Accomodation,A22005,Building Rents,30012155,04/05/2022,202202,787.4,Redacted Personal Information,Redacted Personal Information
"Housing, Highways and Transport",Revenue Budgets,Economy And Growth,Planning,A1221,Planning,A93000,Fees & Charges,30006400,05/05/2022,202202,924,144928,Portal Plan Quest Ltd
"Housing, Highways and Transport",Revenue Budgets,Economy And Growth,Home Options & Hous Rel Supp,A0953,Home Options,A56000,Other Establishments,30007540,05/05/2022,202202,525,Redacted Personal Information,Redacted Personal Information
"Housing, Highways and Transport",Revenue Budgets,Economy And Growth,Home Options & Hous Rel Supp,A0955,Crisis Accomodation,A22005,Building Rents,30006510,06/05/2022,202202,"4,500.00",Redacted Personal Information,Redacted Personal Information
"Housing, Highways and Transport",Revenue Budgets,Economy And Growth,Home Options & Hous Rel Supp,A0955,Crisis Accomodation,A22005,Building Rents,30006830,06/05/2022,202202,"3,919.80",Redacted Personal Information,Redacted Personal Information
"Housing, Highways and Transport",Revenue Budgets,Economy And Growth,Home Options & Hous Rel Supp,A0956,Bed & Breakfast,A22005,Building Rents,30010870,06/05/2022,202202,600,Redacted Personal Information,Redacted Personal Information
"Housing, Highways and Transport",Revenue Budgets,Economy And Growth,Home Options & Hous Rel Supp,A0956,Bed & Breakfast,A22005,Building Rents,30010870,06/05/2022,202202,"1,200.00",Redacted Personal Information,Redacted Personal Information
"Housing, Highways and Transport",Revenue Budgets,Economy And Growth,Home Options & Hous Rel Supp,A0956,Bed & Breakfast,A22005,Building Rents,30010873,06/05/2022,202202,"1,440.00",Redacted Personal Information,Redacted Personal Information
"Housing, Highways and Transport",Revenue Budgets,Economy And Growth,Home Options & Hous Rel Supp,A0956,Bed & Breakfast,A22005,Building Rents,30010882,06/05/2022,202202,960,Redacted Personal Information,Redacted Personal Information
"Housing, Highways and Transport",Revenue Budgets,Economy And Growth,Home Options & Hous Rel Supp,A0956,Bed & Breakfast,A22005,Building Rents,30010891,06/05/2022,202202,385,Redacted Personal Information,Redacted Personal Information
"Housing, Highways and Transport",Revenue Budgets,Economy And Growth,Home Options & Hous Rel Supp,A0956,Bed & Breakfast,A22005,Building Rents,30010893,06/05/2022,202202,625,Redacted Personal Information,Redacted Personal Information
"Housing, Highways and Transport",Capital Spend,Economy And Growth,Local Transport Plan Schemes,Y0260,Involve Inform Encourage,C01009,"New Construction, conversion & renovation",30007487,09/05/2022,202202,665,129985,Almega Promotional Gifts Ltd
"Housing, Highways and Transport",Revenue Budgets,Economy And Growth,Supporting People,A0762,Housing Related Support,A61143,Third Pp - Block Gross,30007933,09/05/2022,202202,"4,441.00",121549,Nhs North East Lincolnshire Ccg
"Housing, Highways and Transport",Revenue Budgets,Economy And Growth,Home Options & Hous Rel Supp,A0956,Bed & Breakfast,A22005,Building Rents,30008143,09/05/2022,202202,595,Redacted Personal Information,Redacted Personal Information
"Housing, Highways and Transport",Revenue Budgets,Economy And Growth,Home Options & Hous Rel Supp,A0956,Bed & Breakfast,A22005,Building Rents,30008149,09/05/2022,202202,880,Redacted Personal Information,Redacted Personal Information
"Housing, Highways and Transport",Revenue Budgets,Economy And Growth,Home Options & Hous Rel Supp,A0956,Bed & Breakfast,A22005,Building Rents,30008178,09/05/2022,202202,595,Redacted Personal Information,Redacted Personal Information
"Housing, Highways and Transport",Revenue Budgets,Economy And Growth,Home Options & Hous Rel Supp,A0956,Bed & Breakfast,A22005,Building Rents,30008181,09/05/2022,202202,560,Redacted Personal Information,Redacted Personal Information
"Housing, Highways and Transport",Revenue Budgets,Economy And Growth,Home Options & Hous Rel Supp,A0956,Bed & Breakfast,A22005,Building Rents,30010366,09/05/2022,202202,720,Redacted Personal Information,Redacted Personal Information
"Housing, Highways and Transport",Revenue Budgets,Economy And Growth,Drainage & Coastal Defence,A1229,Land Drainage Works,A56000,Other Establishments,30006820,10/05/2022,202202,"85,246.32",133267,Equans Services Ltd
"Housing, Highways and Transport",Capital Spend,Economy And Growth,Housing Assist Grants And Loan,Y0512,Compulsary Purchase Order,C01012,Payment of Grants/Advances,30007138,10/05/2022,202202,"4,030.00",146797,East Marsh Community Limited
"Housing, Highways and Transport",Revenue Budgets,Economy And Growth,Home Options & Hous Rel Supp,A0955,Crisis Accomodation,A22020,Rental Property Service Charge,30007277,10/05/2022,202202,567.46,100570,Wilkinson
"Housing, Highways and Transport",Capital Spend,Economy And Growth,Local Transport Plan Schemes,Y0392,Improve Traffic Signal Junc,C01009,"New Construction, conversion & renovation",30007361,10/05/2022,202202,"10,050.79",128602,Oneway Tm Limited
"Housing, Highways and Transport",Capital Spend,Economy And Growth,Local Transport Plan Schemes,Y0074,LTP Programme Management,C01011,External Professional Fees,30007538,10/05/2022,202202,"585,192.94",133267,Equans Services Ltd
"Housing, Highways and Transport",Revenue Budgets,Economy And Growth,Supporting People,A1663,Syrian Refugees Resettlement,A56000,Other Establishments,30009384,10/05/2022,202202,"2,026.00",144120,Learning4life-Gy-Cic
"Housing, Highways and Transport",Capital Spend,Economy And Growth,Local Transport Plan Schemes,Y0018,Junction Imp,C01009,"New Construction, conversion & renovation",30007545,11/05/2022,202202,"1,300.00",121248,Local Transport Projects Ltd
"Housing, Highways and Transport",Capital Spend,Economy And Growth,Local Transport Plan Schemes,Y0392,Improve Traffic Signal Junc,C01009,"New Construction, conversion & renovation",30007569,11/05/2022,202202,"6,944.50",128602,Oneway Tm Limited
"Housing, Highways and Transport",Revenue Budgets,Economy And Growth,Home Options & Hous Rel Supp,A0953,Home Options,A56000,Other Establishments,30007536,12/05/2022,202202,700,Redacted Personal Information,Redacted Personal Information
"Housing, Highways and Transport",Revenue Budgets,Economy And Growth,Home Options & Hous Rel Supp,A0953,Home Options,A56000,Other Establishments,30009952,12/05/2022,202202,295.72,Redacted Personal Information,Redacted Personal Information
"Housing, Highways and Transport",Revenue Budgets,Economy And Growth,Home Options & Hous Rel Supp,A0955,Crisis Accomodation,A22005,Building Rents,30010068,12/05/2022,202202,"4,410.00",Redacted Personal Information,Redacted Personal Information
"Housing, Highways and Transport",Capital Spend,Economy And Growth,Housing Assist Grants And Loan,Y0512,Compulsary Purchase Order,C01012,Payment of Grants/Advances,30010074,12/05/2022,202202,"42,182.58",136453,Jc Pomfret Construction Ltd
"Housing, Highways and Transport",Revenue Budgets,Economy And Growth,Home Options & Hous Rel Supp,A0955,Crisis Accomodation,A22005,Building Rents,30010075,12/05/2022,202202,"4,410.00",Redacted Personal Information,Redacted Personal Information
"Housing, Highways and Transport",Revenue Budgets,Economy And Growth,Home Options & Hous Rel Supp,A0955,Crisis Accomodation,A22005,Building Rents,30010079,12/05/2022,202202,"4,095.00",Redacted Personal Information,Redacted Personal Information
"Housing, Highways and Transport",Revenue Budgets,Economy And Growth,In Scope Contract,A0977,Contract Fee Hways/Trans/Plan,A57115,Payments to Private Contractors,30011112,12/05/2022,202202,"1,250.00",1001068,Hymans Robertson LLP
"Housing, Highways and Transport",Revenue Budgets,Economy And Growth,Transport Policy,A1803,DfT Active Travel Fund,A44131,Traffic Maintenance,30008185,13/05/2022,202202,"16,000.00",1000631,Limeforge Ltd
"Housing, Highways and Transport",Revenue Budgets,Economy And Growth,Highways Dso,A1231,Highways Dso,A30015,Vehicle Fuel,30008692,13/05/2022,202202,"25,580.86",138198,Your Nrg
"Housing, Highways and Transport",Revenue Budgets,Economy And Growth,Home Options & Hous Rel Supp,A0953,Home Options,A56000,Other Establishments,30010030,13/05/2022,202202,"1,500.00",Redacted Personal Information,Redacted Personal Information
"Housing, Highways and Transport",Revenue Budgets,Economy And Growth,Home Options & Hous Rel Supp,A0953,Home Options,A56000,Other Establishments,30009398,14/05/2022,202202,"15,600.00",Redacted Personal Information,Redacted Personal Information
"Housing, Highways and Transport",Capital Spend,Economy And Growth,Hps-Disabled Fac. Grants,Y0436,Disab Facil Grant Mandatory,C01012,Payment of Grants/Advances,30011259,14/05/2022,202202,"20,002.76",120159,Able 4 Enterprise Ltd
"Housing, Highways and Transport",Revenue Budgets,Economy And Growth,Home Options & Hous Rel Supp,A0956,Bed & Breakfast,A22005,Building Rents,30008145,16/05/2022,202202,490,Redacted Personal Information,Redacted Personal Information
"Housing, Highways and Transport",Revenue Budgets,Economy And Growth,Home Options & Hous Rel Supp,A0956,Bed & Breakfast,A22005,Building Rents,30008154,16/05/2022,202202,630,Redacted Personal Information,Redacted Personal Information
"Housing, Highways and Transport",Revenue Budgets,Economy And Growth,Home Options & Hous Rel Supp,A0956,Bed & Breakfast,A22005,Building Rents,30008169,16/05/2022,202202,420,Redacted Personal Information,Redacted Personal Information
"Housing, Highways and Transport",Revenue Budgets,Economy And Growth,Home Options & Hous Rel Supp,A0956,Bed & Breakfast,A22005,Building Rents,30008179,16/05/2022,202202,420,Redacted Personal Information,Redacted Personal Information
"Housing, Highways and Transport",Capital Spend,Economy And Growth,Local Transport Plan Schemes,Y0002,Cycle Route,C01009,"New Construction, conversion & renovation",30008182,16/05/2022,202202,"4,795.00",146425,Cls Civil Engineering Ltd
"Housing, Highways and Transport",Revenue Budgets,Economy And Growth,Home Options & Hous Rel Supp,A0956,Bed & Breakfast,A22005,Building Rents,30008184,16/05/2022,202202,420,Redacted Personal Information,Redacted Personal Information
"Housing, Highways and Transport",Revenue Budgets,Economy And Growth,Home Options & Hous Rel Supp,A0953,Home Options,A56000,Other Establishments,30009811,16/05/2022,202202,888,Redacted Personal Information,Redacted Personal Information
"Housing, Highways and Transport",Revenue Budgets,Economy And Growth,Home Options & Hous Rel Supp,A0953,Home Options,A56000,Other Establishments,30009858,16/05/2022,202202,367.72,Redacted Personal Information,Redacted Personal Information
"Housing, Highways and Transport",Revenue Budgets,Economy And Growth,Home Options & Hous Rel Supp,A0956,Bed & Breakfast,A22005,Building Rents,30010343,16/05/2022,202202,595,Redacted Personal Information,Redacted Personal Information
"Housing, Highways and Transport",Revenue Budgets,Economy And Growth,Home Options & Hous Rel Supp,A0956,Bed & Breakfast,A22005,Building Rents,30010353,16/05/2022,202202,350,Redacted Personal Information,Redacted Personal Information
"Housing, Highways and Transport",Revenue Budgets,Economy And Growth,Home Options & Hous Rel Supp,A0956,Bed & Breakfast,A22005,Building Rents,30010358,16/05/2022,202202,490,Redacted Personal Information,Redacted Personal Information
"Housing, Highways and Transport",Revenue Budgets,Economy And Growth,Home Options & Hous Rel Supp,A0956,Bed & Breakfast,A22005,Building Rents,30010362,16/05/2022,202202,595,Redacted Personal Information,Redacted Personal Information
"Housing, Highways and Transport",Revenue Budgets,Economy And Growth,Home Options & Hous Rel Supp,A0956,Bed & Breakfast,A22005,Building Rents,30010368,16/05/2022,202202,420,Redacted Personal Information,Redacted Personal Information
"Housing, Highways and Transport",Revenue Budgets,Economy And Growth,Home Options & Hous Rel Supp,A0956,Bed & Breakfast,A22005,Building Rents,30010377,16/05/2022,202202,630,Redacted Personal Information,Redacted Personal Information
"Housing, Highways and Transport",Revenue Budgets,Economy And Growth,Home Options & Hous Rel Supp,A0956,Bed & Breakfast,A22005,Building Rents,30010381,16/05/2022,202202,630,Redacted Personal Information,Redacted Personal Information
"Housing, Highways and Transport",Revenue Budgets,Economy And Growth,Home Options & Hous Rel Supp,A0956,Bed & Breakfast,A22005,Building Rents,30010384,16/05/2022,202202,560,Redacted Personal Information,Redacted Personal Information
"Housing, Highways and Transport",Revenue Budgets,Economy And Growth,Home Options & Hous Rel Supp,A0956,Bed & Breakfast,A22005,Building Rents,30010386,16/05/2022,202202,420,Redacted Personal Information,Redacted Personal Information
"Housing, Highways and Transport",Revenue Budgets,Economy And Growth,Home Options & Hous Rel Supp,A0953,Home Options,A56000,Other Establishments,30008031,17/05/2022,202202,"1,201.52",Redacted Personal Information,Redacted Personal Information
"Housing, Highways and Transport",Capital Spend,Economy And Growth,Hps-Disabled Fac. Grants,Y0436,Disab Facil Grant Mandatory,C01012,Payment of Grants/Advances,30009616,17/05/2022,202202,375,101317,Dolphin Mobility East Midlands Ltd
"Housing, Highways and Transport",Revenue Budgets,Economy And Growth,Home Options & Hous Rel Supp,A0953,Home Options,A56000,Other Establishments,30009733,17/05/2022,202202,370.76,Redacted Personal Information,Redacted Personal Information
"Housing, Highways and Transport",Revenue Budgets,Economy And Growth,Home Options & Hous Rel Supp,A0956,Bed & Breakfast,A22005,Building Rents,30010363,17/05/2022,202202,480,Redacted Personal Information,Redacted Personal Information
"Housing, Highways and Transport",Capital Spend,Economy And Growth,Corporation Rd Bridge Refurb,Y1803,Corporation Rd Bridge Refurb,C01009,"New Construction, conversion & renovation",30010783,17/05/2022,202202,"6,000.00",133267,Equans Services Ltd
"Housing, Highways and Transport",Revenue Budgets,Economy And Growth,Car Parks,A1219,Car Parks Works,A49105,Other Supplies & Services,30009556,18/05/2022,202202,"3,075.96",134124,Flowbird Smart City Uk Limited
"Housing, Highways and Transport",Revenue Budgets,Economy And Growth,Supporting People,A1663,Syrian Refugees Resettlement,A56000,Other Establishments,30009610,18/05/2022,202202,"3,000.00",Redacted,Petty Cash
"Housing, Highways and Transport",Revenue Budgets,Economy And Growth,Home Options & Hous Rel Supp,A0953,Home Options,A56000,Other Establishments,30009515,19/05/2022,202202,420,Redacted Personal Information,Redacted Personal Information
"Housing, Highways and Transport",Revenue Budgets,Economy And Growth,Home Options & Hous Rel Supp,A0956,Bed & Breakfast,A22005,Building Rents,30011346,19/05/2022,202202,"1,400.00",Redacted Personal Information,Redacted Personal Information
"Housing, Highways and Transport",Revenue Budgets,Economy And Growth,Home Options & Hous Rel Supp,A0956,Bed & Breakfast,A22005,Building Rents,30011346,19/05/2022,202202,"1,720.00",Redacted Personal Information,Redacted Personal Information
"Housing, Highways and Transport",Revenue Budgets,Economy And Growth,Home Options & Hous Rel Supp,A0955,Crisis Accomodation,A22005,Building Rents,30009596,20/05/2022,202202,733.33,Redacted Personal Information,Redacted Personal Information
"Housing, Highways and Transport",Revenue Budgets,Economy And Growth,Home Options & Hous Rel Supp,A0955,Crisis Accomodation,A22005,Building Rents,30009606,20/05/2022,202202,733.33,Redacted Personal Information,Redacted Personal Information
"Housing, Highways and Transport",Revenue Budgets,Economy And Growth,Home Options & Hous Rel Supp,A0956,Bed & Breakfast,A22005,Building Rents,30011334,20/05/2022,202202,480,Redacted Personal Information,Redacted Personal Information
"Housing, Highways and Transport",Revenue Budgets,Economy And Growth,Home Options & Hous Rel Supp,A0956,Bed & Breakfast,A22005,Building Rents,30011334,20/05/2022,202202,600,Redacted Personal Information,Redacted Personal Information
"Housing, Highways and Transport",Revenue Budgets,Economy And Growth,Home Options & Hous Rel Supp,A0956,Bed & Breakfast,A22005,Building Rents,30011338,20/05/2022,202202,480,Redacted Personal Information,Redacted Personal Information
"Housing, Highways and Transport",Revenue Budgets,Economy And Growth,Home Options & Hous Rel Supp,A0956,Bed & Breakfast,A22005,Building Rents,30011338,20/05/2022,202202,520,Redacted Personal Information,Redacted Personal Information
"Housing, Highways and Transport",Revenue Budgets,Economy And Growth,Home Options & Hous Rel Supp,A0956,Bed & Breakfast,A22005,Building Rents,30011345,20/05/2022,202202,400,Redacted Personal Information,Redacted Personal Information
"Housing, Highways and Transport",Revenue Budgets,Economy And Growth,Home Options & Hous Rel Supp,A0956,Bed & Breakfast,A22005,Building Rents,30011350,20/05/2022,202202,280,Redacted Personal Information,Redacted Personal Information
"Housing, Highways and Transport",Revenue Budgets,Economy And Growth,Home Options & Hous Rel Supp,A0956,Bed & Breakfast,A22005,Building Rents,30011355,20/05/2022,202202,840,Redacted Personal Information,Redacted Personal Information
"Housing, Highways and Transport",Revenue Budgets,Economy And Growth,Home Options & Hous Rel Supp,A0956,Bed & Breakfast,A22005,Building Rents,30011358,20/05/2022,202202,"1,680.00",Redacted Personal Information,Redacted Personal Information
"Housing, Highways and Transport",Revenue Budgets,Economy And Growth,Home Options & Hous Rel Supp,A0956,Bed & Breakfast,A22005,Building Rents,30011360,20/05/2022,202202,480,Redacted Personal Information,Redacted Personal Information
"Housing, Highways and Transport",Revenue Budgets,Economy And Growth,Home Options & Hous Rel Supp,A0956,Bed & Breakfast,A22005,Building Rents,30011364,20/05/2022,202202,280,Redacted Personal Information,Redacted Personal Information
"Housing, Highways and Transport",Revenue Budgets,Economy And Growth,Home Options & Hous Rel Supp,A0956,Bed & Breakfast,A22005,Building Rents,30011367,20/05/2022,202202,"2,680.00",Redacted Personal Information,Redacted Personal Information
"Housing, Highways and Transport",Revenue Budgets,Economy And Growth,Home Options & Hous Rel Supp,A0956,Bed & Breakfast,A22005,Building Rents,30011369,20/05/2022,202202,"1,680.00",Redacted Personal Information,Redacted Personal Information
"Housing, Highways and Transport",Revenue Budgets,Economy And Growth,Home Options & Hous Rel Supp,A0956,Bed & Breakfast,A22005,Building Rents,30011553,20/05/2022,202202,"1,500.00",Redacted Personal Information,Redacted Personal Information
"Housing, Highways and Transport",Revenue Budgets,Economy And Growth,Home Options & Hous Rel Supp,A0956,Bed & Breakfast,A22005,Building Rents,30011563,20/05/2022,202202,620,Redacted Personal Information,Redacted Personal Information
"Housing, Highways and Transport",Revenue Budgets,Economy And Growth,Home Options & Hous Rel Supp,A0956,Bed & Breakfast,A22005,Building Rents,30011563,20/05/2022,202202,780,Redacted Personal Information,Redacted Personal Information
"Housing, Highways and Transport",Revenue Budgets,Economy And Growth,Home Options & Hous Rel Supp,A0956,Bed & Breakfast,A22005,Building Rents,30011565,20/05/2022,202202,"1,500.00",Redacted Personal Information,Redacted Personal Information
"Housing, Highways and Transport",Revenue Budgets,Economy And Growth,Home Options & Hous Rel Supp,A0956,Bed & Breakfast,A22005,Building Rents,30011576,20/05/2022,202202,600,Redacted Personal Information,Redacted Personal Information
"Housing, Highways and Transport",Revenue Budgets,Economy And Growth,Traffic Management,A1266,Traffic Management Works,A44005,Publicity Materials,30010286,22/05/2022,202202,469.28,141974,Reach Publishing Services Limited
"Housing, Highways and Transport",Revenue Budgets,Economy And Growth,Traffic Management,A1266,Traffic Management Works,A44005,Publicity Materials,30010314,22/05/2022,202202,314.25,141974,Reach Publishing Services Limited
"Housing, Highways and Transport",Capital Spend,Economy And Growth,Local Transport Plan Schemes,Y0403,Public Trans Infrastru Improve,C01005,Purchase of Land & Buildings,30011697,22/05/2022,202202,"6,174.32",1001063,Bus Shelters Ltd
"Housing, Highways and Transport",Capital Spend,Economy And Growth,Local Transport Plan Schemes,Y0403,Public Trans Infrastru Improve,C01005,Purchase of Land & Buildings,30011702,22/05/2022,202202,"6,174.32",1001063,Bus Shelters Ltd
"Housing, Highways and Transport",Revenue Budgets,Economy And Growth,Home Options & Hous Rel Supp,A0956,Bed & Breakfast,A22005,Building Rents,30011944,23/05/2022,202202,350,Redacted Personal Information,Redacted Personal Information
"Housing, Highways and Transport",Revenue Budgets,Economy And Growth,Home Options & Hous Rel Supp,A0956,Bed & Breakfast,A22005,Building Rents,30011948,23/05/2022,202202,420,Redacted Personal Information,Redacted Personal Information
"Housing, Highways and Transport",Revenue Budgets,Economy And Growth,Home Options & Hous Rel Supp,A0956,Bed & Breakfast,A22005,Building Rents,30011951,23/05/2022,202202,255,Redacted Personal Information,Redacted Personal Information
"Housing, Highways and Transport",Revenue Budgets,Economy And Growth,Home Options & Hous Rel Supp,A0956,Bed & Breakfast,A22005,Building Rents,30011953,23/05/2022,202202,595,Redacted Personal Information,Redacted Personal Information
"Housing, Highways and Transport",Revenue Budgets,Economy And Growth,Home Options & Hous Rel Supp,A0956,Bed & Breakfast,A22005,Building Rents,30011955,23/05/2022,202202,420,Redacted Personal Information,Redacted Personal Information
"Housing, Highways and Transport",Revenue Budgets,Economy And Growth,Home Options & Hous Rel Supp,A0956,Bed & Breakfast,A22005,Building Rents,30011956,23/05/2022,202202,630,Redacted Personal Information,Redacted Personal Information
"Housing, Highways and Transport",Revenue Budgets,Economy And Growth,Home Options & Hous Rel Supp,A0956,Bed & Breakfast,A22005,Building Rents,30011960,23/05/2022,202202,630,Redacted Personal Information,Redacted Personal Information
"Housing, Highways and Transport",Revenue Budgets,Economy And Growth,Home Options & Hous Rel Supp,A0956,Bed & Breakfast,A22005,Building Rents,30011968,23/05/2022,202202,560,Redacted Personal Information,Redacted Personal Information
"Housing, Highways and Transport",Revenue Budgets,Economy And Growth,Home Options & Hous Rel Supp,A0953,Home Options,A56000,Other Establishments,30009818,24/05/2022,202202,316.17,Redacted Personal Information,Redacted Personal Information
"Housing, Highways and Transport",Revenue Budgets,Economy And Growth,Home Options & Hous Rel Supp,A0953,Home Options,A56000,Other Establishments,30010342,24/05/2022,202202,600,Redacted Personal Information,Redacted Personal Information
"Housing, Highways and Transport",Revenue Budgets,Economy And Growth,Home Options & Hous Rel Supp,A0955,Crisis Accomodation,A47005,"Grants, Contributions & Donations",30011468,24/05/2022,202202,"56,000.00",Redacted Personal Information,Redacted Personal Information
"Housing, Highways and Transport",Revenue Budgets,Economy And Growth,Street Lighting,A1262,Street Lighting Non-Principal,A21025,Street Lighting - Energy Costs,42092909,24/05/2022,202202,"44,998.53",103611,Total Energies Gas & Power Ltd
"Housing, Highways and Transport",Revenue Budgets,Economy And Growth,Home Options & Hous Rel Supp,A0953,Home Options,A56000,Other Establishments,30011365,27/05/2022,202202,267.42,Redacted Personal Information,Redacted Personal Information
"Housing, Highways and Transport",Revenue Budgets,Economy And Growth,Home Options & Hous Rel Supp,A0953,Home Options,A56000,Other Establishments,30011758,27/05/2022,202202,339.12,Redacted Personal Information,Redacted Personal Information
"Housing, Highways and Transport",Revenue Budgets,Economy And Growth,Home Options & Hous Rel Supp,A0953,Home Options,A56000,Other Establishments,30011766,27/05/2022,202202,400,Redacted Personal Information,Redacted Personal Information
"Housing, Highways and Transport",Revenue Budgets,Economy And Growth,Home Options & Hous Rel Supp,A0953,Home Options,A56000,Other Establishments,30011800,27/05/2022,202202,"1,050.00",Redacted Personal Information,Redacted Personal Information
"Housing, Highways and Transport",Revenue Budgets,Economy And Growth,Highways Dso,A1231,Highways Dso,A21005,Electricity,42093795,27/05/2022,202202,306.94,103611,Total Energies Gas & Power Ltd
"Housing, Highways and Transport",Revenue Budgets,Economy And Growth,Car Parks,A1219,Car Parks Works,A21005,Electricity,42093795,27/05/2022,202202,"1,625.00",103611,Total Energies Gas & Power Ltd
"Housing, Highways and Transport",Revenue Budgets,Economy And Growth,Home Options & Hous Rel Supp,A0953,Home Options,A56000,Other Establishments,30011510,28/05/2022,202202,402.5,Redacted Personal Information,Redacted Personal Information
"Housing, Highways and Transport",Revenue Budgets,Economy And Growth,Home Options & Hous Rel Supp,A0955,Crisis Accomodation,A22020,Rental Property Service Charge,30011534,28/05/2022,202202,564.84,103262,Carpets Galore
"Housing, Highways and Transport",Revenue Budgets,Economy And Growth,Home Options & Hous Rel Supp,A0953,Home Options,A56000,Other Establishments,30011511,30/05/2022,202202,353.92,Redacted Personal Information,Redacted Personal Information
"Housing, Highways and Transport",Capital Spend,Economy And Growth,Local Transport Plan Schemes,Y0046,Lighting Columns Def,C01009,"New Construction, conversion & renovation",30012034,31/05/2022,202202,"4,793.91",100841,J Mccann & Co Ltd
"Law, Governance and Assets",Capital Spend,Resources,Backlog Maintenance,Y1445,Gilbey Rd Depot Backlog Maint,C01009,"New Construction, conversion & renovation",30002755,07/02/2022,202202,879.08,105081,Mobile Mini Uk Ltd
"Law, Governance and Assets",Revenue Budgets,Resources,Legal Services,A0473,Ccare Legal,A44968,Legal & Conveyancing Charges,30006561,17/02/2022,202202,525,148144,Michael Forrest
"Law, Governance and Assets",Revenue Budgets,Resources,Legal Services,A0225,Legal Consultancy,A47010,Subscriptions (non staff),30011462,22/02/2022,202202,"2,148.73",101852,Motion Picture Licensing Company
"Law, Governance and Assets",Revenue Budgets,Resources,Coroners,A0229,Coroners Court,A61176,Post Mortems,30006744,02/03/2022,202202,276.9,Redacted Personal Information,Redacted Personal Information
"Law, Governance and Assets",Capital Spend,Resources,Backlog Maintenance,Y1667,Clee Lc Backlog Maintenance,C01009,"New Construction, conversion & renovation",30009029,02/03/2022,202202,"2,885.01",144162,Topcon Building Ltd
"Law, Governance and Assets",Capital Spend,Resources,Backlog Maintenance,Y1667,Clee Lc Backlog Maintenance,C01009,"New Construction, conversion & renovation",30010719,02/03/2022,202202,"2,885.01",144162,Topcon Building Ltd
"Law, Governance and Assets",Revenue Budgets,Resources,Facilities Management,A0316,West Marsh Cc Premises,A20005,"Property Repairs, Maintenance & Alterations",30010947,16/03/2022,202202,376.5,118749,Thrunscoe Primary And Nursery Academy
"Law, Governance and Assets",Revenue Budgets,Resources,Facilities Management,A0321,Highgate Cc Premises,A20005,"Property Repairs, Maintenance & Alterations",30010947,16/03/2022,202202,817.8,118749,Thrunscoe Primary And Nursery Academy
"Law, Governance and Assets",Revenue Budgets,Resources,Facilities Management,A0321,Highgate Cc Premises,A21010,Gas,30010947,16/03/2022,202202,709.45,118749,Thrunscoe Primary And Nursery Academy
"Law, Governance and Assets",Revenue Budgets,Resources,Facilities Management,A0321,Highgate Cc Premises,A27010,Contract Cleaning,30010947,16/03/2022,202202,262.17,118749,Thrunscoe Primary And Nursery Academy
"Law, Governance and Assets",Capital Spend,Resources,Backlog Maintenance,Y1453,Health & Safe Emergency Work,C01009,"New Construction, conversion & renovation",30003945,17/03/2022,202202,"1,535.00",133267,Equans Services Ltd
"Law, Governance and Assets",Capital Spend,Resources,Backlog Maintenance,Y1443,Market Hall Backlog Maint,C01009,"New Construction, conversion & renovation",30004008,17/03/2022,202202,765.56,133267,Equans Services Ltd
"Law, Governance and Assets",Revenue Budgets,Resources,Legal Services,A0473,Ccare Legal,A44968,Legal & Conveyancing Charges,30007525,18/03/2022,202202,"14,400.00",1000141,Park Place
"Law, Governance and Assets",Revenue Budgets,Resources,Legal Services,A0473,Ccare Legal,A49105,Other Supplies & Services,30001207,22/03/2022,202202,-594,141816,Dna Legal
"Law, Governance and Assets",Revenue Budgets,Resources,Coroners,A0229,Coroners Court,A44042,Alternative Provision,30001424,23/03/2022,202202,657,109470,Wilkin Chapman Llp Solicitors
"Law, Governance and Assets",Capital Spend,Resources,Property Rationalisation Prog,Y1495,Municipal Offices,C01009,"New Construction, conversion & renovation",30003911,24/03/2022,202202,"2,994.26",133267,Equans Services Ltd
"Law, Governance and Assets",Capital Spend,Resources,Backlog Maintenance,Y1440,Nfhc Backlog Maint,C01009,"New Construction, conversion & renovation",30003948,24/03/2022,202202,309.74,133267,Equans Services Ltd
"Law, Governance and Assets",Capital Spend,Resources,Backlog Maintenance,Y1440,Nfhc Backlog Maint,C01009,"New Construction, conversion & renovation",30003956,24/03/2022,202202,630,133267,Equans Services Ltd
"Law, Governance and Assets",Capital Spend,Resources,Backlog Maintenance,Y1443,Market Hall Backlog Maint,C01009,"New Construction, conversion & renovation",30004005,24/03/2022,202202,"1,880.54",133267,Equans Services Ltd
"Law, Governance and Assets",Capital Spend,Resources,Backlog Maintenance,Y1453,Health & Safe Emergency Work,C01009,"New Construction, conversion & renovation",30004006,24/03/2022,202202,"4,258.10",133267,Equans Services Ltd
"Law, Governance and Assets",Capital Spend,Resources,Backlog Maintenance,Y1458,Gy Town Hall Backlog Maint,C01009,"New Construction, conversion & renovation",30004011,24/03/2022,202202,"6,070.00",133267,Equans Services Ltd
"Law, Governance and Assets",Capital Spend,Resources,Backlog Maintenance,Y1640,Gy Leisure Backlog Maint,C01009,"New Construction, conversion & renovation",30004012,24/03/2022,202202,"4,261.00",133267,Equans Services Ltd
"Law, Governance and Assets",Capital Spend,Resources,Backlog Maintenance,Y1443,Market Hall Backlog Maint,C01009,"New Construction, conversion & renovation",30006731,24/03/2022,202202,430.34,133267,Equans Services Ltd
"Law, Governance and Assets",Revenue Budgets,Resources,Coroners,A0229,Coroners Court,A61179,Mortuary Storage Charges,30001426,25/03/2022,202202,"5,242.00",111074,N Lincs & Goole Hospitals Nhs Foundation Trus
"Law, Governance and Assets",Revenue Budgets,Resources,Coroners,A0229,Coroners Court,A61179,Mortuary Storage Charges,30001429,25/03/2022,202202,"8,775.00",111074,N Lincs & Goole Hospitals Nhs Foundation Trus
"Law, Governance and Assets",Revenue Budgets,Resources,Facilities Management,A0322,Queensway Cc Premises,A27010,Contract Cleaning,30003846,25/03/2022,202202,974.38,146901,Bidvest Noonan (Uk) Ltd
"Law, Governance and Assets",Revenue Budgets,Resources,Legal Services,A0473,Ccare Legal,A44968,Legal & Conveyancing Charges,30006416,25/03/2022,202202,"2,520.00",143651,Mewa Llp
"Law, Governance and Assets",Revenue Budgets,Resources,Coroners,A0229,Coroners Court,A61176,Post Mortems,30001392,28/03/2022,202202,"2,010.00",Redacted Personal Information,Redacted Personal Information
"Law, Governance and Assets",Revenue Budgets,Resources,Coroners,A0229,Coroners Court,A61177,Conveyance Bodies,30006186,29/03/2022,202202,540,103343,Mashfords
"Law, Governance and Assets",Revenue Budgets,Resources,Legal Services,A0473,Ccare Legal,A44968,Legal & Conveyancing Charges,30006380,29/03/2022,202202,570,109973,Mr Mark Watterson
"Law, Governance and Assets",Revenue Budgets,Resources,Legal Services,A0473,Ccare Legal,A44968,Legal & Conveyancing Charges,30006462,29/03/2022,202202,525,1000545,Brett Davies
"Law, Governance and Assets",Revenue Budgets,Resources,Legal Services,A0473,Ccare Legal,A44968,Legal & Conveyancing Charges,30006564,29/03/2022,202202,"11,950.00",147197,Crown Chambers
"Law, Governance and Assets",Revenue Budgets,Resources,Legal Services,A0473,Ccare Legal,A44968,Legal & Conveyancing Charges,30007732,29/03/2022,202202,450,143374,Miss Alison Davenport
"Law, Governance and Assets",Revenue Budgets,Resources,Legal Services,A0473,Ccare Legal,A44968,Legal & Conveyancing Charges,30008660,29/03/2022,202202,900,147197,Crown Chambers
"Law, Governance and Assets",Revenue Budgets,Resources,Legal Services,A0473,Ccare Legal,A44968,Legal & Conveyancing Charges,30008683,29/03/2022,202202,385,143988,Miss Gemma Carr
"Law, Governance and Assets",Revenue Budgets,Resources,Legal Services,A0473,Ccare Legal,A44968,Legal & Conveyancing Charges,30010991,29/03/2022,202202,350,146697,Miss Philippa Pudney
"Law, Governance and Assets",Revenue Budgets,Resources,Legal Services,A0473,Ccare Legal,A44968,Legal & Conveyancing Charges,30011217,29/03/2022,202202,350,1000872,Georgina Dalton
"Law, Governance and Assets",Revenue Budgets,Resources,Legal Services,A0473,Ccare Legal,A44968,Legal & Conveyancing Charges,30011261,29/03/2022,202202,655,146667,Miss Chloe Lee
"Law, Governance and Assets",Revenue Budgets,Resources,Legal Services,A0473,Ccare Legal,A44968,Legal & Conveyancing Charges,30011708,29/03/2022,202202,546,147197,Crown Chambers
"Law, Governance and Assets",Revenue Budgets,Resources,Legal Services,A0473,Ccare Legal,A44968,Legal & Conveyancing Charges,30011717,29/03/2022,202202,462,147197,Crown Chambers
"Law, Governance and Assets",Revenue Budgets,Resources,Legal Services,A0473,Ccare Legal,A49105,Other Supplies & Services,30011949,29/03/2022,202202,320,130979,Mendes Investigation Services Limited
"Law, Governance and Assets",Revenue Budgets,Resources,Coroners,A0229,Coroners Court,A61176,Post Mortems,30001428,30/03/2022,202202,"2,376.90",Redacted Personal Information,Redacted Personal Information
"Law, Governance and Assets",Revenue Budgets,Resources,Legal Services,A0473,Ccare Legal,A44968,Legal & Conveyancing Charges,30008663,30/03/2022,202202,"1,470.00",139686,Miss Joanne F Jenkins
"Law, Governance and Assets",Revenue Budgets,Resources,Legal Services,A0473,Ccare Legal,A44968,Legal & Conveyancing Charges,30008667,30/03/2022,202202,540,147197,Crown Chambers
"Law, Governance and Assets",Revenue Budgets,Resources,Legal Services,A0473,Ccare Legal,A44968,Legal & Conveyancing Charges,30008668,30/03/2022,202202,462,147197,Crown Chambers
"Law, Governance and Assets",Revenue Budgets,Resources,Legal Services,A0473,Ccare Legal,A44968,Legal & Conveyancing Charges,30008670,30/03/2022,202202,572,147197,Crown Chambers
"Law, Governance and Assets",Revenue Budgets,Resources,Legal Services,A0473,Ccare Legal,A44968,Legal & Conveyancing Charges,30008671,30/03/2022,202202,525,145182,Richard Lee
"Law, Governance and Assets",Revenue Budgets,Resources,Legal Services,A0473,Ccare Legal,A44968,Legal & Conveyancing Charges,30008673,30/03/2022,202202,540,147197,Crown Chambers
"Law, Governance and Assets",Revenue Budgets,Resources,Legal Services,A0473,Ccare Legal,A44968,Legal & Conveyancing Charges,30008676,30/03/2022,202202,572,147197,Crown Chambers
"Law, Governance and Assets",Revenue Budgets,Resources,Legal Services,A0473,Ccare Legal,A44968,Legal & Conveyancing Charges,30008678,30/03/2022,202202,780,147197,Crown Chambers
"Law, Governance and Assets",Revenue Budgets,Resources,Legal Services,A0473,Ccare Legal,A44968,Legal & Conveyancing Charges,30008680,30/03/2022,202202,"1,916.00",147197,Crown Chambers
"Law, Governance and Assets",Revenue Budgets,Resources,Legal Services,A0473,Ccare Legal,A44968,Legal & Conveyancing Charges,30008684,30/03/2022,202202,540,147197,Crown Chambers
"Law, Governance and Assets",Revenue Budgets,Resources,Legal Services,A0473,Ccare Legal,A44968,Legal & Conveyancing Charges,30008686,30/03/2022,202202,525,145182,Richard Lee
"Law, Governance and Assets",Revenue Budgets,Resources,Legal Services,A0473,Ccare Legal,A44968,Legal & Conveyancing Charges,30006151,31/03/2022,202202,420,148463,Amber Hobson
"Law, Governance and Assets",Revenue Budgets,Resources,Legal Services,A0473,Ccare Legal,A44968,Legal & Conveyancing Charges,30006156,31/03/2022,202202,525,136396,Gavin Button
"Law, Governance and Assets",Revenue Budgets,Resources,Commercial Estate,A1175,Europarc Innovation Centre,A27015,Refuse Collection,30006312,31/03/2022,202202,392.35,101433,Ellgia Limited
"Law, Governance and Assets",Revenue Budgets,Resources,Legal Services,A0473,Ccare Legal,A44968,Legal & Conveyancing Charges,30006638,31/03/2022,202202,462,147197,Crown Chambers
"Law, Governance and Assets",Revenue Budgets,Resources,Legal Services,A0473,Ccare Legal,A44968,Legal & Conveyancing Charges,30007740,31/03/2022,202202,420,147197,Crown Chambers
"Law, Governance and Assets",Revenue Budgets,Resources,Legal Services,A0473,Ccare Legal,A44968,Legal & Conveyancing Charges,30007747,31/03/2022,202202,924,147197,Crown Chambers
"Law, Governance and Assets",Revenue Budgets,Resources,Legal Services,A0473,Ccare Legal,A44968,Legal & Conveyancing Charges,30008937,31/03/2022,202202,420,148463,Amber Hobson
"Law, Governance and Assets",Capital Spend,Resources,Backlog Maintenance,Y1668,King George V Backlog Maint,C01009,"New Construction, conversion & renovation",30009595,31/03/2022,202202,"24,052.80",150731,R & J Hill Engineering Ltd
"Law, Governance and Assets",Revenue Budgets,Resources,Legal Services,A0473,Ccare Legal,A44968,Legal & Conveyancing Charges,30006196,01/04/2022,202202,455,146667,Miss Chloe Lee
"Law, Governance and Assets",Revenue Budgets,Resources,Legal Services,A0473,Ccare Legal,A49105,Other Supplies & Services,30006414,01/04/2022,202202,695.67,1000523,Hubs & Co
"Law, Governance and Assets",Revenue Budgets,Resources,Facilities Management,A1101,Boating Lake Car Park Toilets,A57115,Payments to Private Contractors,30007533,01/04/2022,202202,"1,764.58",142148,Danfo (Uk) Limited
"Law, Governance and Assets",Revenue Budgets,Resources,Facilities Management,A1088,Peoples Park,A57115,Payments to Private Contractors,30007533,01/04/2022,202202,"1,764.58",142148,Danfo (Uk) Limited
"Law, Governance and Assets",Revenue Budgets,Resources,Facilities Management,A1112,Market Hall Toilets,A57115,Payments to Private Contractors,30007533,01/04/2022,202202,"2,184.42",142148,Danfo (Uk) Limited
"Law, Governance and Assets",Revenue Budgets,Resources,Facilities Management,A1109,St Peters Avenue Toilets,A57115,Payments to Private Contractors,30007533,01/04/2022,202202,"2,200.92",142148,Danfo (Uk) Limited
"Law, Governance and Assets",Revenue Budgets,Resources,Facilities Management,A1106,Kingsway Toilets,A57115,Payments to Private Contractors,30007533,01/04/2022,202202,"2,618.67",142148,Danfo (Uk) Limited
"Law, Governance and Assets",Revenue Budgets,Resources,Facilities Management,A1107,Sea Road Toilets,A57115,Payments to Private Contractors,30007533,01/04/2022,202202,"4,185.08",142148,Danfo (Uk) Limited
"Law, Governance and Assets",Revenue Budgets,Resources,Legal Services,A0473,Ccare Legal,A44968,Legal & Conveyancing Charges,30011661,01/04/2022,202202,900,143374,Miss Alison Davenport
"Law, Governance and Assets",Revenue Budgets,Resources,Coroners,A0229,Coroners Court,A44042,Alternative Provision,30006059,04/04/2022,202202,719,109470,Wilkin Chapman Llp Solicitors
"Law, Governance and Assets",Revenue Budgets,Resources,Coroners,A0229,Coroners Court,A61176,Post Mortems,30006195,05/04/2022,202202,486.9,Redacted Personal Information,Redacted Personal Information
"Law, Governance and Assets",Revenue Budgets,Resources,Coroners,A0229,Coroners Court,A44042,Alternative Provision,30006189,06/04/2022,202202,438,109470,Wilkin Chapman Llp Solicitors
"Law, Governance and Assets",Revenue Budgets,Resources,Facilities Management,A1059,Doughty Road Depot,A21015,Heating Oil,30008269,06/04/2022,202202,"1,394.10",138198,Your Nrg
"Law, Governance and Assets",Revenue Budgets,Resources,Legal Services,A0473,Ccare Legal,A44968,Legal & Conveyancing Charges,30006646,07/04/2022,202202,"1,402.00",147197,Crown Chambers
"Law, Governance and Assets",Revenue Budgets,Resources,Legal Services,A0473,Ccare Legal,A49105,Other Supplies & Services,30006229,08/04/2022,202202,638,125634,Lextox Drug & Alcohol Testing
"Law, Governance and Assets",Revenue Budgets,Resources,Legal Services,A0473,Ccare Legal,A49105,Other Supplies & Services,30011662,08/04/2022,202202,638,125634,Lextox Drug & Alcohol Testing
"Law, Governance and Assets",Revenue Budgets,Resources,Legal Services,A0473,Ccare Legal,A49105,Other Supplies & Services,30006471,11/04/2022,202202,296.67,125634,Lextox Drug & Alcohol Testing
"Law, Governance and Assets",Revenue Budgets,Resources,Legal Services,A0473,Ccare Legal,A44968,Legal & Conveyancing Charges,30006377,12/04/2022,202202,362.5,1000544,Connor Stuart
"Law, Governance and Assets",Revenue Budgets,Resources,Legal Services,A0473,Ccare Legal,A44968,Legal & Conveyancing Charges,30006644,12/04/2022,202202,"1,860.00",147197,Crown Chambers
"Law, Governance and Assets",Revenue Budgets,Resources,Legal Services,A0473,Ccare Legal,A44968,Legal & Conveyancing Charges,30007724,12/04/2022,202202,420,147197,Crown Chambers
"Law, Governance and Assets",Revenue Budgets,Resources,Legal Services,A0473,Ccare Legal,A44968,Legal & Conveyancing Charges,30007761,12/04/2022,202202,420,147197,Crown Chambers
"Law, Governance and Assets",Revenue Budgets,Resources,Legal Services,A0473,Ccare Legal,A44968,Legal & Conveyancing Charges,30007768,12/04/2022,202202,275.8,147197,Crown Chambers
"Law, Governance and Assets",Revenue Budgets,Resources,Legal Services,A0473,Ccare Legal,A44968,Legal & Conveyancing Charges,30007769,12/04/2022,202202,773.6,147197,Crown Chambers
"Law, Governance and Assets",Revenue Budgets,Resources,Legal Services,A0473,Ccare Legal,A44968,Legal & Conveyancing Charges,30007771,12/04/2022,202202,312,147197,Crown Chambers
"Law, Governance and Assets",Revenue Budgets,Resources,Legal Services,A0473,Ccare Legal,A44968,Legal & Conveyancing Charges,30007785,12/04/2022,202202,588,147197,Crown Chambers
"Law, Governance and Assets",Revenue Budgets,Resources,Legal Services,A0473,Ccare Legal,A44968,Legal & Conveyancing Charges,30008958,12/04/2022,202202,564,147197,Crown Chambers
"Law, Governance and Assets",Revenue Budgets,Resources,Facilities Management,A1130,REDACTED,A24005,Water Services,30011134,12/04/2022,202202,288.19,100508,Anglian Water
"Law, Governance and Assets",Revenue Budgets,Resources,Coroners,A0229,Coroners Court,A61176,Post Mortems,30006781,13/04/2022,202202,800,1000608,APC (Pathology) LTD
"Law, Governance and Assets",Revenue Budgets,Resources,Coroners,A0229,Coroners Court,A61177,Conveyance Bodies,30007467,13/04/2022,202202,750,106813,J W Emberson Funeral Directors
"Law, Governance and Assets",Revenue Budgets,Resources,Legal Services,A0473,Ccare Legal,A49105,Other Supplies & Services,30006467,19/04/2022,202202,422.67,125634,Lextox Drug & Alcohol Testing
"Law, Governance and Assets",Revenue Budgets,Resources,Commercial Estate,A1186,Grimsby Market,A27020,Cleaning Materials,30007491,20/04/2022,202202,572.53,101161,Siemens Financial Services Ltd
"Law, Governance and Assets",Revenue Budgets,Resources,Facilities Management,A1059,Doughty Road Depot,A21015,Heating Oil,30008693,20/04/2022,202202,"1,084.80",138198,Your Nrg
"Law, Governance and Assets",Revenue Budgets,Resources,Facilities Management,A1059,Doughty Road Depot,A21015,Heating Oil,30008695,20/04/2022,202202,"2,750.50",138198,Your Nrg
"Law, Governance and Assets",Revenue Budgets,Resources,Facilities Management,A0982,REDACTED,A24005,Water Services,30011138,20/04/2022,202202,344.34,100508,Anglian Water
"Law, Governance and Assets",Revenue Budgets,Resources,Coroners,A0229,Coroners Court,A44042,Alternative Provision,30002682,21/04/2022,202202,-264.15,100389,Lincolnshire County Council
"Law, Governance and Assets",Revenue Budgets,Resources,Legal Services,A0473,Ccare Legal,A44968,Legal & Conveyancing Charges,30011213,21/04/2022,202202,525,1000873,Marie Habin
"Law, Governance and Assets",Capital Spend,Resources,Backlog Maintenance,Y1453,Health & Safe Emergency Work,C01009,"New Construction, conversion & renovation",30006412,22/04/2022,202202,"7,804.11",133267,Equans Services Ltd
"Law, Governance and Assets",Capital Spend,Resources,Backlog Maintenance,Y1667,Clee Lc Backlog Maintenance,C01009,"New Construction, conversion & renovation",30006413,22/04/2022,202202,399.33,133267,Equans Services Ltd
"Law, Governance and Assets",Revenue Budgets,Resources,Facilities Management,A0979,Heritage Centre Building,A27505,Grounds Maintenance,30006418,22/04/2022,202202,"2,297.86",133267,Equans Services Ltd
"Law, Governance and Assets",Capital Spend,Resources,Backlog Maintenance,Y1443,Market Hall Backlog Maint,C01009,"New Construction, conversion & renovation",30006427,22/04/2022,202202,"2,094.18",133267,Equans Services Ltd
"Law, Governance and Assets",Revenue Budgets,Resources,Facilities Management,A0469,Void Property Costs,A20005,"Property Repairs, Maintenance & Alterations",30006430,22/04/2022,202202,672,133267,Equans Services Ltd
"Law, Governance and Assets",Revenue Budgets,Resources,Commercial Estate,A1668,Cartergate,A20005,"Property Repairs, Maintenance & Alterations",30006732,22/04/2022,202202,"3,400.94",133267,Equans Services Ltd
"Law, Governance and Assets",Revenue Budgets,Resources,Commercial Estate,A1185,Alexandra Dock Business Units,A45025,Communications,30006750,22/04/2022,202202,"3,000.00",133267,Equans Services Ltd
"Law, Governance and Assets",Revenue Budgets,Resources,Commercial Estate,A1211,Seafront Properties,A20005,"Property Repairs, Maintenance & Alterations",30006752,22/04/2022,202202,326.48,133267,Equans Services Ltd
"Law, Governance and Assets",Revenue Budgets,Resources,Commercial Estate,A1176,Poplar Road Fact Units,A20005,"Property Repairs, Maintenance & Alterations",30006755,22/04/2022,202202,882,133267,Equans Services Ltd
"Law, Governance and Assets",Revenue Budgets,Resources,Facilities Management,A0323,Riverside Cc Premises,A27010,Contract Cleaning,30008542,22/04/2022,202202,"1,293.56",146901,Bidvest Noonan (Uk) Ltd
"Law, Governance and Assets",Revenue Budgets,Resources,Coroners,A0229,Coroners Court,A22010,Hire of Rooms,30006199,25/04/2022,202202,565,101604,Cleethorpes Charter Trustees
"Law, Governance and Assets",Revenue Budgets,Resources,Legal Services,A0473,Ccare Legal,A44968,Legal & Conveyancing Charges,30011660,25/04/2022,202202,850,1000877,Charlotte Keighley
"Law, Governance and Assets",Revenue Budgets,Resources,Legal Services,A0473,Ccare Legal,A44968,Legal & Conveyancing Charges,30006218,26/04/2022,202202,350,146667,Miss Chloe Lee
"Law, Governance and Assets",Revenue Budgets,Resources,Coroners,A0229,Coroners Court,A44042,Alternative Provision,30006155,27/04/2022,202202,588,109470,Wilkin Chapman Llp Solicitors
"Law, Governance and Assets",Revenue Budgets,Resources,Legal Services,A0473,Ccare Legal,A49105,Other Supplies & Services,30006157,27/04/2022,202202,395.25,1000524,Bennett Expert Reports Limited
"Law, Governance and Assets",Revenue Budgets,Resources,Legal Services,A0473,Ccare Legal,A49105,Other Supplies & Services,30006191,27/04/2022,202202,357.12,124337,Forensic Testing Service
"Law, Governance and Assets",Revenue Budgets,Resources,Coroners,A0229,Coroners Court,A61176,Post Mortems,30007109,27/04/2022,202202,"2,003.80",Redacted Personal Information,Redacted Personal Information
"Law, Governance and Assets",Revenue Budgets,Resources,Legal Services,A0473,Ccare Legal,A44968,Legal & Conveyancing Charges,30007774,27/04/2022,202202,"1,134.00",147197,Crown Chambers
"Law, Governance and Assets",Revenue Budgets,Resources,Facilities Management,A0317,Central Cc Premises,A27010,Contract Cleaning,30011571,27/04/2022,202202,930.55,147934,For Under Fives Central Childrens Centre
"Law, Governance and Assets",Revenue Budgets,Resources,Legal Services,A0473,Ccare Legal,A49105,Other Supplies & Services,30006410,28/04/2022,202202,663.2,129570,Advanced Child Care Assessments Ltd
"Law, Governance and Assets",Capital Spend,Resources,Property Rationalisation Prog,Y1548,Various - Prop Rationalisation,C01009,"New Construction, conversion & renovation",30004165,29/04/2022,202202,"1,576.32",143057,Professional Telecom Installations Ltd
"Law, Governance and Assets",Revenue Budgets,Resources,Legal Services,A0473,Ccare Legal,A44042,Alternative Provision,30006230,29/04/2022,202202,372.08,146697,Miss Philippa Pudney
"Law, Governance and Assets",Revenue Budgets,Resources,Legal Services,A0473,Ccare Legal,A47010,Subscriptions (non staff),30007730,29/04/2022,202202,"1,570.50",1000596,DX
"Law, Governance and Assets",Revenue Budgets,Resources,Legal Services,A0473,Ccare Legal,A44968,Legal & Conveyancing Charges,30008928,29/04/2022,202202,556,147197,Crown Chambers
"Law, Governance and Assets",Revenue Budgets,Resources,Facilities Management,A0321,Highgate Cc Premises,A20015,Security / Surveillance Equipment Maintenance,30010923,29/04/2022,202202,266.14,118749,Thrunscoe Primary And Nursery Academy
"Law, Governance and Assets",Revenue Budgets,Resources,Facilities Management,A0321,Highgate Cc Premises,A21010,Gas,30010923,29/04/2022,202202,330.66,118749,Thrunscoe Primary And Nursery Academy
"Law, Governance and Assets",Revenue Budgets,Resources,Facilities Management,A0321,Highgate Cc Premises,A27010,Contract Cleaning,30010923,29/04/2022,202202,278.06,118749,Thrunscoe Primary And Nursery Academy
"Law, Governance and Assets",Revenue Budgets,Resources,Legal Services,A0473,Ccare Legal,A44968,Legal & Conveyancing Charges,30011262,29/04/2022,202202,711.2,147197,Crown Chambers
"Law, Governance and Assets",Revenue Budgets,Resources,Coroners,A0229,Coroners Court,A61176,Post Mortems,30006184,30/04/2022,202202,"2,485.00",Redacted Personal Information,Redacted Personal Information
"Law, Governance and Assets",Revenue Budgets,Resources,Commercial Estate,A1178,King Edward St Ent. Centre,A27015,Refuse Collection,30006696,30/04/2022,202202,838.52,101433,Ellgia Limited
"Law, Governance and Assets",Revenue Budgets,Resources,Commercial Estate,A1180,Wilton Road Ent Centre,A27015,Refuse Collection,30006705,30/04/2022,202202,484.94,101433,Ellgia Limited
"Law, Governance and Assets",Revenue Budgets,Resources,Commercial Estate,A1175,Europarc Innovation Centre,A27015,Refuse Collection,30007462,30/04/2022,202202,296.16,101433,Ellgia Limited
"Law, Governance and Assets",Revenue Budgets,Resources,Coroners,A0229,Coroners Court,A61177,Conveyance Bodies,30011050,03/05/2022,202202,266,104355,Near And Near
"Law, Governance and Assets",Revenue Budgets,Resources,Facilities Management,A0981,Facilities Management,A27010,Contract Cleaning,30006881,04/05/2022,202202,"1,763.03",100554,Phs Group Ltd
"Law, Governance and Assets",Revenue Budgets,Resources,Legal Services,A0473,Ccare Legal,A44968,Legal & Conveyancing Charges,30010970,04/05/2022,202202,570,123497,Mr James A Goodwin
"Law, Governance and Assets",Revenue Budgets,Resources,Legal Services,A0473,Ccare Legal,A44968,Legal & Conveyancing Charges,30010998,05/05/2022,202202,315,104432,Mr Michael S Burdon
"Law, Governance and Assets",Revenue Budgets,Resources,Legal Services,A0473,Ccare Legal,A49105,Other Supplies & Services,30008929,06/05/2022,202202,714.5,125634,Lextox Drug & Alcohol Testing
"Law, Governance and Assets",Revenue Budgets,Resources,Legal Services,A0473,Ccare Legal,A49105,Other Supplies & Services,30008936,06/05/2022,202202,632,125634,Lextox Drug & Alcohol Testing
"Law, Governance and Assets",Revenue Budgets,Resources,Legal Services,A0473,Ccare Legal,A44968,Legal & Conveyancing Charges,30011644,06/05/2022,202202,385,146697,Miss Philippa Pudney
"Law, Governance and Assets",Revenue Budgets,Resources,Legal Services,A0473,Ccare Legal,A44968,Legal & Conveyancing Charges,30011656,06/05/2022,202202,350,1000872,Georgina Dalton
"Law, Governance and Assets",Revenue Budgets,Resources,Facilities Management,A0297,Nbpcc Premises,A27015,Refuse Collection,30011554,08/05/2022,202202,642.72,101433,Ellgia Limited
"Law, Governance and Assets",Revenue Budgets,Resources,Facilities Management,A0320,Immingham Cc Premises,A27015,Refuse Collection,30011559,08/05/2022,202202,309.27,101433,Ellgia Limited
"Law, Governance and Assets",Revenue Budgets,Resources,Facilities Management,A0299,East Marsh Cc Premises,A27015,Refuse Collection,30011564,08/05/2022,202202,321.36,101433,Ellgia Limited
"Law, Governance and Assets",Revenue Budgets,Resources,Coroners,A0229,Coroners Court,A61176,Post Mortems,30006701,09/05/2022,202202,"1,979.00",Redacted Personal Information,Redacted Personal Information
"Law, Governance and Assets",Revenue Budgets,Resources,Coroners,A0229,Coroners Court,A61176,Post Mortems,30010104,09/05/2022,202202,763.8,Redacted Personal Information,Redacted Personal Information
"Law, Governance and Assets",Revenue Budgets,Resources,Legal Services,A0473,Ccare Legal,A49105,Other Supplies & Services,30008828,10/05/2022,202202,392.87,124337,Forensic Testing Service
"Law, Governance and Assets",Revenue Budgets,Resources,Legal Services,A0473,Ccare Legal,A49105,Other Supplies & Services,30011651,10/05/2022,202202,468,146277,Psychology Experts Ltd
"Law, Governance and Assets",Revenue Budgets,Resources,Facilities Management,A1770,REDACTED,A24005,Water Services,30010960,11/05/2022,202202,254.37,100508,Anglian Water
"Law, Governance and Assets",Revenue Budgets,Resources,Legal Services,A0473,Ccare Legal,A44968,Legal & Conveyancing Charges,30011263,11/05/2022,202202,431.66,146697,Miss Philippa Pudney
"Law, Governance and Assets",Revenue Budgets,Resources,Coroners,A0229,Coroners Court,A22010,Hire of Rooms,30008719,12/05/2022,202202,352.5,101604,Cleethorpes Charter Trustees
"Law, Governance and Assets",Revenue Budgets,Resources,Legal Services,A0473,Ccare Legal,A49105,Other Supplies & Services,30011646,12/05/2022,202202,638,125634,Lextox Drug & Alcohol Testing
"Law, Governance and Assets",Capital Spend,Resources,Property Rationalisation Prog,Y1548,Various - Prop Rationalisation,C01009,"New Construction, conversion & renovation",30009951,13/05/2022,202202,860,100811,W R Cullum
"Law, Governance and Assets",Revenue Budgets,Resources,Facilities Management,A1105,Kennedy Way Toilets,A22020,Rental Property Service Charge,30011045,13/05/2022,202202,"7,800.00",101597,Immingham Town Council
"Law, Governance and Assets",Revenue Budgets,Resources,Legal Services,A0473,Ccare Legal,A49105,Other Supplies & Services,30011278,16/05/2022,202202,675,143651,Mewa Llp
"Law, Governance and Assets",Revenue Budgets,Resources,Facilities Management,A0299,East Marsh Cc Premises,A20005,"Property Repairs, Maintenance & Alterations",30009679,17/05/2022,202202,"1,267.88",133267,Equans Services Ltd
"Law, Governance and Assets",Revenue Budgets,Resources,Facilities Management,A0322,Queensway Cc Premises,A20005,"Property Repairs, Maintenance & Alterations",30009689,17/05/2022,202202,646.2,133267,Equans Services Ltd
"Law, Governance and Assets",Revenue Budgets,Resources,Facilities Management,A0317,Central Cc Premises,A20005,"Property Repairs, Maintenance & Alterations",30009691,17/05/2022,202202,546.44,133267,Equans Services Ltd
"Law, Governance and Assets",Revenue Budgets,Resources,Facilities Management,A0317,Central Cc Premises,A20005,"Property Repairs, Maintenance & Alterations",30009694,17/05/2022,202202,548.91,133267,Equans Services Ltd
"Law, Governance and Assets",Revenue Budgets,Resources,Facilities Management,A0318,Broadway Cc Premises,A20005,"Property Repairs, Maintenance & Alterations",30009696,17/05/2022,202202,330.88,133267,Equans Services Ltd
"Law, Governance and Assets",Revenue Budgets,Resources,Facilities Management,A0297,Nbpcc Premises,A20005,"Property Repairs, Maintenance & Alterations",30009698,17/05/2022,202202,"1,740.15",133267,Equans Services Ltd
"Law, Governance and Assets",Capital Spend,Resources,Cartergate Office Development,Y1610,Cartergate Office Development,C01011,External Professional Fees,30010786,17/05/2022,202202,"10,499.76",133267,Equans Services Ltd
"Law, Governance and Assets",Revenue Budgets,Resources,Coroners,A0229,Coroners Court,A61176,Post Mortems,30009201,18/05/2022,202202,556.9,Redacted Personal Information,Redacted Personal Information
"Law, Governance and Assets",Revenue Budgets,Resources,Legal Services,A0473,Ccare Legal,A49105,Other Supplies & Services,30011472,18/05/2022,202202,362.4,106320,Carter Brown The Expert Service
"Law, Governance and Assets",Revenue Budgets,Resources,Legal Services,A0473,Ccare Legal,A44968,Legal & Conveyancing Charges,30011474,18/05/2022,202202,360,139686,Miss Joanne F Jenkins
"Law, Governance and Assets",Revenue Budgets,Resources,Facilities Management,A0321,Highgate Cc Premises,A21010,Gas,30011496,18/05/2022,202202,293.31,118749,Thrunscoe Primary And Nursery Academy
"Law, Governance and Assets",Revenue Budgets,Resources,Facilities Management,A0321,Highgate Cc Premises,A27010,Contract Cleaning,30011496,18/05/2022,202202,251.38,118749,Thrunscoe Primary And Nursery Academy
"Law, Governance and Assets",Revenue Budgets,Resources,Legal Services,A0473,Ccare Legal,A44968,Legal & Conveyancing Charges,30011540,18/05/2022,202202,670,136396,Gavin Button
"Law, Governance and Assets",Revenue Budgets,Resources,Legal Services,A0473,Ccare Legal,A44968,Legal & Conveyancing Charges,30011649,18/05/2022,202202,"1,717.50",123960,Mr Jonathan C Wilson
"Law, Governance and Assets",Revenue Budgets,Resources,Legal Services,A0473,Ccare Legal,A44968,Legal & Conveyancing Charges,30011460,19/05/2022,202202,702.5,139686,Miss Joanne F Jenkins
"Law, Governance and Assets",Revenue Budgets,Resources,Legal Services,A0473,Ccare Legal,A44968,Legal & Conveyancing Charges,30011498,19/05/2022,202202,420,147197,Crown Chambers
"Law, Governance and Assets",Revenue Budgets,Resources,Legal Services,A0473,Ccare Legal,A44968,Legal & Conveyancing Charges,30011521,19/05/2022,202202,930,139686,Miss Joanne F Jenkins
"Law, Governance and Assets",Revenue Budgets,Resources,Legal Services,A0473,Ccare Legal,A44968,Legal & Conveyancing Charges,30011530,19/05/2022,202202,615,139686,Miss Joanne F Jenkins
"Law, Governance and Assets",Revenue Budgets,Resources,Legal Services,A0473,Ccare Legal,A44968,Legal & Conveyancing Charges,30011535,19/05/2022,202202,540,147197,Crown Chambers
"Law, Governance and Assets",Revenue Budgets,Resources,Legal Services,A0473,Ccare Legal,A44968,Legal & Conveyancing Charges,30011577,19/05/2022,202202,462,147197,Crown Chambers
"Law, Governance and Assets",Revenue Budgets,Resources,Legal Services,A0473,Ccare Legal,A44968,Legal & Conveyancing Charges,30011579,19/05/2022,202202,"1,575.00",147197,Crown Chambers
"Law, Governance and Assets",Revenue Budgets,Resources,Legal Services,A0473,Ccare Legal,A44968,Legal & Conveyancing Charges,30011581,19/05/2022,202202,588,147197,Crown Chambers
"Law, Governance and Assets",Revenue Budgets,Resources,Legal Services,A0473,Ccare Legal,A44968,Legal & Conveyancing Charges,30011599,19/05/2022,202202,572,147197,Crown Chambers
"Law, Governance and Assets",Revenue Budgets,Resources,Legal Services,A0473,Ccare Legal,A44968,Legal & Conveyancing Charges,30011648,19/05/2022,202202,620,147197,Crown Chambers
"Law, Governance and Assets",Revenue Budgets,Resources,Legal Services,A0473,Ccare Legal,A44968,Legal & Conveyancing Charges,30011650,19/05/2022,202202,300,147197,Crown Chambers
"Law, Governance and Assets",Revenue Budgets,Resources,Legal Services,A0473,Ccare Legal,A44968,Legal & Conveyancing Charges,30011655,19/05/2022,202202,540,147197,Crown Chambers
"Law, Governance and Assets",Revenue Budgets,Resources,Legal Services,A0473,Ccare Legal,A44968,Legal & Conveyancing Charges,30011715,19/05/2022,202202,551.2,147197,Crown Chambers
"Law, Governance and Assets",Revenue Budgets,Resources,Legal Services,A0473,Ccare Legal,A44968,Legal & Conveyancing Charges,30011847,19/05/2022,202202,540,147197,Crown Chambers
"Law, Governance and Assets",Revenue Budgets,Resources,Legal Services,A0473,Ccare Legal,A44968,Legal & Conveyancing Charges,30011886,19/05/2022,202202,840,147197,Crown Chambers
"Law, Governance and Assets",Revenue Budgets,Resources,Legal Services,A0473,Ccare Legal,A44968,Legal & Conveyancing Charges,30011887,19/05/2022,202202,"1,176.00",147197,Crown Chambers
"Law, Governance and Assets",Revenue Budgets,Resources,Legal Services,A0473,Ccare Legal,A44968,Legal & Conveyancing Charges,30011946,19/05/2022,202202,588,147197,Crown Chambers
"Law, Governance and Assets",Revenue Budgets,Resources,Legal Services,A0473,Ccare Legal,A44968,Legal & Conveyancing Charges,30011961,19/05/2022,202202,583.2,147197,Crown Chambers
"Law, Governance and Assets",Revenue Budgets,Resources,Legal Services,A0473,Ccare Legal,A44968,Legal & Conveyancing Charges,30011966,19/05/2022,202202,462,147197,Crown Chambers
"Law, Governance and Assets",Revenue Budgets,Resources,Commercial Estate,A1179,South Quay Ent. Centre,A22005,Building Rents,30010268,20/05/2022,202202,"2,750.00",100834,Associated British Ports
"Law, Governance and Assets",Revenue Budgets,Resources,Commercial Estate,A1206,South Quay Food Units,A22005,Building Rents,30010370,20/05/2022,202202,"4,250.00",100834,Associated British Ports
"Law, Governance and Assets",Revenue Budgets,Resources,Legal Services,A0473,Ccare Legal,A44968,Legal & Conveyancing Charges,30011251,20/05/2022,202202,540,147197,Crown Chambers
"Law, Governance and Assets",Revenue Budgets,Resources,Legal Services,A0473,Ccare Legal,A44968,Legal & Conveyancing Charges,30011254,20/05/2022,202202,588,147197,Crown Chambers
"Law, Governance and Assets",Revenue Budgets,Resources,Facilities Management,A0316,West Marsh Cc Premises,A27015,Refuse Collection,30011552,20/05/2022,202202,855.06,100515,Biffa Waste Services Ltd
"Law, Governance and Assets",Revenue Budgets,Resources,Facilities Management,A0322,Queensway Cc Premises,A27015,Refuse Collection,30011569,20/05/2022,202202,"1,038.88",146901,Bidvest Noonan (Uk) Ltd
"Law, Governance and Assets",Revenue Budgets,Resources,Facilities Management,A0322,Queensway Cc Premises,A27015,Refuse Collection,30011578,20/05/2022,202202,690.43,100515,Biffa Waste Services Ltd
"Law, Governance and Assets",Revenue Budgets,Resources,Legal Services,A0473,Ccare Legal,A44968,Legal & Conveyancing Charges,30011253,23/05/2022,202202,320,147197,Crown Chambers
"Law, Governance and Assets",Revenue Budgets,Resources,Legal Services,A0473,Ccare Legal,A44968,Legal & Conveyancing Charges,30011463,23/05/2022,202202,272,147197,Crown Chambers
"Law, Governance and Assets",Revenue Budgets,Resources,Legal Services,A0473,Ccare Legal,A44968,Legal & Conveyancing Charges,30011465,24/05/2022,202202,420,147197,Crown Chambers
"Law, Governance and Assets",Revenue Budgets,Resources,Legal Services,A0225,Legal Consultancy,A44968,Legal & Conveyancing Charges,30010995,25/05/2022,202202,"1,800.00",110782,Mr James Goudie Qc
"Law, Governance and Assets",Revenue Budgets,Resources,Coroners,A0229,Coroners Court,A61176,Post Mortems,30011036,25/05/2022,202202,800,1000608,APC (Pathology) LTD
"Law, Governance and Assets",Revenue Budgets,Resources,Facilities Management,A1000,Doughty Centre,A21010,Gas,42093668,25/05/2022,202202,277.55,103611,Total Energies Gas & Power Ltd
"Law, Governance and Assets",Revenue Budgets,Resources,Commercial Estate,A1185,Alexandra Dock Business Units,A21010,Gas,42093668,25/05/2022,202202,359.94,103611,Total Energies Gas & Power Ltd
"Law, Governance and Assets",Revenue Budgets,Resources,Facilities Management,A0323,Riverside Cc Premises,A21010,Gas,42093668,25/05/2022,202202,409.18,103611,Total Energies Gas & Power Ltd
"Law, Governance and Assets",Revenue Budgets,Resources,Facilities Management,A1044,Cleethorpes Library,A21010,Gas,42093668,25/05/2022,202202,433.32,103611,Total Energies Gas & Power Ltd
"Law, Governance and Assets",Revenue Budgets,Resources,Facilities Management,A1059,Doughty Road Depot,A21010,Gas,42093668,25/05/2022,202202,447.58,103611,Total Energies Gas & Power Ltd
"Law, Governance and Assets",Revenue Budgets,Resources,Facilities Management,A1120,William Molson Centre,A21010,Gas,42093668,25/05/2022,202202,463.3,103611,Total Energies Gas & Power Ltd
"Law, Governance and Assets",Revenue Budgets,Resources,Facilities Management,A1722,New Oxford House,A21010,Gas,42093668,25/05/2022,202202,464.87,103611,Total Energies Gas & Power Ltd
"Law, Governance and Assets",Revenue Budgets,Resources,Facilities Management,A0994,Cleethorpes Town Hall,A21010,Gas,42093668,25/05/2022,202202,470.98,103611,Total Energies Gas & Power Ltd
"Law, Governance and Assets",Revenue Budgets,Resources,Facilities Management,A0979,Heritage Centre Building,A21010,Gas,42093668,25/05/2022,202202,602.03,103611,Total Energies Gas & Power Ltd
"Law, Governance and Assets",Revenue Budgets,Resources,Facilities Management,A0996,Municipal Offices,A21010,Gas,42093668,25/05/2022,202202,659.22,103611,Total Energies Gas & Power Ltd
"Law, Governance and Assets",Revenue Budgets,Resources,Facilities Management,A0297,Nbpcc Premises,A21010,Gas,42093668,25/05/2022,202202,901.75,103611,Total Energies Gas & Power Ltd
"Law, Governance and Assets",Revenue Budgets,Resources,Facilities Management,A0995,Cleethorpes Civic Offices,A21010,Gas,42093668,25/05/2022,202202,911.8,103611,Total Energies Gas & Power Ltd
"Law, Governance and Assets",Revenue Budgets,Resources,Facilities Management,A1028,REDACTED,A21010,Gas,42093668,25/05/2022,202202,969.19,103611,Total Energies Gas & Power Ltd
"Law, Governance and Assets",Revenue Budgets,Resources,Commercial Estate,A1182,Humber Seafood Institute Bldng,A21010,Gas,42093668,25/05/2022,202202,991.9,103611,Total Energies Gas & Power Ltd
"Law, Governance and Assets",Revenue Budgets,Resources,Facilities Management,A0343,Leas Extened Services,A21010,Gas,42093668,25/05/2022,202202,"1,018.92",103611,Total Energies Gas & Power Ltd
"Law, Governance and Assets",Revenue Budgets,Resources,Facilities Management,A0993,Grimsby Town Hall,A21010,Gas,42093668,25/05/2022,202202,"1,083.43",103611,Total Energies Gas & Power Ltd
"Law, Governance and Assets",Revenue Budgets,Resources,Commercial Estate,A1175,Europarc Innovation Centre,A21010,Gas,42093668,25/05/2022,202202,"1,241.30",103611,Total Energies Gas & Power Ltd
"Law, Governance and Assets",Revenue Budgets,Resources,Commercial Estate,A1171,Saltings,A24005,Water Services,42093710,26/05/2022,202202,"-1,638.34",125923,Anglian Water Services Limited
"Law, Governance and Assets",Revenue Budgets,Resources,Facilities Management,A1101,Boating Lake Car Park Toilets,A24005,Water Services,42093710,26/05/2022,202202,269.65,125923,Anglian Water Services Limited
"Law, Governance and Assets",Revenue Budgets,Resources,Facilities Management,A1102,Pier Gardens And Waterfall,A24005,Water Services,42093710,26/05/2022,202202,288.16,125923,Anglian Water Services Limited
"Law, Governance and Assets",Revenue Budgets,Resources,Facilities Management,A1092,Butt Lane Playing Fields,A24005,Water Services,42093710,26/05/2022,202202,389.26,125923,Anglian Water Services Limited
"Law, Governance and Assets",Revenue Budgets,Resources,Facilities Management,A1764,Lac Education Facility,A24005,Water Services,42093710,26/05/2022,202202,442.12,125923,Anglian Water Services Limited
"Law, Governance and Assets",Revenue Budgets,Resources,Facilities Management,A1111,Gilbey Road Depot,A24005,Water Services,42093710,26/05/2022,202202,478.62,125923,Anglian Water Services Limited
"Law, Governance and Assets",Revenue Budgets,Resources,Commercial Estate,A1178,King Edward St Ent. Centre,A24005,Water Services,42093710,26/05/2022,202202,484.58,125923,Anglian Water Services Limited
"Law, Governance and Assets",Revenue Budgets,Resources,Facilities Management,A1094,King Georg V Fields Taylors Av,A24005,Water Services,42093710,26/05/2022,202202,488.86,125923,Anglian Water Services Limited
"Law, Governance and Assets",Revenue Budgets,Resources,Facilities Management,A1114,Duke Of York Pavilions,A24005,Water Services,42093710,26/05/2022,202202,510.8,125923,Anglian Water Services Limited
"Law, Governance and Assets",Revenue Budgets,Resources,Facilities Management,A0995,Cleethorpes Civic Offices,A24005,Water Services,42093710,26/05/2022,202202,820.87,125923,Anglian Water Services Limited
"Law, Governance and Assets",Revenue Budgets,Resources,Facilities Management,A1120,William Molson Centre,A24005,Water Services,42093710,26/05/2022,202202,939.09,125923,Anglian Water Services Limited
